Body Name,Trans.date,Department Code,Department,Expense Area Code,Expense Area,Expense Type Code,Expense Type,Amount Paid (�),Supplier name,Extended description,TransNo,Period
Rother District Council,31/05/2023,T3ZCAPITAL,Housing ,70751,Capital - Temporary Accommodation,N1005,Other fees,60.00,A&A Cleaning & Property Services Ltd,Derv,2044963,202307
Rother District Council,08/11/2023,T3ZCAPITAL,Housing ,70751,Capital - Temporary Accommodation,N1005,Other fees,180.00,A&A Cleaning & Property Services Ltd,Derv,2045771,202308
Rother District Council,28/09/2023,T3ZCAPITAL,Housing ,70706,Capital - Disabled Facilities Grant,N1012,Capital Advances,"15,000.00",A&AJ Bishop Ltd,Derv,2044961,202307
Rother District Council,12/10/2023,T3ZCAPITAL,Housing ,70706,Capital - Disabled Facilities Grant,N1012,Capital Advances,"12,000.00",A&AJ Bishop Ltd,Derv,2045116,202307
Rother District Council,07/11/2023,T3ZCAPITAL,Housing ,70706,Capital - Disabled Facilities Grant,N1011,Capital Grants,"7,393.00",A&AJ Bishop Ltd,Derv,2046315,202308
Rother District Council,05/12/2023,T3ZCAPITAL,Housing ,70706,Capital - Disabled Facilities Grant,N1011,Capital Grants,"8,332.63",A&AJ Bishop Ltd,Derv,2046631,202309
Rother District Council,20/11/2023,T3ZCAPITAL,Housing ,70751,Capital - Temporary Accommodation,N1005,Other fees,929.20,A.G.I.S. ,Derv,2046852,202309
Rother District Council,08/12/2023,T3ZZNOREPORT,Chief Finance Officer (S151),90000,Balance sheet all accounts,R2348,Suspense Accounts,7.15,Abbotts Insolvency Ltd,Derv,2046815,202309
Rother District Council,17/11/2023,T3ZCAPITAL,Housing ,70706,Capital - Disabled Facilities Grant,N1011,Capital Grants,"7,716.07",Adaptec Mobility Ltd,Derv,2046109,202308
Rother District Council,25/09/2023,T3ZCAPITAL,Housing ,70706,Capital - Disabled Facilities Grant,N1012,Capital Advances,"20,000.00",Alfa Electric Ltd,Car payment options,2044938,202307
Rother District Council,25/09/2023,T3ZCAPITAL,Housing ,70706,Capital - Disabled Facilities Grant,N1012,Capital Advances,"10,000.00",Alfa Electric Ltd,Clothing and Uniforms,2044939,202307
Rother District Council,11/10/2023,T3ZCAPITAL,Housing ,70706,Capital - Disabled Facilities Grant,N1012,Capital Advances,"12,773.20",Alfa Electric Ltd,Clothing and Uniforms,2044998,202307
Rother District Council,12/10/2023,T3ZCAPITAL,Housing ,70706,Capital - Disabled Facilities Grant,N1012,Capital Advances,"12,000.00",Alfa Electric Ltd,Car payment options,2045207,202307
Rother District Council,20/10/2023,T3ZCAPITAL,Housing ,70706,Capital - Disabled Facilities Grant,N1012,Capital Advances,"7,000.00",Alfa Electric Ltd,Car payment options,2045309,202307
Rother District Council,27/10/2023,T3ZCAPITAL,Housing ,70706,Capital - Disabled Facilities Grant,N1011,Capital Grants,"9,000.00",Alfa Electric Ltd,Accommodation Costs,2045724,202308
Rother District Council,25/10/2023,T3ZCAPITAL,Housing ,70706,Capital - Disabled Facilities Grant,N1011,Capital Grants,"5,000.00",Alfa Electric Ltd,Accommodation Costs,2045778,202308
Rother District Council,30/09/2023,T3ZCAPITAL,Housing ,70706,Capital - Disabled Facilities Grant,N1011,Capital Grants,"3,600.08",Alfa Electric Ltd,Accommodation Costs,2046314,202308
Rother District Council,31/10/2023,T3ZCAPITAL,Housing ,70706,Capital - Disabled Facilities Grant,N1011,Capital Grants,226.80,Alfa Electric Ltd,Accommodation Costs,2046395,202308
Rother District Council,25/10/2023,T3ZCAPITAL,Housing ,70706,Capital - Disabled Facilities Grant,N1011,Capital Grants,"10,000.00",Alfa Electric Ltd,Accommodation Costs,2046400,202308
Rother District Council,05/12/2023,T3ZCAPITAL,Housing ,70706,Capital - Disabled Facilities Grant,N1011,Capital Grants,"2,747.24",Alfa Electric Ltd,Accommodation Costs,2046632,202309
Rother District Council,05/12/2023,T3ZCAPITAL,Housing ,70706,Capital - Disabled Facilities Grant,N1011,Capital Grants,"3,256.65",Alfa Electric Ltd,Accommodation Costs,2046789,202309
Rother District Council,14/12/2023,T3ZCAPITAL,Housing ,70706,Capital - Disabled Facilities Grant,N1011,Capital Grants,"7,524.06",Alfa Electric Ltd,Accommodation Costs,2046942,202309
Rother District Council,30/11/2023,T3ZCAPITAL,Housing ,70706,Capital - Disabled Facilities Grant,N1011,Capital Grants,"8,614.19",Alfa Electric Ltd,Accommodation Costs,2047047,202309
Rother District Council,31/10/2023,T33PLANDEV,Planning Development Management,20246,Planning Applications,D2513,Hired and Contracted services,"3,450.00",Altair Consultancy & Advisory Services Ltd,Accommodation Costs,2046449,202308
Rother District Council,31/08/2023,T3ZCAPITAL,Neighbourhood Services,70781,Capital - Camber Sands Welcome Centre,N1004,Architects & Consultant Fees,"2,250.00",Altair Consultancy & Advisory Services Ltd,Accommodation Costs,2045355,202308
Rother District Council,18/09/2023,T3ZCAPITAL,Housing ,70751,Capital - Temporary Accommodation,N1005,Other fees,780.00,APS Tree Surgery,Grants made,2044776,202307
Rother District Council,14/11/2023,T3ZCAPITAL,Housing ,70751,Capital - Temporary Accommodation,N1005,Other fees,660.00,APS Tree Surgery,Grants made,2045939,202308
Rother District Council,14/11/2023,T3ZCAPITAL,Housing ,70751,Capital - Temporary Accommodation,N1005,Other fees,350.00,APS Tree Surgery,Grants made,2046494,202308
Rother District Council,17/11/2023,T3ZCAPITAL,Housing ,70751,Capital - Temporary Accommodation,N1005,Other fees,80.00,APS Tree Surgery,Grants made,2046766,202309
Rother District Council,17/11/2023,T3ZCAPITAL,Housing ,70751,Capital - Temporary Accommodation,N1005,Other fees,980.00,APS Tree Surgery,Grants made,2046767,202309
Rother District Council,22/11/2023,T3ZCAPITAL,Housing ,70751,Capital - Temporary Accommodation,N1005,Other fees,"1,050.00",APS Tree Surgery,Grants made,2046768,202309
Rother District Council,27/11/2023,T3ZCAPITAL,Housing ,70751,Capital - Temporary Accommodation,N1005,Other fees,260.00,APS Tree Surgery,Grants made,2046769,202309
Rother District Council,13/12/2023,T3ZCAPITAL,Housing ,70751,Capital - Temporary Accommodation,N1005,Other fees,850.00,APS Tree Surgery,Grants made,2046853,202309
Rother District Council,13/12/2023,T3ZCAPITAL,Housing ,70751,Capital - Temporary Accommodation,N1005,Other fees,150.00,APS Tree Surgery,Grants made,2046862,202309
Rother District Council,29/09/2023,T3ZCAPITAL,Housing ,70725,Capital - Blackfriars,N1004,Architects & Consultant Fees,"2,722.50",Bevan Brittan LLP,Grants made,2046167,202308
Rother District Council,31/10/2023,T3ZCAPITAL,Housing ,70725,Capital - Blackfriars,N1004,Architects & Consultant Fees,"2,035.50",Bevan Brittan LLP,Grants made,2046772,202309
Rother District Council,30/08/2023,T3ZCAPITAL,Housing ,70725,Capital - Blackfriars,N1005,Other fees,"4,725.00",Bevan Brittan LLP,Grants made,2045115,202307
Rother District Council,20/09/2023,T3ZCAPITAL,Housing ,70751,Capital - Temporary Accommodation,N1005,Other fees,"5,412.67",Booker and Best Ltd,Grants made,2044753,202307
Rother District Council,20/09/2023,T3ZCAPITAL,Housing ,70751,Capital - Temporary Accommodation,N1005,Other fees,"20,965.83",Booker and Best Ltd,Grants made,2044754,202307
Rother District Council,17/10/2023,T3ZCAPITAL,Housing ,70751,Capital - Temporary Accommodation,N1005,Other fees,"4,148.90",Booker and Best Ltd,Grants made,2045218,202308
Rother District Council,10/11/2023,T3ZCAPITAL,Housing ,70751,Capital - Temporary Accommodation,N1005,Other fees,50.00,Booker and Best Ltd,Grants made,2045854,202308
Rother District Council,30/10/2023,T3ZCAPITAL,Housing ,70751,Capital - Temporary Accommodation,N1005,Other fees,"2,476.70",Booker and Best Ltd,Grants made,2046226,202308
Rother District Council,07/11/2023,T3ZCAPITAL,Housing ,70751,Capital - Temporary Accommodation,N1005,Other fees,45.00,Booker and Best Ltd,Grants made,2046375,202308
Rother District Council,15/12/2023,T3ZCAPITAL,Housing ,70751,Capital - Temporary Accommodation,N1005,Other fees,"1,243.02",Booker and Best Ltd,Grants made,2047050,202309
Rother District Council,18/12/2023,T3ZCAPITAL,Housing ,70751,Capital - Temporary Accommodation,N1005,Other fees,"2,500.00",Booker and Best Ltd,Grants made,2047051,202309
Rother District Council,04/10/2023,T3ZCAPITAL,Housing ,70751,Capital - Temporary Accommodation,N1005,Other fees,580.00,BP Preservations,Grants made,2044964,202307
Rother District Council,13/12/2023,T3ZCAPITAL,Housing ,70751,Capital - Temporary Accommodation,N1005,Other fees,"1,290.00",BP Preservations,Grants made,2046864,202309
Rother District Council,13/12/2023,T3ZCAPITAL,Housing ,70751,Capital - Temporary Accommodation,N1005,Other fees,"1,956.00",BP Preservations,Grants made,2046865,202309
Rother District Council,10/10/2023,T3ZCAPITAL,Housing ,70725,Capital - Blackfriars,N1003,Construction/Conversion,"429,949.08",Breheny Civil Engineering Ltd,Grants made,2044973,202307
Rother District Council,06/11/2023,T3ZCAPITAL,Housing ,70725,Capital - Blackfriars,N1003,Construction/Conversion,"372,624.55",Breheny Civil Engineering Ltd,Grants made,2045755,202308
Rother District Council,01/12/2023,T3ZCAPITAL,Housing ,70725,Capital - Blackfriars,N1003,Construction/Conversion,"518,698.67",Breheny Civil Engineering Ltd,Grants made,2046844,202309
Rother District Council,18/08/2023,T3ZCAPITAL,Neighbourhood Services,70718,Capital - Sidley Recreation Ground,N1004,Architects & Consultant Fees,"3,335.36",Canvas Spaces Ltd,Grants made,2045901,202308
Rother District Council,22/09/2023,T33PLANDEV,Planning Development Management,20246,Planning Applications,A1110,Agency Staff,"9,010.32",Capita Property & Infrastructure Ltd,Grants made,2045269,202307
Rother District Council,17/10/2023,T33PLANDEV,Planning Development Management,20246,Planning Applications,A1110,Agency Staff,"6,075.58",Capita Property & Infrastructure Ltd,Grants made,2045595,202308
Rother District Council,13/11/2023,T33PLANDEV,Planning Development Management,20246,Planning Applications,A1110,Agency Staff,"5,828.82",Capita Property & Infrastructure Ltd,Grants made,2046171,202308
Rother District Council,14/09/2023,T33PLANDEV,Planning Development Management,20246,Planning Applications,A1110,Agency Staff,"1,073.00",Carrington West Ltd,Grants made,2044719,202307
Rother District Council,14/09/2023,T33PLANDEV,Planning Development Management,20246,Planning Applications,A1110,Agency Staff,"1,020.00",Carrington West Ltd,Grants made,2045180,202307
Rother District Council,14/09/2023,T33PLANDEV,Planning Development Management,20246,Planning Applications,A1110,Agency Staff,"1,320.00",Carrington West Ltd,Grants made,2045181,202307
Rother District Council,21/09/2023,T33PLANDEV,Planning Development Management,20246,Planning Applications,A1110,Agency Staff,"1,073.00",Carrington West Ltd,Grants made,2045495,202308
Rother District Council,28/09/2023,T33PLANDEV,Planning Development Management,20246,Planning Applications,A1110,Agency Staff,986.00,Carrington West Ltd,Grants made,2045549,202308
Rother District Council,28/09/2023,T33PLANDEV,Planning Development Management,20246,Planning Applications,A1110,Agency Staff,510.00,Carrington West Ltd,Grants made,2045593,202308
Rother District Council,28/09/2023,T33PLANDEV,Planning Development Management,20246,Planning Applications,A1110,Agency Staff,510.00,Carrington West Ltd,Grants made,2045594,202308
Rother District Council,05/10/2023,T33PLANDEV,Planning Development Management,20246,Planning Applications,A1110,Agency Staff,"1,140.00",Carrington West Ltd,Grants made,2045694,202308
Rother District Council,05/10/2023,T33PLANDEV,Planning Development Management,20246,Planning Applications,A1110,Agency Staff,"1,015.00",Carrington West Ltd,Grants made,2045695,202308
Rother District Council,12/10/2023,T33PLANDEV,Planning Development Management,20246,Planning Applications,A1110,Agency Staff,"1,073.00",Carrington West Ltd,Grants made,2045892,202308
Rother District Council,19/10/2023,T33PLANDEV,Planning Development Management,20246,Planning Applications,A1110,Agency Staff,"1,049.80",Carrington West Ltd,Grants made,2045893,202308
Rother District Council,26/10/2023,T33PLANDEV,Planning Development Management,20246,Planning Applications,A1110,Agency Staff,797.50,Carrington West Ltd,Grants made,2046070,202308
Rother District Council,02/11/2023,T33PLANDEV,Planning Development Management,20246,Planning Applications,A1110,Agency Staff,"1,015.00",Carrington West Ltd,Grants made,2046223,202308
Rother District Council,16/11/2023,T33PLANDEV,Planning Development Management,20246,Planning Applications,A1110,Agency Staff,986.00,Carrington West Ltd,Grants made,2046490,202308
Rother District Council,16/11/2023,T33PLANDEV,Planning Development Management,20246,Planning Applications,A1110,Agency Staff,870.00,Carrington West Ltd,Grants made,2046491,202308
Rother District Council,23/11/2023,T33PLANDEV,Planning Development Management,20246,Planning Applications,A1110,Agency Staff,971.50,Carrington West Ltd,Grants made,2046982,202309
Rother District Council,05/10/2023,T3ZCAPITAL,Regeneration,70772,Capital - UKSPF- UK Shared Prosperity Fund,N1011,Capital Grants,"15,298.62",Chapmans of Rye Ltd,Grants made,2045275,202307
Rother District Council,05/10/2023,T3ZCAPITAL,Regeneration,70772,Capital - UKSPF- UK Shared Prosperity Fund,N1011,Capital Grants,11.99,Chapmans of Rye Ltd,Grants made,2045275,202307
Rother District Council,28/11/2023,T3ZCAPITAL,Neighbourhood Services,70786,Capital - LTA Egerton Park Tennis Courts,N1008,Equipment,"4,900.00",CIA Fire & Security Limited,Grants made,2047025,202309
Rother District Council,09/10/2023,T3ZCAPITAL,Regeneration,70755,Capital - Mount View Street Development,N1002,Land & Property fees,"42,500.00",Colliers International Property Consultants Limited,Grants made,2045651,202308
Rother District Council,31/08/2023,T3ZZNOREPORT,Chief Finance Officer (S151),90000,Balance sheet all accounts,T1002,Childcare Vouchers,293.00,Computershare Voucher Services,Grants made,2045070,202307
Rother District Council,02/10/2023,T3ZZNOREPORT,Chief Finance Officer (S151),90000,Balance sheet all accounts,T1002,Childcare Vouchers,293.00,Computershare Voucher Services,Grants made,2045071,202307
Rother District Council,16/10/2023,T3ZZNOREPORT,Chief Finance Officer (S151),90000,Balance sheet all accounts,T1002,Childcare Vouchers,100.00,Computershare Voucher Services,Grants made,2045072,202307
Rother District Council,11/10/2023,T3ZCAPITAL,Housing ,70751,Capital - Temporary Accommodation,N1001,Land & Property Purchase,"385,000.00",Conveyancing Direct,Grants made,2044976,202307
Rother District Council,10/10/2023,T3ZCAPITAL,Corporate Policy & Projects,70714,Capital - Community Grants,N1011,Capital Grants,"1,000.00",Crowhurst Parish Council,Grants made,2045074,202307
Rother District Council,25/09/2023,T33PLANDEV,Planning Development Management,20246,Planning Applications,E2302,Third party payment private contractors,261.30,Curley Consultants,Grants made,2045538,202308
Rother District Council,08/10/2023,T33PLANDEV,Planning Development Management,20246,Planning Applications,E2302,Third party payment private contractors,242.90,Curley Consultants,Grants made,2046003,202308
Rother District Council,23/10/2023,T33PLANDEV,Planning Development Management,20246,Planning Applications,E2302,Third party payment private contractors,227.20,Curley Consultants,Grants made,2046004,202308
Rother District Council,28/10/2023,T33PLANDEV,Planning Development Management,20246,Planning Applications,E2302,Third party payment private contractors,224.50,Curley Consultants,Grants made,2046005,202308
Rother District Council,29/10/2023,T33PLANDEV,Planning Development Management,20246,Planning Applications,E2302,Third party payment private contractors,225.40,Curley Consultants,Grants made,2046007,202308
Rother District Council,01/01/2024,T3ZCAPITAL,Regeneration,70702,Capital - De La Warr Pavilion - Capital Grant,N1011,Capital Grants,"14,784.75",De La Warr Pavilion Charitable Trust,Grants made,2046762,202309
Rother District Council,07/12/2023,T3ZZNOREPORT,Chief Finance Officer (S151),90000,Balance sheet all accounts,R2348,Suspense Accounts,"96,800.00",De La Warr Pavilion Charitable Trust,Grants made,2046753,202309
Rother District Council,02/10/2023,T33PLANDEV,Planning Development Management,20246,Planning Applications,A1110,Agency Staff,"4,992.20",DGC (Historic Buildings) Consultants Ltd,Grants made,2044999,202307
Rother District Council,09/11/2023,T33PLANDEV,Planning Development Management,20246,Planning Applications,A1110,Agency Staff,"3,078.90",DGC (Historic Buildings) Consultants Ltd,Grants made,2046673,202309
Rother District Council,06/12/2023,T33PLANDEV,Planning Development Management,20246,Planning Applications,A1110,Agency Staff,"4,261.35",DGC (Historic Buildings) Consultants Ltd,Grants made,2046962,202309
Rother District Council,27/09/2023,T3ZCAPITAL,Housing ,70751,Capital - Temporary Accommodation,N1005,Other fees,80.00,Digital Sussex Ltd,Grants made,2044948,202307
Rother District Council,09/11/2023,T3ZCAPITAL,Housing ,70751,Capital - Temporary Accommodation,N1005,Other fees,90.00,Digital Sussex Ltd,Grants made,2045970,202308
Rother District Council,22/11/2023,T3ZCAPITAL,Housing ,70751,Capital - Temporary Accommodation,N1005,Other fees,120.00,Digital Sussex Ltd,Grants made,2046318,202308
Rother District Council,03/12/2023,T3ZCAPITAL,Housing ,70751,Capital - Temporary Accommodation,N1005,Other fees,100.00,Digital Sussex Ltd,Grants made,2046639,202309
Rother District Council,21/09/2023,T3ZCAPITAL,Neighbourhood Services,70781,Capital - Camber Sands Welcome Centre,N1004,Architects & Consultant Fees,"10,381.00",DK-CM Limited,Grants made,2045197,202307
Rother District Council,27/10/2023,T3ZCAPITAL,Neighbourhood Services,70781,Capital - Camber Sands Welcome Centre,N1004,Architects & Consultant Fees,"10,381.00",DK-CM Limited,Grants made,2045342,202308
Rother District Council,30/11/2023,T3ZCAPITAL,Neighbourhood Services,70781,Capital - Camber Sands Welcome Centre,N1004,Architects & Consultant Fees,"10,381.00",DK-CM Limited,Grants made,2046830,202309
Rother District Council,11/10/2023,T3ZCAPITAL,Housing ,70751,Capital - Temporary Accommodation,N1001,Land & Property Purchase,"267,000.00",Donaldson Dunstall,Grants made,2044977,202307
Rother District Council,23/10/2023,T33NBHDSERV,Neighbourhood Services,20108,Bexhill Promenade & Foreshore,D2513,Hired and Contracted services,255.00,DWCF Blacksmith & Farrier,Hired and contracted services - Service fee paid,2046168,202308
Rother District Council,03/10/2023,T33NBHDSERV,Neighbourhood Services,20114,Bexhill Parks & Open Spaces,B1100,Repairs to Premises,560.00,DWCF Blacksmith & Farrier,Repairs to Premises - Parks - Metalworks,2045692,202308
Rother District Council,20/11/2023,T33NBHDSERV,Neighbourhood Services,20114,Bexhill Parks & Open Spaces,B1100,Repairs to Premises,265.00,DWCF Blacksmith & Farrier,Repairs to Premises - Parks - Metalworks,2046169,202308
Rother District Council,13/12/2023,T33NBHDSERV,Neighbourhood Services,20114,Bexhill Parks & Open Spaces,B1100,Repairs to Premises,510.00,DWCF Blacksmith & Farrier,Repairs to Premises - Parks - Playground Repairs,2047037,202309
Rother District Council,10/10/2023,T33PLANDEV,Planning Development Management,20246,Planning Applications,D2513,Hired and Contracted services,"6,479.00",East Sussex County Council,Grants made,2045278,202307
Rother District Council,18/08/2023,T33PLANDEV,Planning Development Management,20259,Land Charges,E1101,Third party payment other LAs,646.00,East Sussex County Council,Grants made,2045142,202307
Rother District Council,06/11/2023,T33PLANDEV,Planning Development Management,20259,Land Charges,E1101,Third party payment other LAs,"4,541.00",East Sussex County Council,Grants made,2046302,202308
Rother District Council,06/11/2023,T33PLANDEV,Planning Development Management,20259,Land Charges,E1101,Third party payment other LAs,"1,216.00",East Sussex County Council,Grants made,2046303,202308
Rother District Council,20/11/2023,T33PLANDEV,Planning Development Management,20259,Land Charges,E1101,Third party payment other LAs,"7,592.40",East Sussex County Council,Grants made,2046739,202309
Rother District Council,25/10/2023,T33PLANPOL,Planning Policy,20255,Local Development Framework,E1101,Third party payment other LAs,"33,396.35",East Sussex County Council,Grants made,2045293,202307
Rother District Council,08/11/2023,T3ZCAPITAL,Housing ,70706,Capital - Disabled Facilities Grant,N1012,Capital Advances,"25,948.75",East Sussex County Council,Grants made,2046342,202308
Rother District Council,06/12/2023,T31CHFEXEC,Chief Executive,20183,Chief Executive,D2513,Hired and Contracted services,250.00,REDACTED PERSONAL DATA,Car payment options,2046734,202309
Rother District Council,20/12/2023,T31CHFEXEC,Chief Executive,20183,Chief Executive,C2337,Car payment options,131.88,REDACTED PERSONAL DATA,Accommodation Costs,2047137,202309
Rother District Council,20/10/2023,T31CHFEXEC,Chief Executive,20183,Chief Executive,D2518,Advertising,894.00,National World Publishing Ltd,Advertising - Newspapers/Magazine,2046165,202308
Rother District Council,13/11/2023,T31CHFEXEC,Chief Executive,20183,Chief Executive,A1110,Agency Staff,"2,200.00",NumberMill,Agency Staff,2046519,202308
Rother District Council,13/11/2023,T31CHFEXEC,Chief Executive,20183,Chief Executive,A1110,Agency Staff,"2,800.00",NumberMill,Agency Staff,2046520,202308
Rother District Council,13/11/2023,T31CHFEXEC,Chief Executive,20183,Chief Executive,A1110,Agency Staff,"2,200.00",NumberMill,Agency Staff,2046521,202308
Rother District Council,27/11/2023,T31CHFEXEC,Chief Executive,20183,Chief Executive,A1110,Agency Staff,"2,800.00",NumberMill,Agency Staff,2046723,202309
Rother District Council,27/11/2023,T31CHFEXEC,Chief Executive,20183,Chief Executive,A1110,Agency Staff,"2,800.00",NumberMill,Agency Staff,2046724,202309
Rother District Council,27/11/2023,T31CHFEXEC,Chief Executive,20183,Chief Executive,A1110,Agency Staff,"1,200.00",NumberMill,Agency Staff,2046725,202309
Rother District Council,19/09/2023,T31CHFEXEC,Chief Executive,20183,Chief Executive,D2513,Hired and Contracted services,119.00,Office Furniture Online,Hired and Contracted Services - Health and Safety Act Equipment risk assessment,2045451,202308
Rother District Council,01/10/2023,T31CHFEXEC,Chief Executive,20183,Chief Executive,A2203,Training,200.00,Peak Potential,Training,2044822,202307
Rother District Council,24/09/2023,T31CHFEXEC,Chief Executive,20183,Chief Executive,A2203,Training,200.00,Peak Potential,Training,2045563,202308
Rother District Council,02/11/2023,T31CHFEXEC,Chief Executive,20183,Chief Executive,A2203,Training,200.00,Peak Potential,Training,2046296,202308
Rother District Council,01/12/2023,T31CHFEXEC,Chief Executive,20183,Chief Executive,A2203,Training,200.00,Peak Potential,Training,2046797,202309
Rother District Council,14/09/2023,T31CHFEXEC,Chief Executive,20183,Chief Executive,A1110,Agency Staff,"25,350.00",Penna PLC,Agency Staff,2044738,202307
Rother District Council,18/10/2023,T31CHFEXEC,Chief Executive,20183,Chief Executive,A1110,Agency Staff,"19,500.00",Penna PLC,Agency Staff,2045231,202307
Rother District Council,02/11/2023,T31CHFEXEC,Chief Executive,20183,Chief Executive,A1110,Agency Staff,"25,837.50",Penna PLC,Agency Staff,2046281,202308
Rother District Council,31/10/2023,T31CHFEXEC,Chief Executive,20183,Chief Executive,D2513,Hired and Contracted services,"5,250.00",Penna PLC,Hired and contracted services - Staff Recruitment Fee,2045420,202308
Rother District Council,26/10/2023,T31CHFEXEC,Chief Executive,20183,Chief Executive,A2202,Recruitment expenses,"1,336.00",Penna PLC,Recruitment expenses Advertising Vacant Post,2045419,202308
Rother District Council,12/09/2023,T31CHFEXEC,Chief Executive,20183,Chief Executive,D2513,Hired and Contracted services,149.93,Sammons Recruitment Ltd,Hired and contracted services - Staff Recruitment Fee,2044697,202307
Rother District Council,19/09/2023,T31CHFEXEC,Chief Executive,20183,Chief Executive,D2513,Hired and Contracted services,"1,398.54",Solace in Business,Hired and contracted services - Staff Recruitment Fee,2045720,202308
Rother District Council,31/07/2023,T31CHFFIN,Chief Finance Officer (S151),20209,Corporate management,D2513,Hired and Contracted services,12.66,allpay.net Ltd,Accommodation Costs,2044804,202307
Rother District Council,30/04/2023,T31CHFFIN,Chief Finance Officer (S151),20209,Corporate management,D2513,Hired and Contracted services,12.66,allpay.net Ltd,Accommodation Costs,2044805,202307
Rother District Council,30/04/2023,T31CHFFIN,Chief Finance Officer (S151),20209,Corporate management,D2513,Hired and Contracted services,13.69,allpay.net Ltd,Accommodation Costs,2044806,202307
Rother District Council,31/07/2023,T31CHFFIN,Chief Finance Officer (S151),20209,Corporate management,D2513,Hired and Contracted services,13.69,allpay.net Ltd,Accommodation Costs,2044807,202307
Rother District Council,30/04/2023,T31CHFFIN,Chief Finance Officer (S151),20209,Corporate management,D2513,Hired and Contracted services,24.60,allpay.net Ltd,Accommodation Costs,2044808,202307
Rother District Council,31/07/2023,T31CHFFIN,Chief Finance Officer (S151),20209,Corporate management,D2513,Hired and Contracted services,28.80,allpay.net Ltd,Accommodation Costs,2044809,202307
Rother District Council,30/04/2023,T31CHFFIN,Chief Finance Officer (S151),20209,Corporate management,D2513,Hired and Contracted services,797.66,allpay.net Ltd,Accommodation Costs,2044810,202307
Rother District Council,31/07/2023,T31CHFFIN,Chief Finance Officer (S151),20209,Corporate management,D2513,Hired and Contracted services,826.36,allpay.net Ltd,Accommodation Costs,2044811,202307
Rother District Council,30/09/2023,T31CHFFIN,Chief Finance Officer (S151),20209,Corporate management,D2513,Hired and Contracted services,770.78,allpay.net Ltd,Accommodation Costs,2046522,202308
Rother District Council,30/09/2023,T31CHFFIN,Chief Finance Officer (S151),20209,Corporate management,D2513,Hired and Contracted services,22.48,allpay.net Ltd,Accommodation Costs,2046523,202308
Rother District Council,30/09/2023,T31CHFFIN,Chief Finance Officer (S151),20209,Corporate management,D2513,Hired and Contracted services,13.17,allpay.net Ltd,Accommodation Costs,2046524,202308
Rother District Council,30/09/2023,T31CHFFIN,Chief Finance Officer (S151),20209,Corporate management,D2513,Hired and Contracted services,12.14,allpay.net Ltd,Accommodation Costs,2046525,202308
Rother District Council,30/09/2023,T31CHFFIN,Chief Finance Officer (S151),20209,Corporate management,D2513,Hired and Contracted services,19.87,allpay.net Ltd,Accommodation Costs,2046526,202308
Rother District Council,31/08/2023,T31CHFFIN,Chief Finance Officer (S151),20209,Corporate management,D2513,Hired and Contracted services,788.55,allpay.net Ltd,Accommodation Costs,2046527,202308
Rother District Council,31/08/2023,T31CHFFIN,Chief Finance Officer (S151),20209,Corporate management,D2513,Hired and Contracted services,13.69,allpay.net Ltd,Accommodation Costs,2046528,202308
Rother District Council,31/08/2023,T31CHFFIN,Chief Finance Officer (S151),20209,Corporate management,D2513,Hired and Contracted services,12.66,allpay.net Ltd,Accommodation Costs,2046529,202308
Rother District Council,31/08/2023,T31CHFFIN,Chief Finance Officer (S151),20209,Corporate management,D2513,Hired and Contracted services,24.55,allpay.net Ltd,Accommodation Costs,2046530,202308
Rother District Council,30/09/2023,T31CHFFIN,Chief Finance Officer (S151),20222,Accountancy,D2636,Computer Software,"1,100.87",Arribatec UK Ltd,Grants made,2045128,202307
Rother District Council,31/10/2023,T31CHFFIN,Chief Finance Officer (S151),20222,Accountancy,D2636,Computer Software,"1,100.87",Arribatec UK Ltd,Grants made,2046224,202308
Rother District Council,30/11/2023,T31CHFFIN,Chief Finance Officer (S151),20222,Accountancy,D2636,Computer Software,"1,133.30",Arribatec UK Ltd,Grants made,2046997,202309
Rother District Council,30/11/2023,T31CHFFIN,Chief Finance Officer (S151),20222,Accountancy,D2636,Computer Software,"1,100.87",Arribatec UK Ltd,Grants made,2046998,202309
Rother District Council,12/10/2023,T31CHFFIN,Chief Finance Officer (S151),20222,Accountancy,D2626,Postages,247.22,DSI Billing Services Ltd,Grants made,2045324,202309
Rother District Council,02/11/2023,T31CHFFIN,Chief Finance Officer (S151),20211,Public Accountabilty-Resources,D2922,Subscriptions,"6,695.00",East Sussex County Council,Grants made,2045589,202308
Rother District Council,19/10/2023,T31CHFFIN,Chief Finance Officer (S151),20214,Unapportion Central Overheads,D2513,Hired and Contracted services,"33,168.64",East Sussex Pension Fund,Grants made,2045277,202307
Rother District Council,24/11/2023,T31CHFFIN,Chief Finance Officer (S151),20214,Unapportion Central Overheads,D2513,Hired and Contracted services,"33,010.48",East Sussex Pension Fund,Grants made,2046398,202308
Rother District Council,07/11/2023,T31CHFFIN,Chief Finance Officer (S151),20209,Corporate management,D2513,Hired and Contracted services,10.00,EDF Energy Customers plc,Telephones,2046372,202309
Rother District Council,29/09/2023,T31CHFFIN,Chief Finance Officer (S151),20209,Corporate management,D2516,Audit fees,"14,663.00",Grant Thornton UK LLP,Accommodation Costs,2045075,202307
Rother District Council,13/12/2023,T31CHFFIN,Chief Finance Officer (S151),20209,Corporate management,D2516,Audit fees,"5,500.00",Grant Thornton UK LLP,Accommodation Costs,2046936,202309
Rother District Council,13/12/2023,T31CHFFIN,Chief Finance Officer (S151),20209,Corporate management,D2516,Audit fees,"3,397.00",Grant Thornton UK LLP,Accommodation Costs,2046937,202309
Rother District Council,01/10/2023,T31CHFFIN,Chief Finance Officer (S151),20209,Corporate management,D2513,Hired and Contracted services,188.00,Her Majestys Court Service,Hired and contracted services - Court Costs/Fees,2046177,202308
Rother District Council,01/06/2023,T31CHFFIN,Chief Finance Officer (S151),20209,Corporate management,D2513,Hired and Contracted services,339.00,Her Majestys Court Service,Hired and contracted services - Court Costs/Fees,2046914,202309
Rother District Council,01/06/2023,T31CHFFIN,Chief Finance Officer (S151),20209,Corporate management,D2513,Hired and Contracted services,350.00,Her Majestys Court Service,Hired and contracted services - Court Costs/Fees,2046915,202309
Rother District Council,01/09/2023,T31CHFFIN,Chief Finance Officer (S151),20209,Corporate management,D2513,Hired and Contracted services,147.00,Her Majestys Court Service,Hired and contracted services - Court Costs/Fees,2046916,202309
Rother District Council,01/09/2023,T31CHFFIN,Chief Finance Officer (S151),20209,Corporate management,D2513,Hired and Contracted services,432.00,Her Majestys Court Service,Hired and contracted services - Court Costs/Fees,2046917,202309
Rother District Council,27/07/2023,T31CHFFIN,Chief Finance Officer (S151),20222,Accountancy,A2203,Training,165.00,LAVAT Consulting Ltd (PSTAX),Training,2043775,202308
Rother District Council,26/10/2023,T31CHFFIN,Chief Finance Officer (S151),20222,Accountancy,A2203,Training,"2,850.00",LAVAT Consulting Ltd (PSTAX),Training,2045338,202307
Rother District Council,01/06/2023,T31CHFFIN,Chief Finance Officer (S151),20209,Corporate management,D2513,Hired and Contracted services,50.00,Lloyds Bank,Bank Charges,2044669,202307
Rother District Council,01/07/2023,T31CHFFIN,Chief Finance Officer (S151),20209,Corporate management,D2513,Hired and Contracted services,20.00,Lloyds Bank,Bank Charges,2044670,202307
Rother District Council,01/06/2023,T31CHFFIN,Chief Finance Officer (S151),20209,Corporate management,D2513,Hired and Contracted services,30.00,Lloyds Bank,Bank Charges,2044671,202307
Rother District Council,01/07/2023,T31CHFFIN,Chief Finance Officer (S151),20209,Corporate management,D2513,Hired and Contracted services,20.00,Lloyds Bank,Bank Charges,2044672,202307
Rother District Council,01/06/2023,T31CHFFIN,Chief Finance Officer (S151),20209,Corporate management,D2513,Hired and Contracted services,910.29,Lloyds Bank,Bank Charges,2044673,202307
Rother District Council,01/07/2023,T31CHFFIN,Chief Finance Officer (S151),20209,Corporate management,D2513,Hired and Contracted services,"1,017.99",Lloyds Bank,Bank Charges,2044674,202307
Rother District Council,01/06/2023,T31CHFFIN,Chief Finance Officer (S151),20209,Corporate management,D2513,Hired and Contracted services,"2,597.85",Lloyds Bank,Bank Charges,2044675,202307
Rother District Council,01/07/2023,T31CHFFIN,Chief Finance Officer (S151),20209,Corporate management,D2513,Hired and Contracted services,"2,694.40",Lloyds Bank,Bank Charges,2044676,202307
Rother District Council,01/06/2023,T31CHFFIN,Chief Finance Officer (S151),20209,Corporate management,D2513,Hired and Contracted services,20.02,Lloyds Bank,Bank Charges,2044677,202307
Rother District Council,01/07/2023,T31CHFFIN,Chief Finance Officer (S151),20209,Corporate management,D2513,Hired and Contracted services,50.03,Lloyds Bank,Bank Charges,2044678,202307
Rother District Council,01/06/2023,T31CHFFIN,Chief Finance Officer (S151),20209,Corporate management,D2513,Hired and Contracted services,20.00,Lloyds Bank,Bank Charges,2044679,202307
Rother District Council,01/07/2023,T31CHFFIN,Chief Finance Officer (S151),20209,Corporate management,D2513,Hired and Contracted services,20.00,Lloyds Bank,Bank Charges,2044680,202307
Rother District Council,01/07/2023,T31CHFFIN,Chief Finance Officer (S151),20209,Corporate management,D2513,Hired and Contracted services,20.00,Lloyds Bank,Bank Charges,2044681,202307
Rother District Council,01/06/2023,T31CHFFIN,Chief Finance Officer (S151),20209,Corporate management,D2513,Hired and Contracted services,20.00,Lloyds Bank,Bank Charges,2044682,202307
Rother District Council,01/07/2023,T31CHFFIN,Chief Finance Officer (S151),20209,Corporate management,D2513,Hired and Contracted services,20.00,Lloyds Bank,Bank Charges,2044683,202307
Rother District Council,01/06/2023,T31CHFFIN,Chief Finance Officer (S151),20209,Corporate management,D2513,Hired and Contracted services,20.00,Lloyds Bank,Bank Charges,2044684,202307
Rother District Council,01/07/2023,T31CHFFIN,Chief Finance Officer (S151),20209,Corporate management,D2513,Hired and Contracted services,20.00,Lloyds Bank,Bank Charges,2044685,202307
Rother District Council,01/06/2023,T31CHFFIN,Chief Finance Officer (S151),20209,Corporate management,D2513,Hired and Contracted services,20.00,Lloyds Bank,Bank Charges,2044686,202307
Rother District Council,01/07/2023,T31CHFFIN,Chief Finance Officer (S151),20209,Corporate management,D2513,Hired and Contracted services,30.00,Lloyds Bank,Bank Charges,2044687,202307
Rother District Council,01/06/2023,T31CHFFIN,Chief Finance Officer (S151),20209,Corporate management,D2513,Hired and Contracted services,30.00,Lloyds Bank,Bank Charges,2044688,202307
Rother District Council,09/05/2023,T31CHFFIN,Chief Finance Officer (S151),20209,Corporate management,D2513,Hired and Contracted services,150.30,Lloyds Bank,Bank Charges,2044812,202307
Rother District Council,12/05/2023,T31CHFFIN,Chief Finance Officer (S151),20209,Corporate management,D2513,Hired and Contracted services,284.25,Lloyds Bank,Bank Charges,2044813,202307
Rother District Council,12/05/2023,T31CHFFIN,Chief Finance Officer (S151),20209,Corporate management,D2513,Hired and Contracted services,848.74,Lloyds Bank,Bank Charges,2044814,202307
Rother District Council,07/06/2023,T31CHFFIN,Chief Finance Officer (S151),20209,Corporate management,D2513,Hired and Contracted services,76.87,Lloyds Bank,Bank Charges,2044856,202307
Rother District Council,14/06/2023,T31CHFFIN,Chief Finance Officer (S151),20209,Corporate management,D2513,Hired and Contracted services,304.35,Lloyds Bank,Bank Charges,2044857,202307
Rother District Council,14/07/2023,T31CHFFIN,Chief Finance Officer (S151),20209,Corporate management,D2513,Hired and Contracted services,296.55,Lloyds Bank,Bank Charges,2044858,202307
Rother District Council,09/01/2023,T31CHFFIN,Chief Finance Officer (S151),20222,Accountancy,D2513,Hired and Contracted services,10.00,Lloyds Bank,,2046244,202308
Rother District Council,09/01/2023,T31CHFFIN,Chief Finance Officer (S151),20222,Accountancy,D2513,Hired and Contracted services,55.85,Lloyds Bank,,2046244,202308
Rother District Council,09/03/2023,T31CHFFIN,Chief Finance Officer (S151),20222,Accountancy,D2513,Hired and Contracted services,10.99,Lloyds Bank,,2046260,202308
Rother District Council,09/03/2023,T31CHFFIN,Chief Finance Officer (S151),20222,Accountancy,D2513,Hired and Contracted services,2.00,Lloyds Bank,,2046260,202308
Rother District Council,13/02/2023,T31CHFFIN,Chief Finance Officer (S151),20209,Corporate management,D2513,Hired and Contracted services,62.52,Lloyds Bank,Bank Charges,2046465,202308
Rother District Council,01/08/2023,T31CHFFIN,Chief Finance Officer (S151),20209,Corporate management,D2513,Hired and Contracted services,20.00,Lloyds Bank,Bank Charges,2046875,202309
Rother District Council,01/09/2023,T31CHFFIN,Chief Finance Officer (S151),20209,Corporate management,D2513,Hired and Contracted services,20.00,Lloyds Bank,Bank Charges,2046876,202309
Rother District Council,01/10/2023,T31CHFFIN,Chief Finance Officer (S151),20209,Corporate management,D2513,Hired and Contracted services,20.00,Lloyds Bank,Bank Charges,2046877,202309
Rother District Council,01/09/2023,T31CHFFIN,Chief Finance Officer (S151),20209,Corporate management,D2513,Hired and Contracted services,20.00,Lloyds Bank,Bank Charges,2046878,202309
Rother District Council,01/08/2023,T31CHFFIN,Chief Finance Officer (S151),20209,Corporate management,D2513,Hired and Contracted services,20.00,Lloyds Bank,Bank Charges,2046879,202309
Rother District Council,01/10/2023,T31CHFFIN,Chief Finance Officer (S151),20209,Corporate management,D2513,Hired and Contracted services,20.00,Lloyds Bank,Bank Charges,2046880,202309
Rother District Council,01/09/2023,T31CHFFIN,Chief Finance Officer (S151),20209,Corporate management,D2513,Hired and Contracted services,20.00,Lloyds Bank,Bank Charges,2046881,202309
Rother District Council,01/08/2023,T31CHFFIN,Chief Finance Officer (S151),20209,Corporate management,D2513,Hired and Contracted services,20.00,Lloyds Bank,Bank Charges,2046882,202309
Rother District Council,01/10/2023,T31CHFFIN,Chief Finance Officer (S151),20209,Corporate management,D2513,Hired and Contracted services,20.00,Lloyds Bank,Bank Charges,2046883,202309
Rother District Council,01/09/2023,T31CHFFIN,Chief Finance Officer (S151),20209,Corporate management,D2513,Hired and Contracted services,20.00,Lloyds Bank,Bank Charges,2046884,202309
Rother District Council,01/08/2023,T31CHFFIN,Chief Finance Officer (S151),20209,Corporate management,D2513,Hired and Contracted services,20.00,Lloyds Bank,Bank Charges,2046885,202309
Rother District Council,01/10/2023,T31CHFFIN,Chief Finance Officer (S151),20209,Corporate management,D2513,Hired and Contracted services,20.00,Lloyds Bank,Bank Charges,2046886,202309
Rother District Council,01/09/2023,T31CHFFIN,Chief Finance Officer (S151),20209,Corporate management,D2513,Hired and Contracted services,20.00,Lloyds Bank,Bank Charges,2046887,202309
Rother District Council,01/08/2023,T31CHFFIN,Chief Finance Officer (S151),20209,Corporate management,D2513,Hired and Contracted services,20.00,Lloyds Bank,Bank Charges,2046888,202309
Rother District Council,01/10/2023,T31CHFFIN,Chief Finance Officer (S151),20209,Corporate management,D2513,Hired and Contracted services,20.00,Lloyds Bank,Bank Charges,2046889,202309
Rother District Council,01/09/2023,T31CHFFIN,Chief Finance Officer (S151),20209,Corporate management,D2513,Hired and Contracted services,50.00,Lloyds Bank,Bank Charges,2046890,202309
Rother District Council,01/09/2023,T31CHFFIN,Chief Finance Officer (S151),20209,Corporate management,D2513,Hired and Contracted services,50.06,Lloyds Bank,Bank Charges,2046891,202309
Rother District Council,01/08/2023,T31CHFFIN,Chief Finance Officer (S151),20209,Corporate management,D2513,Hired and Contracted services,50.02,Lloyds Bank,Bank Charges,2046892,202309
Rother District Council,01/09/2023,T31CHFFIN,Chief Finance Officer (S151),20209,Corporate management,D2513,Hired and Contracted services,"2,186.97",Lloyds Bank,Bank Charges,2046893,202309
Rother District Council,01/09/2023,T31CHFFIN,Chief Finance Officer (S151),20209,Corporate management,D2513,Hired and Contracted services,206.00,Lloyds Bank,Bank Charges,2046893,202309
Rother District Council,01/08/2023,T31CHFFIN,Chief Finance Officer (S151),20209,Corporate management,D2513,Hired and Contracted services,"2,239.65",Lloyds Bank,Bank Charges,2046894,202309
Rother District Council,01/10/2023,T31CHFFIN,Chief Finance Officer (S151),20209,Corporate management,D2513,Hired and Contracted services,"2,221.69",Lloyds Bank,Bank Charges,2046895,202309
Rother District Council,01/09/2023,T31CHFFIN,Chief Finance Officer (S151),20209,Corporate management,D2513,Hired and Contracted services,837.58,Lloyds Bank,Bank Charges,2046896,202309
Rother District Council,01/08/2023,T31CHFFIN,Chief Finance Officer (S151),20209,Corporate management,D2513,Hired and Contracted services,886.15,Lloyds Bank,Bank Charges,2046897,202309
Rother District Council,01/10/2023,T31CHFFIN,Chief Finance Officer (S151),20209,Corporate management,D2513,Hired and Contracted services,854.73,Lloyds Bank,Bank Charges,2046898,202309
Rother District Council,01/09/2023,T31CHFFIN,Chief Finance Officer (S151),20209,Corporate management,D2513,Hired and Contracted services,20.00,Lloyds Bank,Bank Charges,2046899,202309
Rother District Council,01/08/2023,T31CHFFIN,Chief Finance Officer (S151),20209,Corporate management,D2513,Hired and Contracted services,20.00,Lloyds Bank,,2046900,202309
Rother District Council,01/10/2023,T31CHFFIN,Chief Finance Officer (S151),20209,Corporate management,D2513,Hired and Contracted services,20.00,Lloyds Bank,Bank Charges,2046901,202309
Rother District Council,01/09/2023,T31CHFFIN,Chief Finance Officer (S151),20209,Corporate management,D2513,Hired and Contracted services,20.00,Lloyds Bank,Bank Charges,2046902,202309
Rother District Council,01/08/2023,T31CHFFIN,Chief Finance Officer (S151),20209,Corporate management,D2513,Hired and Contracted services,20.00,Lloyds Bank,Bank Charges,2046903,202309
Rother District Council,01/10/2023,T31CHFFIN,Chief Finance Officer (S151),20209,Corporate management,D2513,Hired and Contracted services,20.00,Lloyds Bank,Bank Charges,2046904,202309
Rother District Council,14/08/2023,T31CHFFIN,Chief Finance Officer (S151),20209,Corporate management,D2513,Hired and Contracted services,298.65,Lloyds Bank,Bank Charges,2046910,202309
Rother District Council,07/09/2023,T31CHFFIN,Chief Finance Officer (S151),20209,Corporate management,D2513,Hired and Contracted services,83.44,Lloyds Bank,Bank Charges,2046911,202309
Rother District Council,13/10/2023,T31CHFFIN,Chief Finance Officer (S151),20209,Corporate management,D2513,Hired and Contracted services,288.45,Lloyds Bank,Bank Charges,2046912,202309
Rother District Council,14/09/2023,T31CHFFIN,Chief Finance Officer (S151),20209,Corporate management,D2513,Hired and Contracted services,301.95,Lloyds Bank,Bank Charges,2046913,202309
Rother District Council,01/06/2023,T31CHFFIN,Chief Finance Officer (S151),20209,Corporate management,D2513,Hired and Contracted services,20.09,Merchant Rentals Ltd,Hired and contracted services - Streamline Machine-Rental,2045040,202307
Rother District Council,01/07/2023,T31CHFFIN,Chief Finance Officer (S151),20209,Corporate management,D2513,Hired and Contracted services,28.29,Merchant Rentals Ltd,Hired and contracted services - Streamline Machine-Rental,2045041,202307
Rother District Council,01/08/2023,T31CHFFIN,Chief Finance Officer (S151),20209,Corporate management,D2513,Hired and Contracted services,28.29,Merchant Rentals Ltd,Hired and contracted services - Streamline Machine-Rental,2045042,202307
Rother District Council,01/09/2023,T31CHFFIN,Chief Finance Officer (S151),20209,Corporate management,D2513,Hired and Contracted services,28.29,Merchant Rentals Ltd,Hired and contracted services - Streamline Machine-Rental,2045043,202307
Rother District Council,01/10/2023,T31CHFFIN,Chief Finance Officer (S151),20209,Corporate management,D2513,Hired and Contracted services,28.29,Merchant Rentals Ltd,Hired and contracted services - Streamline Machine-Rental,2045044,202307
Rother District Council,18/10/2023,T31CHFFIN,Chief Finance Officer (S151),20222,Accountancy,D2509,Consultants and Other Services,325.00,Oyster Partnership,Consultants and other services - Consultants Fees,2046054,202308
Rother District Council,08/11/2023,T31CHFFIN,Chief Finance Officer (S151),20222,Accountancy,D2509,Consultants and Other Services,325.00,Oyster Partnership,Consultants and other services - Consultants Fees,2046055,202308
Rother District Council,07/08/2023,T31CHFFIN,Chief Finance Officer (S151),20209,Corporate management,D2513,Hired and Contracted services,335.37,Pay 360 Ltd,Bank Charges,2045051,202307
Rother District Council,06/05/2023,T31CHFFIN,Chief Finance Officer (S151),20209,Corporate management,D2513,Hired and Contracted services,291.41,Pay 360 Ltd,Bank Charges,2045052,202307
Rother District Council,07/09/2023,T31CHFFIN,Chief Finance Officer (S151),20209,Corporate management,D2513,Hired and Contracted services,306.74,Pay 360 Ltd,Bank Charges,2045053,202307
Rother District Council,10/07/2023,T31CHFFIN,Chief Finance Officer (S151),20209,Corporate management,D2513,Hired and Contracted services,397.95,Pay 360 Ltd,Bank Charges,2045054,202307
Rother District Council,03/10/2023,T31CHFFIN,Chief Finance Officer (S151),20222,Accountancy,A1110,Agency Staff,"12,730.00",Penna PLC,Agency Staff,2045444,202308
Rother District Council,03/10/2023,T31CHFFIN,Chief Finance Officer (S151),20222,Accountancy,A1110,Agency Staff,"10,720.00",Penna PLC,Agency Staff,2045445,202308
Rother District Council,03/10/2023,T31CHFFIN,Chief Finance Officer (S151),20222,Accountancy,A1110,Agency Staff,"2,010.00",Penna PLC,Agency Staff,2045446,202308
Rother District Council,03/10/2023,T31CHFFIN,Chief Finance Officer (S151),20222,Accountancy,A1110,Agency Staff,"1,340.00",Penna PLC,Agency Staff,2045447,202308
Rother District Council,02/11/2023,T31CHFFIN,Chief Finance Officer (S151),20222,Accountancy,A1110,Agency Staff,"14,405.00",Penna PLC,Agency Staff,2046280,202309
Rother District Council,02/11/2023,T31CHFFIN,Chief Finance Officer (S151),20222,Accountancy,A1110,Agency Staff,"2,680.00",Penna PLC,Agency Staff,2046282,202309
Rother District Council,02/11/2023,T31CHFFIN,Chief Finance Officer (S151),20222,Accountancy,A1110,Agency Staff,"10,720.00",Penna PLC,Agency Staff,2046283,202309
Rother District Council,04/12/2023,T31CHFFIN,Chief Finance Officer (S151),20222,Accountancy,A1110,Agency Staff,"14,070.00",Penna PLC,Agency Staff,2046635,202309
Rother District Council,04/12/2023,T31CHFFIN,Chief Finance Officer (S151),20222,Accountancy,A1110,Agency Staff,"14,070.00",Penna PLC,Agency Staff,2046636,202309
Rother District Council,45181,T31CHFFIN,Chief Finance Officer (S151),20209,Corporate management,D2513,Hired and Contracted services," 3,000.00 ",Wilks Head and Eve LLP,Hired and contracted services - Service fee paid,2044696,202307
Rother District Council,30/10/2023,T31DEMSERV,Democratic Services,20156,Representing Local Interest,D2734,Members Training and Seminars,804.00,Beckwith Consulting Ltd,Grants made,2046127,202308
Rother District Council,02/11/2023,T31DEMSERV,Democratic Services,20156,Representing Local Interest,D2513,Hired and Contracted services,58.50,Brede Village Hall,Grants made,2045645,202308
Rother District Council,29/09/2023,T31DEMSERV,Democratic Services,20162,Electoral Registration,D2415,Printing by external suppliers,"1,174.60",Civica Election Services Ltd,Grants made,2045381,202307
Rother District Council,14/11/2023,T31DEMSERV,Democratic Services,20162,Electoral Registration,D2415,Printing by external suppliers,79.00,Civica Election Services Ltd,Grants made,2046960,202309
Rother District Council,06/11/2023,T31DEMSERV,Democratic Services,20162,Electoral Registration,D2415,Printing by external suppliers,600.00,Civica Election Services Ltd,Grants made,2046961,202309
Rother District Council,31/10/2023,T31DEMSERV,Democratic Services,20162,Electoral Registration,D2415,Printing by external suppliers,"2,156.50",Civica Election Services Ltd,Grants made,2047094,202309
Rother District Council,20/12/2023,T31DEMSERV,Democratic Services,20158,Committee Service General Exp,C2337,Car payment options,101.65,REDACTED PERSONAL DATA,Grants made,2047137,202309
Rother District Council,11/10/2023,T31DEMSERV,Democratic Services,20156,Representing Local Interest,D2736,Chairmans Allowance,38.00,East Sussex Prayer Breakfast,Grants made,2045511,202308
Rother District Council,11/10/2023,T31DEMSERV,Democratic Services,20156,Representing Local Interest,D2737,Vice Chairmans Allowance,38.00,East Sussex Prayer Breakfast,Grants made,2045513,202308
Rother District Council,05/10/2023,T31DEMSERV,Democratic Services,20156,Representing Local Interest,D2513,Hired and Contracted services,345.00,Empress Coaches Ltd,Telephones,2045291,202307
Rother District Council,14/11/2023,T31DEMSERV,Democratic Services,20156,Representing Local Interest,D2513,Hired and Contracted services,345.00,Empress Coaches Ltd,Telephones,2046446,202308
Rother District Council,11/12/2023,T31DEMSERV,Democratic Services,20156,Representing Local Interest,D2513,Hired and Contracted services,345.00,Empress Coaches Ltd,Telephones,2046827,202309
Rother District Council,16/10/2023,T31DEMSERV,Democratic Services,20156,Representing Local Interest,D2734,Members Training and Seminars,975.00,Local Government Information Unit,Members Training and Seminars,2045894,202308
Rother District Council,02/10/2023,T31DEMSERV,Democratic Services,20163,District Council Elections,D1201,Equipment & Materials,"14,910.00",Modern Democracy Ltd,Equipment & Materials - election only - equipment cost,2045346,202307
Rother District Council,06/12/2023,T31DEMSERV,Democratic Services,20156,Representing Local Interest,D2513,Hired and Contracted services,120.00,REDACTED PERSONAL DATA,Hired and contracted services - Independent Remuneration Panal Expenses,2046793,202309
Rother District Council,13/10/2023,T31DEMSERV,Democratic Services,20162,Electoral Registration,A2202,Recruitment expenses,788.88,National World Publishing Ltd,Recruitment expenses Advertising Vacant Post,2046163,202308
Rother District Council,07/11/2023,T31DEMSERV,Democratic Services,20156,Representing Local Interest,D2513,Hired and Contracted services,734.00,Old Town Occasions Limited,Hired and contracted services - Hire of Meeting Room,2045728,202308
Rother District Council,24/09/2023,T31DEMSERV,Democratic Services,20156,Representing Local Interest,D2513,Hired and Contracted services,400.00,Right Guard Security UK Ltd,Hired and contracted services - Standards Investigator (Demo. Srvs),2045555,202308
Rother District Council,15/11/2023,T31DEMSERV,Democratic Services,20156,Representing Local Interest,D2513,Hired and Contracted services,70.00,REDACTED PERSONAL DATA,Hired and contracted services - Sign Writing,2046669,202309
Rother District Council,18/09/2023,T31DEMSERV,Democratic Services,20162,Electoral Registration,D2626,Postages,145.00,Royal Mail Group Ltd,Postages - Response Service-Royal Mail Chg,2045179,202307
Rother District Council,11/10/2023,T31DEMSERV,Democratic Services,20162,Electoral Registration,D2626,Postages,240.70,Royal Mail Group Ltd,Postages - Response Service-Royal Mail Chg,2045183,202307
Rother District Council,09/10/2023,T31DEMSERV,Democratic Services,20162,Electoral Registration,D2626,Postages,115.42,Royal Mail Group Ltd,Postages - Response Service-Royal Mail Chg,2045223,202307
Rother District Council,16/10/2023,T31DEMSERV,Democratic Services,20162,Electoral Registration,D2626,Postages,79.10,Royal Mail Group Ltd,Postages - Response Service-Royal Mail Chg,2045317,202307
Rother District Council,18/09/2023,T31DEMSERV,Democratic Services,20162,Electoral Registration,D2626,Postages,174.58,Royal Mail Group Ltd,Postages - Response Service-Royal Mail Chg,2045373,202307
Rother District Council,02/10/2023,T31DEMSERV,Democratic Services,20162,Electoral Registration,D2626,Postages,9.84,Royal Mail Group Ltd,Postages - Response Service-Royal Mail Chg,2045427,202308
Rother District Council,09/10/2023,T31DEMSERV,Democratic Services,20162,Electoral Registration,D2626,Postages,165.30,Royal Mail Group Ltd,Postages - Response Service-Royal Mail Chg,2045430,202308
Rother District Council,02/10/2023,T31DEMSERV,Democratic Services,20162,Electoral Registration,D2626,Postages,116.00,Royal Mail Group Ltd,Postages - Response Service-Royal Mail Chg,2045431,202308
Rother District Council,02/10/2023,T31DEMSERV,Democratic Services,20162,Electoral Registration,D2626,Postages,190.01,Royal Mail Group Ltd,Postages - Response Service-Royal Mail Chg,2045432,202308
Rother District Council,25/09/2023,T31DEMSERV,Democratic Services,20162,Electoral Registration,D2626,Postages,181.41,Royal Mail Group Ltd,Postages - Response Service-Royal Mail Chg,2045433,202308
Rother District Council,23/10/2023,T31DEMSERV,Democratic Services,20162,Electoral Registration,D2626,Postages,74.90,Royal Mail Group Ltd,Postages - Response Service-Royal Mail Chg,2045434,202308
Rother District Council,24/04/2023,T31DEMSERV,Democratic Services,20162,Electoral Registration,D2626,Postages,48.14,Royal Mail Group Ltd,Postages - Response Service-Royal Mail Chg,2045886,202308
Rother District Council,45230,T31DEMSERV,Democratic Services,20156,Representing Local Interest,D2736,Chairmans Allowance, 75.00 ,St Mary the Virgin Church Battle,Chairmans Allowance - Chairmans Allowance,2045648,202308
Rother District Council,45188,T31DEMSERV,Democratic Services,20162,Electoral Registration,A2203,Training, 495.00 ,The Association of Electoral Administrators Ltd,Training,2045192,202307
Rother District Council,45219,T31DEMSERV,Democratic Services,20162,Electoral Registration,A2203,Training, 675.00 ,The Association of Electoral Administrators Ltd,Training,2046122,202308
Rother District Council,31/07/2023,T31HUMANRES,Human Resources,20173,Administrative Offices - Town Hall,B2611,Contract cleaning,268.00,Abacus Main Ltd,Derv,2045068,202307
Rother District Council,30/09/2023,T31HUMANRES,Human Resources,20173,Administrative Offices - Town Hall,B2611,Contract cleaning,268.00,Abacus Main Ltd,Derv,2045883,202308
Rother District Council,30/11/2023,T31HUMANRES,Human Resources,20173,Administrative Offices - Town Hall,B2611,Contract cleaning,238.00,Abacus Main Ltd,Derv,2047049,202309
Rother District Council,30/11/2023,T31HUMANRES,Human Resources,20175,Admin Building - Amherst Rd (fmr Treasurer�s building),B2611,Contract cleaning,30.00,Abacus Main Ltd,Derv,2047049,202309
Rother District Council,27/09/2023,T31HUMANRES,Human Resources,20171,Human Resources,A2203,Training,115.00,ACAS,Derv,2045806,202308
Rother District Council,01/10/2023,T31HUMANRES,Human Resources,20171,Human Resources,D1203,Books And Publications,134.85,Agora Business Publications LLP,Car payment options,2045086,202307
Rother District Council,08/10/2023,T31HUMANRES,Human Resources,20171,Human Resources,D1203,Books And Publications,79.80,Agora Business Publications LLP,Car payment options,2045087,202307
Rother District Council,01/12/2023,T31HUMANRES,Human Resources,20173,Administrative Offices - Town Hall,D2513,Hired and Contracted services,"1,616.36",Alfa Electric Ltd,Accommodation Costs,2046984,202309
Rother District Council,29/08/2023,T31HUMANRES,Human Resources,20175,Admin Building - Amherst Rd (fmr Treasurer�s building),B1100,Repairs to Premises,292.43,Alfa Electric Ltd,Removals and Storage,2044819,202307
Rother District Council,31/08/2023,T31HUMANRES,Human Resources,20173,Administrative Offices - Town Hall,B1100,Repairs to Premises,249.61,Alfa Electric Ltd,Removals and Storage,2044820,202307
Rother District Council,07/11/2023,T31HUMANRES,Human Resources,20173,Administrative Offices - Town Hall,B1100,Repairs to Premises,362.41,Alfa Electric Ltd,Accommodation Costs,2045717,202308
Rother District Council,17/11/2023,T31HUMANRES,Human Resources,20175,Admin Building - Amherst Rd (fmr Treasurer�s building),B1100,Repairs to Premises,499.39,Alfa Electric Ltd,Accommodation Costs,2046993,202309
Rother District Council,19/09/2023,T31HUMANRES,Human Resources,20173,Administrative Offices - Town Hall,D2513,Hired and Contracted services,220.00,Amstech Asbestos Removals Ltd,Accommodation Costs,2045292,202307
Rother District Council,30/08/2023,T31HUMANRES,Human Resources,20176,Administrative Offices - Print Room,B1100,Repairs to Premises,85.00,Amstech Inspections & Testing Ltd,Hired and Contracted services,2045060,202307
Rother District Council,30/08/2023,T31HUMANRES,Human Resources,20173,Administrative Offices - Town Hall,B1100,Repairs to Premises,85.00,Amstech Inspections & Testing Ltd,Hired and Contracted services,2045060,202307
Rother District Council,30/08/2023,T31HUMANRES,Human Resources,20175,Admin Building - Amherst Rd (fmr Treasurer�s building),B1100,Repairs to Premises,85.00,Amstech Inspections & Testing Ltd,Hired and Contracted services,2045060,202307
Rother District Council,22/09/2023,T31HUMANRES,Human Resources,20171,Human Resources,D2513,Hired and Contracted services,247.19,AVC Wise Ltd,Grants made,2044751,202307
Rother District Council,23/10/2023,T31HUMANRES,Human Resources,20171,Human Resources,D2513,Hired and Contracted services,278.65,AVC Wise Ltd,Grants made,2045333,202307
Rother District Council,23/11/2023,T31HUMANRES,Human Resources,20171,Human Resources,D2513,Hired and Contracted services,278.65,AVC Wise Ltd,Grants made,2046396,202308
Rother District Council,30/10/2023,T31HUMANRES,Human Resources,20173,Administrative Offices - Town Hall,B1100,Repairs to Premises,125.00,B and G Environmental Services Limited,Grants made,2046476,202308
Rother District Council,20/12/2023,T31HUMANRES,Human Resources,20171,Human Resources,C2337,Car payment options,101.65,REDACTED PERSONAL DATA,Grants made,2047137,202309
Rother District Council,08/08/2023,T31HUMANRES,Human Resources,20173,Administrative Offices - Town Hall,B1100,Repairs to Premises,500.00,Black Sheep Engineering Ltd,Grants made,2045139,202307
Rother District Council,08/08/2023,T31HUMANRES,Human Resources,20176,Administrative Offices - Print Room,B1100,Repairs to Premises,180.00,Black Sheep Engineering Ltd,Grants made,2045139,202307
Rother District Council,08/08/2023,T31HUMANRES,Human Resources,20173,Administrative Offices - Town Hall,B1100,Repairs to Premises,"1,370.00",Black Sheep Engineering Ltd,Grants made,2045141,202307
Rother District Council,08/08/2023,T31HUMANRES,Human Resources,20176,Administrative Offices - Print Room,B1100,Repairs to Premises,500.00,Black Sheep Engineering Ltd,Grants made,2045141,202307
Rother District Council,19/09/2023,T31HUMANRES,Human Resources,20173,Administrative Offices - Town Hall,B1100,Repairs to Premises,125.00,Black Sheep Engineering Ltd,Grants made,2045429,202308
Rother District Council,06/10/2023,T31HUMANRES,Human Resources,20175,Admin Building - Amherst Rd (fmr Treasurer�s building),B1100,Repairs to Premises,350.00,Black Sheep Engineering Ltd,Grants made,2045742,202308
Rother District Council,06/10/2023,T31HUMANRES,Human Resources,20173,Administrative Offices - Town Hall,B1100,Repairs to Premises,480.00,Black Sheep Engineering Ltd,Grants made,2045742,202308
Rother District Council,06/10/2023,T31HUMANRES,Human Resources,20173,Administrative Offices - Town Hall,B1100,Repairs to Premises,90.00,Black Sheep Engineering Ltd,Grants made,2045744,202308
Rother District Council,06/10/2023,T31HUMANRES,Human Resources,20175,Admin Building - Amherst Rd (fmr Treasurer�s building),B1100,Repairs to Premises,180.00,Black Sheep Engineering Ltd,Grants made,2045744,202308
Rother District Council,06/10/2023,T31HUMANRES,Human Resources,20176,Administrative Offices - Print Room,B1100,Repairs to Premises,270.00,Black Sheep Engineering Ltd,Grants made,2045744,202308
Rother District Council,06/10/2023,T31HUMANRES,Human Resources,20173,Administrative Offices - Town Hall,B1100,Repairs to Premises,985.00,Black Sheep Engineering Ltd,Grants made,2046067,202308
Rother District Council,07/11/2023,T31HUMANRES,Human Resources,20173,Administrative Offices - Town Hall,B1100,Repairs to Premises,220.00,Black Sheep Engineering Ltd,Grants made,2046295,202308
Rother District Council,15/09/2023,T31HUMANRES,Human Resources,20173,Administrative Offices - Town Hall,B1100,Repairs to Premises,50.00,Booker and Best Ltd,Grants made,2045182,202307
Rother District Council,02/10/2023,T31HUMANRES,Human Resources,20175,Admin Building - Amherst Rd (fmr Treasurer�s building),B1100,Repairs to Premises,100.00,Booker and Best Ltd,Grants made,2045364,202308
Rother District Council,16/11/2023,T31HUMANRES,Human Resources,20173,Administrative Offices - Town Hall,B1100,Repairs to Premises,296.40,Colours Timber Ltd,Grants made,2046947,202309
Rother District Council,22/11/2023,T31HUMANRES,Human Resources,20173,Administrative Offices - Town Hall,B1100,Repairs to Premises,7.61,Colours Timber Ltd,Grants made,2046969,202309
Rother District Council,31/08/2023,T31HUMANRES,Human Resources,20171,Human Resources,D2513,Hired and Contracted services,23.44,Computershare Voucher Services,Grants made,2045070,202307
Rother District Council,02/10/2023,T31HUMANRES,Human Resources,20171,Human Resources,D2513,Hired and Contracted services,23.44,Computershare Voucher Services,Grants made,2045071,202307
Rother District Council,16/10/2023,T31HUMANRES,Human Resources,20171,Human Resources,D2513,Hired and Contracted services,8.00,Computershare Voucher Services,Grants made,2045072,202307
Rother District Council,25/07/2023,T31HUMANRES,Human Resources,20171,Human Resources,A2203,Training,818.10,Croner Group Ltd,Grants made,2044815,202307
Rother District Council,25/07/2023,T31HUMANRES,Human Resources,20171,Human Resources,A2203,Training,101.81,Croner Group Ltd,Grants made,2044815,202307
Rother District Council,25/05/2023,T31HUMANRES,Human Resources,20171,Human Resources,A2203,Training,101.81,Croner Group Ltd,Grants made,2044816,202307
Rother District Council,25/05/2023,T31HUMANRES,Human Resources,20171,Human Resources,A2203,Training,818.10,Croner Group Ltd,Grants made,2044816,202307
Rother District Council,25/06/2023,T31HUMANRES,Human Resources,20171,Human Resources,A2203,Training,818.10,Croner Group Ltd,Grants made,2046871,202309
Rother District Council,25/06/2023,T31HUMANRES,Human Resources,20171,Human Resources,A2203,Training,101.81,Croner Group Ltd,Grants made,2046871,202309
Rother District Council,25/09/2023,T31HUMANRES,Human Resources,20171,Human Resources,A2203,Training,101.81,Croner Group Ltd,Grants made,2046872,202309
Rother District Council,25/09/2023,T31HUMANRES,Human Resources,20171,Human Resources,A2203,Training,818.10,Croner Group Ltd,Grants made,2046872,202309
Rother District Council,25/10/2023,T31HUMANRES,Human Resources,20171,Human Resources,A2203,Training,818.10,Croner Group Ltd,Grants made,2046873,202309
Rother District Council,25/10/2023,T31HUMANRES,Human Resources,20171,Human Resources,A2203,Training,101.81,Croner Group Ltd,Grants made,2046873,202309
Rother District Council,16/08/2023,T31HUMANRES,Human Resources,20172,Facilities Management,D2312,Refreshments,612.25,Culligan UK Limited,Grants made,2044082,202307
Rother District Council,30/09/2023,T31HUMANRES,Human Resources,20173,Administrative Offices - Town Hall,D2513,Hired and Contracted services,40.00,Data Shredding Services Ltd,Grants made,2045480,202308
Rother District Council,31/10/2023,T31HUMANRES,Human Resources,20173,Administrative Offices - Town Hall,D2513,Hired and Contracted services,40.00,Data Shredding Services Ltd,Grants made,2046135,202308
Rother District Council,30/11/2023,T31HUMANRES,Human Resources,20173,Administrative Offices - Town Hall,D2513,Hired and Contracted services,40.00,Data Shredding Services Ltd,Grants made,2047002,202309
Rother District Council,20/09/2023,T31HUMANRES,Human Resources,20171,Human Resources,D2513,Hired and Contracted services,254.10,DMH Stallard,Grants made,2045560,202308
Rother District Council,30/11/2023,T31HUMANRES,Human Resources,20171,Human Resources,D2513,Hired and Contracted services,363.00,DMH Stallard,Grants made,2047004,202309
Rother District Council,22/09/2023,T31HUMANRES,Human Resources,20175,Admin Building - Amherst Rd (fmr Treasurer�s building),B1100,Repairs to Premises,"1,925.00",East Sussex Lifts Ltd,Grants made,2044990,202307
Rother District Council,13/10/2023,T31HUMANRES,Human Resources,20175,Admin Building - Amherst Rd (fmr Treasurer�s building),B1100,Repairs to Premises,"1,925.00",East Sussex Lifts Ltd,Grants made,2045448,202308
Rother District Council,09/10/2023,T31HUMANRES,Human Resources,20175,Admin Building - Amherst Rd (fmr Treasurer�s building),B1100,Repairs to Premises,240.00,East Sussex Lifts Ltd,Grants made,2045759,202308
Rother District Council,09/10/2023,T31HUMANRES,Human Resources,20173,Administrative Offices - Town Hall,B1100,Repairs to Premises,240.00,East Sussex Lifts Ltd,Grants made,2045759,202308
Rother District Council,25/10/2023,T31HUMANRES,Human Resources,20175,Admin Building - Amherst Rd (fmr Treasurer�s building),B1100,Repairs to Premises,975.00,East Sussex Lifts Ltd,Grants made,2046261,202308
Rother District Council,29/11/2023,T31HUMANRES,Human Resources,20175,Admin Building - Amherst Rd (fmr Treasurer�s building),B1100,Repairs to Premises,540.00,East Sussex Lifts Ltd,Grants made,2046671,202309
Rother District Council,22/11/2023,T31HUMANRES,Human Resources,20173,Administrative Offices - Town Hall,B2612,Cleaning materials,311.90,Ecoprod Technique,Grants made,2046991,202309
Rother District Council,04/10/2023,T31HUMANRES,Human Resources,20173,Administrative Offices - Town Hall,B2201,Electricity,"2,222.16",Ecotricity Ltd,Grants made,2045945,202308
Rother District Council,25/10/2023,T31HUMANRES,Human Resources,20176,Administrative Offices - Print Room,B2201,Electricity,"2,783.19",Ecotricity Ltd,Grants made,2046031,202308
Rother District Council,11/08/2023,T31HUMANRES,Human Resources,20173,Administrative Offices - Town Hall,D1201,Equipment & Materials,923.47,Glasdon U.K. Ltd,Accommodation Costs,2044911,202307
Rother District Council,05/12/2023,T31HUMANRES,Human Resources,20175,Admin Building - Amherst Rd (fmr Treasurer�s building),B1100,Repairs to Premises,61.60,Howden Joinery Ltd,Repairs to Premises - Purchase of Materials - Build Maint,2046756,202309
Rother District Council,05/12/2023,T31HUMANRES,Human Resources,20175,Admin Building - Amherst Rd (fmr Treasurer�s building),B1100,Repairs to Premises,8.73,Howden Joinery Ltd,Repairs to Premises - Purchase of Materials - Build Maint,2046757,202309
Rother District Council,10/11/2023,T31HUMANRES,Human Resources,20173,Administrative Offices - Town Hall,D1201,Equipment & Materials,258.00,J S Fire Protection Ltd,Equipment & Materials - Fire Equipment Maintenance,2046504,202308
Rother District Council,10/11/2023,T31HUMANRES,Human Resources,20175,Admin Building - Amherst Rd (fmr Treasurer�s building),D1201,Equipment & Materials,148.00,J S Fire Protection Ltd,Equipment & Materials - Fire Equipment Maintenance,2046505,202308
Rother District Council,10/11/2023,T31HUMANRES,Human Resources,20176,Administrative Offices - Print Room,D1201,Equipment & Materials,87.50,J S Fire Protection Ltd,Equipment & Materials - Fire Equipment Maintenance,2046506,202308
Rother District Council,30/11/2023,T31HUMANRES,Human Resources,20173,Administrative Offices - Town Hall,D1201,Equipment & Materials,317.00,J S Fire Protection Ltd,Equipment & Materials - Fire Equipment Maintenance,2046950,202309
Rother District Council,30/11/2023,T31HUMANRES,Human Resources,20176,Administrative Offices - Print Room,D1201,Equipment & Materials,185.00,J S Fire Protection Ltd,Equipment & Materials - Fire Equipment Maintenance,2046951,202309
Rother District Council,01/11/2023,T31HUMANRES,Human Resources,20171,Human Resources,A2202,Recruitment expenses,"3,000.00",JGP Resourcing Ltd,Recruitment expenses Advertising Vacant Post,2046233,202308
Rother District Council,30/09/2023,T31HUMANRES,Human Resources,20175,Admin Building - Amherst Rd (fmr Treasurer�s building),B1100,Repairs to Premises,"2,650.00",JS Wadeson Cleaning Services Ltd,Repairs to Premises - Parks - Roofing Repairs,2045642,202308
Rother District Council,17/10/2023,T31HUMANRES,Human Resources,20173,Administrative Offices - Town Hall,B1100,Repairs to Premises,100.00,JS Wadeson Cleaning Services Ltd,Repairs to Premises - Specified Repairs and Works listed,2046214,202308
Rother District Council,13/11/2023,T31HUMANRES,Human Resources,20173,Administrative Offices - Town Hall,B1100,Repairs to Premises,350.00,JS Wadeson Cleaning Services Ltd,Repairs to Premises - Specified Repairs and Works listed,2046215,202308
Rother District Council,06/11/2023,T31HUMANRES,Human Resources,20173,Administrative Offices - Town Hall,B1100,Repairs to Premises,300.00,JS Wadeson Cleaning Services Ltd,Repairs to Premises - Specified Repairs and Works listed,2046216,202308
Rother District Council,05/12/2023,T31HUMANRES,Human Resources,20173,Administrative Offices - Town Hall,B1100,Repairs to Premises,615.00,JS Wadeson Cleaning Services Ltd,Repairs to Premises - Specified Repairs and Works listed,2047018,202309
Rother District Council,05/12/2023,T31HUMANRES,Human Resources,20175,Admin Building - Amherst Rd (fmr Treasurer�s building),B1100,Repairs to Premises,495.00,JS Wadeson Cleaning Services Ltd,Repairs to Premises - Specified Repairs and Works listed,2047019,202309
Rother District Council,05/12/2023,T31HUMANRES,Human Resources,20173,Administrative Offices - Town Hall,B1100,Repairs to Premises,695.00,JS Wadeson Cleaning Services Ltd,Repairs to Premises - Specified Repairs and Works listed,2047020,202309
Rother District Council,27/09/2023,T31HUMANRES,Human Resources,20171,Human Resources,A2203,Training,490.00,REDACTED PERSONAL DATA,Training,2045685,202308
Rother District Council,09/02/2023,T31HUMANRES,Human Resources,20171,Human Resources,D2513,Hired and Contracted services,120.40,Lloyds Bank,Hired and Contracted Services - Health and Safety Act Equipment risk assessment,2046256,202308
Rother District Council,09/03/2023,T31HUMANRES,Human Resources,20171,Human Resources,A2202,Recruitment expenses,18.25,Lloyds Bank,Recruitment expenses Advertising Vacant Post,2046336,202308
Rother District Council,09/01/2023,T31HUMANRES,Human Resources,20175,Admin Building - Amherst Rd (fmr Treasurer�s building),D2312,Refreshments,81.06,Lloyds Bank,Refreshments - Catering/Refreshments for Meetings,2046249,202308
Rother District Council,09/01/2023,T31HUMANRES,Human Resources,20175,Admin Building - Amherst Rd (fmr Treasurer�s building),B1100,Repairs to Premises,12.40,Lloyds Bank,Repairs to Premises - Purchase of Materials - Build Maint,2046249,202308
Rother District Council,11/10/2023,T31HUMANRES,Human Resources,20173,Administrative Offices - Town Hall,B1100,Repairs to Premises,600.00,REDACTED PERSONAL DATA,Repairs to Premises -  Building Surveys and Inspection,2045762,202308
Rother District Council,11/10/2023,T31HUMANRES,Human Resources,20176,Administrative Offices - Print Room,B1100,Repairs to Premises,600.00,REDACTED PERSONAL DATA,Repairs to Premises -  Building Surveys and Inspection,2045762,202308
Rother District Council,31/10/2023,T31HUMANRES,Human Resources,20173,Administrative Offices - Town Hall,B1100,Repairs to Premises,600.00,REDACTED PERSONAL DATA,Repairs to Premises -  Building Surveys and Inspection,2046193,202308
Rother District Council,31/10/2023,T31HUMANRES,Human Resources,20173,Administrative Offices - Town Hall,B1100,Repairs to Premises,600.00,REDACTED PERSONAL DATA,Repairs to Premises -  Building Surveys and Inspection,2046194,202308
Rother District Council,31/10/2023,T31HUMANRES,Human Resources,20173,Administrative Offices - Town Hall,B1100,Repairs to Premises,600.00,REDACTED PERSONAL DATA,Repairs to Premises -  Building Surveys and Inspection,2046195,202308
Rother District Council,31/10/2023,T31HUMANRES,Human Resources,20173,Administrative Offices - Town Hall,B1100,Repairs to Premises,600.00,REDACTED PERSONAL DATA,Repairs to Premises -  Building Surveys and Inspection,2046196,202308
Rother District Council,31/10/2023,T31HUMANRES,Human Resources,20173,Administrative Offices - Town Hall,B1100,Repairs to Premises,600.00,REDACTED PERSONAL DATA,Repairs to Premises -  Building Surveys and Inspection,2046197,202308
Rother District Council,31/10/2023,T31HUMANRES,Human Resources,20173,Administrative Offices - Town Hall,B1100,Repairs to Premises,600.00,REDACTED PERSONAL DATA,Repairs to Premises -  Building Surveys and Inspection,2046198,202308
Rother District Council,10/11/2023,T31HUMANRES,Human Resources,20173,Administrative Offices - Town Hall,B1100,Repairs to Premises,71.60,Phase Electrical Distributors Ltd,Repairs to Premises - Purchase of Materials - Build Maint,2046517,202308
Rother District Council,19/06/2023,T31HUMANRES,Human Resources,20170,Communications-Postages,D2626,Postages,745.55,Pitney Bowes Ltd,Hired and contracted services - Postages franking machine costs,2046869,202309
Rother District Council,11/09/2023,T31HUMANRES,Human Resources,20170,Communications-Postages,D2626,Postages,792.95,Pitney Bowes Ltd,Hired and contracted services - Postages franking machine costs,2046870,202309
Rother District Council,06/09/2023,T31HUMANRES,Human Resources,20170,Communications-Postages,D2513,Hired and Contracted services,500.00,Pitney Bowes Purchase Power,Hired and contracted services - Postages franking machine costs,2045149,202307
Rother District Council,06/09/2023,T31HUMANRES,Human Resources,20170,Communications-Postages,D2513,Hired and Contracted services,6.35,Pitney Bowes Purchase Power,Hired and contracted services - Postages franking machine costs,2045149,202307
Rother District Council,06/11/2023,T31HUMANRES,Human Resources,20170,Communications-Postages,D2626,Postages,"1,060.78",Pitney Bowes Purchase Power,Stock Accounts Town Hall Franking Machine,2045746,202308
Rother District Council,29/09/2023,T31HUMANRES,Human Resources,20171,Human Resources,D2513,Hired and Contracted services,101.56,Posturite (UK) Ltd,Hired and Contracted Services - Health and Safety Act Equipment risk assessment,2045641,202308
Rother District Council,26/09/2023,T31HUMANRES,Human Resources,20175,Admin Building - Amherst Rd (fmr Treasurer�s building),B1100,Repairs to Premises,"37,248.00",Roselands Heating Ltd,Repairs to Premises - Heating Maintenance,2045561,202308
Rother District Council,04/10/2023,T31HUMANRES,Human Resources,20173,Administrative Offices - Town Hall,B1100,Repairs to Premises,75.00,Roselands Heating Ltd,Repairs to Premises - Heating Maintenance,2045864,202308
Rother District Council,04/10/2023,T31HUMANRES,Human Resources,20175,Admin Building - Amherst Rd (fmr Treasurer�s building),B1100,Repairs to Premises,"2,140.20",Roselands Heating Ltd,Repairs to Premises - Heating Maintenance,2045866,202308
Rother District Council,04/10/2023,T31HUMANRES,Human Resources,20173,Administrative Offices - Town Hall,B1100,Repairs to Premises,400.00,Roselands Heating Ltd,Repairs to Premises - Heating Maintenance,2045867,202308
Rother District Council,24/10/2023,T31HUMANRES,Human Resources,20173,Administrative Offices - Town Hall,B1100,Repairs to Premises,200.00,Roselands Heating Ltd,Repairs to Premises - Heating Maintenance,2045978,202308
Rother District Council,27/11/2023,T31HUMANRES,Human Resources,20170,Communications-Postages,D2626,Postages,130.25,Royal Mail Group Ltd,,2046344,202308
Rother District Council,25/09/2023,T31HUMANRES,Human Resources,20170,Communications-Postages,D2626,Postages,150.80,Royal Mail Group Ltd,Postages - Response Service-Royal Mail Chg,2047119,202309
Rother District Council,15/11/2023,T31HUMANRES,Human Resources,20170,Communications-Postages,D2626,Postages,112.28,Royal Mail Group Ltd,Postages - Response Service-Royal Mail Chg,2047120,202309
Rother District Council,23/10/2023,T31HUMANRES,Human Resources,20170,Communications-Postages,D2626,Postages,72.80,Royal Mail Group Ltd,Postages - Response Service-Royal Mail Chg,2047121,202309
Rother District Council,30/10/2023,T31HUMANRES,Human Resources,20170,Communications-Postages,D2626,Postages,60.20,Royal Mail Group Ltd,Postages - Response Service-Royal Mail Chg,2047122,202309
Rother District Council,30/10/2023,T31HUMANRES,Human Resources,20170,Communications-Postages,D2626,Postages,99.90,Royal Mail Group Ltd,Postages - Response Service-Royal Mail Chg,2047123,202309
Rother District Council,28/08/2023,T31HUMANRES,Human Resources,20170,Communications-Postages,D2626,Postages,361.92,Royal Mail Group Ltd,Postages - Response Service-Royal Mail Chg,2047124,202309
Rother District Council,04/09/2023,T31HUMANRES,Human Resources,20170,Communications-Postages,D2626,Postages,382.22,Royal Mail Group Ltd,Postages - Response Service-Royal Mail Chg,2047125,202309
Rother District Council,13/11/2023,T31HUMANRES,Human Resources,20170,Communications-Postages,D2626,Postages,86.10,Royal Mail Group Ltd,Postages - Response Service-Royal Mail Chg,2047126,202309
Rother District Council,13/11/2023,T31HUMANRES,Human Resources,20170,Communications-Postages,D2626,Postages,125.30,Royal Mail Group Ltd,Postages - Response Service-Royal Mail Chg,2047129,202309
Rother District Council,20/11/2023,T31HUMANRES,Human Resources,20170,Communications-Postages,D2626,Postages,97.30,Royal Mail Group Ltd,Postages - Response Service-Royal Mail Chg,2047130,202309
Rother District Council,27/11/2023,T31HUMANRES,Human Resources,20170,Communications-Postages,D2626,Postages,73.36,Royal Mail Group Ltd,Postages - Response Service-Royal Mail Chg,2047131,202309
Rother District Council,04/12/2023,T31HUMANRES,Human Resources,20170,Communications-Postages,D2626,Postages,114.10,Royal Mail Group Ltd,Postages - Response Service-Royal Mail Chg,2047132,202309
Rother District Council,11/12/2023,T31HUMANRES,Human Resources,20170,Communications-Postages,D2626,Postages,54.60,Royal Mail Group Ltd,Postages - Response Service-Royal Mail Chg,2047133,202309
Rother District Council,18/09/2023,T31HUMANRES,Human Resources,20175,Admin Building - Amherst Rd (fmr Treasurer�s building),D2513,Hired and Contracted services,240.00,Safe Water.io,Hired and contracted services - Legionella Sampling and Monitoring,2045477,202308
Rother District Council,18/09/2023,T31HUMANRES,Human Resources,20173,Administrative Offices - Town Hall,D2513,Hired and Contracted services,235.96,Safe Water.io,Hired and contracted services - Legionella Sampling and Monitoring,2045477,202308
Rother District Council,16/10/2023,T31HUMANRES,Human Resources,20173,Administrative Offices - Town Hall,D2513,Hired and Contracted services,23.43,Safe Water.io,Hired and contracted services - Legionella Sampling and Monitoring,2045478,202308
Rother District Council,16/10/2023,T31HUMANRES,Human Resources,20176,Administrative Offices - Print Room,D2513,Hired and Contracted services,15.62,Safe Water.io,Hired and contracted services - Legionella Sampling and Monitoring,2045478,202308
Rother District Council,09/11/2023,T31HUMANRES,Human Resources,20173,Administrative Offices - Town Hall,D2513,Hired and Contracted services,23.43,Safe Water.io,Hired and contracted services - Legionella Sampling and Monitoring,2046391,202308
Rother District Council,09/11/2023,T31HUMANRES,Human Resources,20176,Administrative Offices - Print Room,D2513,Hired and Contracted services,15.62,Safe Water.io,Hired and contracted services - Legionella Sampling and Monitoring,2046391,202308
Rother District Council,11/10/2023,T31HUMANRES,Human Resources,20175,Admin Building - Amherst Rd (fmr Treasurer�s building),B1100,Repairs to Premises,15.15,Saint-Gobain Building Distribution Ltd t/a Jewson,Repairs to Premises - Purchase of Materials - Build Maint,2045654,202308
Rother District Council,12/10/2023,T31HUMANRES,Human Resources,20175,Admin Building - Amherst Rd (fmr Treasurer�s building),B1100,Repairs to Premises,3.10,Saint-Gobain Building Distribution Ltd t/a Jewson,Repairs to Premises - Purchase of Materials - Build Maint,2045658,202308
Rother District Council,12/10/2023,T31HUMANRES,Human Resources,20175,Admin Building - Amherst Rd (fmr Treasurer�s building),B1100,Repairs to Premises,122.65,Saint-Gobain Building Distribution Ltd t/a Jewson,Repairs to Premises - Purchase of Materials - Build Maint,2046068,202308
Rother District Council,02/11/2023,T31HUMANRES,Human Resources,20176,Administrative Offices - Print Room,B2422,Sewerage,30.39,Scottish Water Business Stream Limited,Sewerage - Sewerage Charges,2046647,202309
Rother District Council,45195,T31HUMANRES,Human Resources,20171,Human Resources,D2922,Subscriptions, 425.00 ,Specsavers Optical Superstores Ltd,Subscriptions - Subscription to Organisations,2045475,202308
Rother District Council,45204,T31HUMANRES,Human Resources,20175,Admin Building - Amherst Rd (fmr Treasurer�s building),B1100,Repairs to Premises, 71.00 ,Spy Alarms,Repairs to Premises - Repairs Doors,2046130,202308
Rother District Council,45204,T31HUMANRES,Human Resources,20173,Administrative Offices - Town Hall,B1100,Repairs to Premises, 71.00 ,Spy Alarms,Repairs to Premises - Repairs Doors,2046132,202308
Rother District Council,45188,T31HUMANRES,Human Resources,20175,Admin Building - Amherst Rd (fmr Treasurer�s building),B1100,Repairs to Premises, 26.66 ,Sussex Plumbing Supplies Ltd,Repairs to Premises - Repairs - Plumbing Works,2045166,202307
Rother District Council,45209,T31HUMANRES,Human Resources,20173,Administrative Offices - Town Hall,B1100,Repairs to Premises, 45.85 ,Sussex Plumbing Supplies Ltd,Repairs to Premises - Repairs - Plumbing Works,2045167,202307
Rother District Council,45243,T31HUMANRES,Human Resources,20175,Admin Building - Amherst Rd (fmr Treasurer�s building),B1100,Repairs to Premises, 34.73 ,Sussex Plumbing Supplies Ltd,Repairs to Premises - Purchase of Materials - Build Maint,2045924,202308
Rother District Council,45190,T31HUMANRES,Human Resources,20175,Admin Building - Amherst Rd (fmr Treasurer�s building),B1100,Repairs to Premises, 11.88 ,Trade UK Account (Screwfix & B&Q),Repairs to Premises - Purchase of Materials - Build Maint,2045407,202308
Rother District Council,45188,T31HUMANRES,Human Resources,20175,Admin Building - Amherst Rd (fmr Treasurer�s building),B1100,Repairs to Premises, 11.66 ,Trade UK Account (Screwfix & B&Q),Repairs to Premises - Purchase of Materials - Build Maint,2045411,202308
Rother District Council,45195,T31HUMANRES,Human Resources,20173,Administrative Offices - Town Hall,B1100,Repairs to Premises, 15.83 ,Trade UK Account (Screwfix & B&Q),Repairs to Premises - Purchase of Materials - Build Maint,2045572,202308
Rother District Council,45205,T31HUMANRES,Human Resources,20173,Administrative Offices - Town Hall,B1100,Repairs to Premises, 12.48 ,Trade UK Account (Screwfix & B&Q),Repairs to Premises - Purchase of Materials - Build Maint,2045817,202308
Rother District Council,45246,T31HUMANRES,Human Resources,20173,Administrative Offices - Town Hall,B1100,Repairs to Premises, 56.64 ,Trade UK Account (Screwfix & B&Q),Repairs to Premises - Purchase of Materials - Build Maint,2046205,202308
Rother District Council,45247,T31HUMANRES,Human Resources,20173,Administrative Offices - Town Hall,B1100,Repairs to Premises, 6.96 ,Trade UK Account (Screwfix & B&Q),Repairs to Premises - Purchase of Materials - Build Maint,2046206,202308
Rother District Council,45258,T31HUMANRES,Human Resources,20176,Administrative Offices - Print Room,B1100,Repairs to Premises, 7.74 ,Trade UK Account (Screwfix & B&Q),Repairs to Premises - Purchase of Materials - Build Maint,2046659,202309
Rother District Council,45209,T31HUMANRES,Human Resources,20172,Facilities Management,D2312,Refreshments, 134.55 ,UK Vending Ltd,Refreshments - Plastic Cups,2045556,202308
Rother District Council,45209,T31HUMANRES,Human Resources,20171,Human Resources,D2513,Hired and Contracted services, 185.00 ,Value Products Ltd / First Aid 4 Less,Hired and Contracted Services - Health and Safety Act Equipment risk assessment,2045085,202307
Rother District Council,45197,T31HUMANRES,Human Resources,20173,Administrative Offices - Town Hall,B2612,Cleaning materials, 185.70 ,Wightman and Parrish Ltd,Cleaning materials - Premises,2045132,202307
Rother District Council,45215,T31HUMANRES,Human Resources,20173,Administrative Offices - Town Hall,B2612,Cleaning materials, 108.38 ,Wightman and Parrish Ltd,Cleaning materials - Premises,2045493,202308
Rother District Council,45229,T31HUMANRES,Human Resources,20175,Admin Building - Amherst Rd (fmr Treasurer�s building),B2612,Cleaning materials, 279.86 ,Wightman and Parrish Ltd,Cleaning materials - Premises,2045494,202308
Rother District Council,45229,T31HUMANRES,Human Resources,20173,Administrative Offices - Town Hall,B2612,Cleaning materials, 238.63 ,Wightman and Parrish Ltd,Cleaning materials - Premises,2045494,202308
Rother District Council,45254,T31HUMANRES,Human Resources,20173,Administrative Offices - Town Hall,B2612,Cleaning materials, 85.27 ,Wightman and Parrish Ltd,Cleaning materials - Premises,2047011,202309
Rother District Council,20/12/2023,T32CORPPOL,Corporate Policy & Projects,20121,Policy & Projects Office,C2337,Car payment options,81.29,REDACTED PERSONAL DATA,Grants made,2047137,202309
Rother District Council,01/01/2024,T32CORPPOL,Corporate Policy & Projects,20219,Support To Elect Bodies/Grant,D2923,Grants made,"21,250.00",Citizens Advice 1066,Grants made,2046763,202309
Rother District Council,20/12/2023,T32CORPPOL,Corporate Policy & Projects,20121,Policy & Projects Office,C2337,Car payment options,91.71,REDACTED PERSONAL DATA,,2047137,202309
Rother District Council,10/11/2023,T32CORPPOL,Corporate Policy & Projects,20343,Rother Community Lottery,D2415,Printing by external suppliers,148.50,Printopia Press Ltd,Printing by external suppliers - Printing (Not from RDC Print Room),2046377,202308
Rother District Council,06/11/2023,T32CORPPOL,Corporate Policy & Projects,20219,Support To Elect Bodies/Grant,D2923,Grants made,"9,500.00",Rother Voluntary Action,Grants made - SLA Contribution,2046500,202308
Rother District Council,44987,T32CORPPOL,Corporate Policy & Projects,20142,Performance Management,D2922,Subscriptions, 795.00 ,The Consultation Institute,Subscriptions - Membership-Consultation Institute,2046474,202308
Rother District Council,45257,T32CORPPOL,Corporate Policy & Projects,20121,Policy & Projects Office,A2203,Training, 958.65 ,The Consultation Institute,Training,2046317,202308
Rother District Council,45232,T32CORPPOL,Corporate Policy & Projects,20121,Policy & Projects Office,A2203,Training, 70.00 ,Yellowday Training Ltd,Training,2046285,202308
Rother District Council,45232,T32CORPPOL,Corporate Policy & Projects,20121,Policy & Projects Office,A2203,Training, 70.00 ,Yellowday Training Ltd,Training,2046286,202308
Rother District Council,20/12/2023,T32CORPPROG,Corporate Policy & Projects,20352,Corporate Programme & Improvement,C2337,Car payment options,53.24,REDACTED PERSONAL DATA,Telephones,2047137,202309
Rother District Council,21/11/2023,T32DEPUTYCHF,Deputy Chief Executive,20179,Communications,D2513,Hired and Contracted services,"1,920.00",De La Warr Pavilion (Enterprise) Ltd,Grants made,2046615,202309
Rother District Council,21/11/2023,T32DEPUTYCHF,Deputy Chief Executive,20179,Communications,D2312,Refreshments,470.00,De La Warr Pavilion (Enterprise) Ltd,Grants made,2046615,202309
Rother District Council,14/09/2023,T32DEPUTYCHF,Deputy Chief Executive,20179,Communications,E1101,Third party payment other LAs,"3,600.00",East Sussex County Council,Grants made,2044768,202307
Rother District Council,12/10/2023,T32DEPUTYCHF,Deputy Chief Executive,20179,Communications,E1101,Third party payment other LAs,"3,600.00",East Sussex County Council,Grants made,2045211,202307
Rother District Council,45267,T32DEPUTYCHF,Deputy Chief Executive,20182,Legal Services,E1101,Third party payment other LAs," 64,850.00 ",Wealden District Council,Third party payment other LAs - legal counsel costs to wealden-shared cost,2046817,202309
Rother District Council,20/12/2023,T32DIGCUSSER,Digital & Customer Services,20353,Head of Service - Digital & Customer Services,C2337,Car payment options,131.88,REDACTED PERSONAL DATA,Derv,2047137,202309
Rother District Council,26/10/2023,T32DIGCUSSER,Digital & Customer Services,20239,Computer Services,D2631,Computer Equip Maintenance,500.00,Arcool Ltd,Grants made,2045956,202308
Rother District Council,26/09/2023,T32DIGCUSSER,Digital & Customer Services,20241,Stationery,D2420,General office supplies (Stationery purchased from ext suppliers),31.18,Banner Group Ltd,Grants made,2044988,202307
Rother District Council,19/10/2023,T32DIGCUSSER,Digital & Customer Services,20241,Stationery,D2420,General office supplies (Stationery purchased from ext suppliers),-6.70,Banner Group Ltd,Grants made,2045221,202307
Rother District Council,10/10/2023,T32DIGCUSSER,Digital & Customer Services,20241,Stationery,D2420,General office supplies (Stationery purchased from ext suppliers),22.82,Banner Group Ltd,Grants made,2045482,202308
Rother District Council,17/10/2023,T32DIGCUSSER,Digital & Customer Services,20241,Stationery,D2420,General office supplies (Stationery purchased from ext suppliers),26.65,Banner Group Ltd,Grants made,2046063,202308
Rother District Council,25/10/2023,T32DIGCUSSER,Digital & Customer Services,20241,Stationery,D2420,General office supplies (Stationery purchased from ext suppliers),26.25,Banner Group Ltd,Grants made,2046072,202308
Rother District Council,16/10/2023,T32DIGCUSSER,Digital & Customer Services,20241,Stationery,D2420,General office supplies (Stationery purchased from ext suppliers),37.44,Banner Group Ltd,Grants made,2046123,202308
Rother District Council,19/10/2023,T32DIGCUSSER,Digital & Customer Services,20241,Stationery,D2420,General office supplies (Stationery purchased from ext suppliers),38.53,Banner Group Ltd,Grants made,2046124,202308
Rother District Council,31/10/2023,T32DIGCUSSER,Digital & Customer Services,20241,Stationery,D2420,General office supplies (Stationery purchased from ext suppliers),29.65,Banner Group Ltd,Grants made,2046125,202308
Rother District Council,14/11/2023,T32DIGCUSSER,Digital & Customer Services,20241,Stationery,D2420,General office supplies (Stationery purchased from ext suppliers),16.90,Banner Group Ltd,Grants made,2046496,202308
Rother District Council,15/11/2023,T32DIGCUSSER,Digital & Customer Services,20241,Stationery,D2420,General office supplies (Stationery purchased from ext suppliers),8.12,Banner Group Ltd,Grants made,2046499,202308
Rother District Council,12/09/2023,T32DIGCUSSER,Digital & Customer Services,20242,Communications-Phones,D2621,Telephones,478.17,BT British Telecommunications plc,Grants made,2044950,202307
Rother District Council,12/09/2023,T32DIGCUSSER,Digital & Customer Services,20242,Communications-Phones,D2621,Telephones,40.00,BT British Telecommunications plc,Grants made,2044950,202307
Rother District Council,27/09/2023,T32DIGCUSSER,Digital & Customer Services,20242,Communications-Phones,D2621,Telephones,378.31,BT British Telecommunications plc,Grants made,2045800,202308
Rother District Council,27/09/2023,T32DIGCUSSER,Digital & Customer Services,20242,Communications-Phones,D2621,Telephones,40.00,BT British Telecommunications plc,Grants made,2045800,202308
Rother District Council,27/10/2023,T32DIGCUSSER,Digital & Customer Services,20242,Communications-Phones,D2621,Telephones,387.91,BT British Telecommunications plc,Grants made,2046174,202308
Rother District Council,14/09/2023,T32DIGCUSSER,Digital & Customer Services,20240,Printing Services,D2638,Photocopier Contracts,37.76,Canon (UK) Ltd,Grants made,2044959,202307
Rother District Council,06/09/2023,T32DIGCUSSER,Digital & Customer Services,20240,Printing Services,D2638,Photocopier Contracts,"1,035.52",Canon (UK) Ltd,Grants made,2045147,202307
Rother District Council,17/10/2023,T32DIGCUSSER,Digital & Customer Services,20240,Printing Services,D2638,Photocopier Contracts,38.65,Canon (UK) Ltd,Grants made,2046564,202309
Rother District Council,09/11/2023,T32DIGCUSSER,Digital & Customer Services,20240,Printing Services,D2638,Photocopier Contracts,260.40,Canon (UK) Ltd,Grants made,2046744,202309
Rother District Council,09/11/2023,T32DIGCUSSER,Digital & Customer Services,20240,Printing Services,D2638,Photocopier Contracts,"1,588.84",Canon (UK) Ltd,Grants made,2046745,202309
Rother District Council,09/11/2023,T32DIGCUSSER,Digital & Customer Services,20240,Printing Services,D2638,Photocopier Contracts,"4,011.61",Canon (UK) Ltd,Grants made,2046746,202309
Rother District Council,06/12/2023,T32DIGCUSSER,Digital & Customer Services,20240,Printing Services,D2638,Photocopier Contracts,"1,035.52",Canon (UK) Ltd,Grants made,2046831,202309
Rother District Council,28/09/2023,T32DIGCUSSER,Digital & Customer Services,20240,Printing Services,D2417,Photocopy Paper by external suppliers,706.68,Canon (UK) Ltd,Grants made,2044785,202307
Rother District Council,28/11/2023,T32DIGCUSSER,Digital & Customer Services,20240,Printing Services,D2417,Photocopy Paper by external suppliers,490.87,Canon (UK) Ltd,Grants made,2047024,202309
Rother District Council,01/11/2023,T32DIGCUSSER,Digital & Customer Services,20239,Computer Services,D2631,Computer Equip Maintenance,61.60,CloudConnX Ltd,Grants made,2046139,202308
Rother District Council,01/12/2023,T32DIGCUSSER,Digital & Customer Services,20239,Computer Services,D2631,Computer Equip Maintenance,61.60,CloudConnX Ltd,Grants made,2046689,202309
Rother District Council,01/10/2023,T32DIGCUSSER,Digital & Customer Services,20239,Computer Services,D2633,Computer Equipment,61.60,CloudConnX Ltd,Grants made,2045287,202308
Rother District Council,01/10/2023,T32DIGCUSSER,Digital & Customer Services,20242,Communications-Phones,D2621,Telephones,110.95,Daisy Communications PLC,Grants made,2045696,202308
Rother District Council,01/10/2023,T32DIGCUSSER,Digital & Customer Services,20180,Emergency Planning,D2621,Telephones,22.19,Daisy Communications PLC,Grants made,2045696,202308
Rother District Council,01/10/2023,T32DIGCUSSER,Digital & Customer Services,20239,Computer Services,D2621,Telephones,44.38,Daisy Communications PLC,Grants made,2045696,202308
Rother District Council,01/11/2023,T32DIGCUSSER,Digital & Customer Services,20242,Communications-Phones,D2621,Telephones,110.95,Daisy Communications PLC,Grants made,2046010,202308
Rother District Council,01/11/2023,T32DIGCUSSER,Digital & Customer Services,20180,Emergency Planning,D2621,Telephones,22.19,Daisy Communications PLC,Grants made,2046010,202308
Rother District Council,01/11/2023,T32DIGCUSSER,Digital & Customer Services,20239,Computer Services,D2621,Telephones,44.38,Daisy Communications PLC,Grants made,2046010,202308
Rother District Council,14/09/2023,T32DIGCUSSER,Digital & Customer Services,20239,Computer Services,D2632,Additional Computer Equipment,"5,361.96",Dell Corporation Ltd,Grants made,2045372,202308
Rother District Council,14/11/2023,T32DIGCUSSER,Digital & Customer Services,20239,Computer Services,D2632,Additional Computer Equipment,"5,676.50",Dell Corporation Ltd,Grants made,2046440,202309
Rother District Council,13/11/2023,T32DIGCUSSER,Digital & Customer Services,20239,Computer Services,D2633,Computer Equipment,111.20,Dell Corporation Ltd,Grants made,2046439,202309
Rother District Council,12/10/2023,T32DIGCUSSER,Digital & Customer Services,20236,Customer Services and Development,D2626,Postages,17.26,DSI Billing Services Ltd,Grants made,2045324,202309
Rother District Council,09/11/2023,T32DIGCUSSER,Digital & Customer Services,20239,Computer Services,D2922,Subscriptions,"39,933.55",East Sussex County Council,Grants made,2046472,202308
Rother District Council,01/10/2023,T32DIGCUSSER,Digital & Customer Services,20239,Computer Services,D2631,Computer Equip Maintenance,"1,326.60",FluidOne,Accommodation Costs,2045489,202308
Rother District Council,20/11/2023,T32DIGCUSSER,Digital & Customer Services,20239,Computer Services,D2635,Computer Licences,"1,293.07",Frontier Software Plc,Grants made,2046736,202309
Rother District Council,01/08/2023,T32DIGCUSSER,Digital & Customer Services,20242,Communications-Phones,D2621,Telephones,177.22,GCI National Business / Nasstar,Accommodation Costs,2045352,202308
Rother District Council,30/04/2023,T32DIGCUSSER,Digital & Customer Services,20239,Computer Services,D2635,Computer Licences,"46,994.85",Granicus-Firmstep Ltd,Accommodation Costs,2044659,202307
Rother District Council,10/11/2023,T32DIGCUSSER,Digital & Customer Services,20239,Computer Services,D2631,Computer Equip Maintenance,"10,643.00",Ideal Networks Ltd,Computer Equip Maintenance - Maintenance-File Servers,2046392,202308
Rother District Council,11/10/2023,T32DIGCUSSER,Digital & Customer Services,20239,Computer Services,D2633,Computer Equipment,"2,978.83",Ideal Networks Ltd,Computer Equipment - New - Computer Hardware,2045758,202308
Rother District Council,07/07/2023,T32DIGCUSSER,Digital & Customer Services,20239,Computer Services,A2203,Training,565.24,International Information Systems Security Certification Consortium Ltd,Training,2043551,202307
Rother District Council,29/08/2023,T32DIGCUSSER,Digital & Customer Services,20239,Computer Services,D2415,Printing by external suppliers,18.98,Konica Minolta Business Solutions (UK) Ltd,Printing by external suppliers - Printing (Not from RDC Print Room),2044191,202307
Rother District Council,09/03/2023,T32DIGCUSSER,Digital & Customer Services,20236,Customer Services and Development,D2352,Clothing and Uniforms,-23.56,Lloyds Bank,Clothing and Uniforms - Womens Uniform-Trousers,2046278,202309
Rother District Council,09/03/2023,T32DIGCUSSER,Digital & Customer Services,20236,Customer Services and Development,D2352,Clothing and Uniforms,66.65,Lloyds Bank,Clothing and Uniforms - Mens Protective-Footware,2046278,202309
Rother District Council,09/03/2023,T32DIGCUSSER,Digital & Customer Services,20236,Customer Services and Development,D2352,Clothing and Uniforms,12.50,Lloyds Bank,Clothing and Uniforms - Womens Uniform-Trousers,2046278,202309
Rother District Council,09/03/2023,T32DIGCUSSER,Digital & Customer Services,20236,Customer Services and Development,D2352,Clothing and Uniforms,63.76,Lloyds Bank,Clothing and Uniforms - Womens Uniform-Trousers,2046278,202309
Rother District Council,09/03/2023,T32DIGCUSSER,Digital & Customer Services,20236,Customer Services and Development,D2352,Clothing and Uniforms,52.50,Lloyds Bank,Clothing and Uniforms - Womens Uniform-Blouse,2046278,202309
Rother District Council,09/03/2023,T32DIGCUSSER,Digital & Customer Services,20236,Customer Services and Development,D2352,Clothing and Uniforms,26.67,Lloyds Bank,Clothing and Uniforms - Womens Uniform-Skirt,2046278,202309
Rother District Council,09/03/2023,T32DIGCUSSER,Digital & Customer Services,20236,Customer Services and Development,D2352,Clothing and Uniforms,14.17,Lloyds Bank,Clothing and Uniforms - Womens Uniform-Jacket,2046278,202309
Rother District Council,09/01/2023,T32DIGCUSSER,Digital & Customer Services,20239,Computer Services,D2633,Computer Equipment,212.46,Lloyds Bank,Computer Equipment - Computer peripherals,2046247,202308
Rother District Council,09/03/2023,T32DIGCUSSER,Digital & Customer Services,20239,Computer Services,D2633,Computer Equipment,216.05,Lloyds Bank,Computer Equipment - Computer peripherals,2046268,202308
Rother District Council,09/03/2023,T32DIGCUSSER,Digital & Customer Services,20239,Computer Services,D2633,Computer Equipment,66.66,Lloyds Bank,Computer Equipment - Computer peripherals,2046268,202308
Rother District Council,09/01/2023,T32DIGCUSSER,Digital & Customer Services,20239,Computer Services,D2635,Computer Licences,16.99,Lloyds Bank,Computer Licences - Domain Name Renewal,2046246,202308
Rother District Council,09/01/2023,T32DIGCUSSER,Digital & Customer Services,20239,Computer Services,D2635,Computer Licences,16.99,Lloyds Bank,Computer Licences - Domain Name Renewal,2046246,202308
Rother District Council,09/01/2023,T32DIGCUSSER,Digital & Customer Services,20239,Computer Services,D2635,Computer Licences,42.48,Lloyds Bank,Computer Licences - Maintenance/Upgrading of Software,2046247,202308
Rother District Council,09/01/2023,T32DIGCUSSER,Digital & Customer Services,20239,Computer Services,D2635,Computer Licences,54.63,Lloyds Bank,Computer Licences - Website Management,2046247,202308
Rother District Council,09/02/2023,T32DIGCUSSER,Digital & Customer Services,20239,Computer Services,D2635,Computer Licences,"1,870.00",Lloyds Bank,Computer Licences - New Computer Software,2046253,202308
Rother District Council,09/02/2023,T32DIGCUSSER,Digital & Customer Services,20239,Computer Services,D2635,Computer Licences,23.98,Lloyds Bank,Computer Licences - Computer Licence Renewal,2046253,202308
Rother District Council,09/02/2023,T32DIGCUSSER,Digital & Customer Services,20239,Computer Services,D2635,Computer Licences,15.80,Lloyds Bank,Computer Licences - Computer Licence Renewal,2046253,202308
Rother District Council,09/02/2023,T32DIGCUSSER,Digital & Customer Services,20239,Computer Services,D2635,Computer Licences,247.77,Lloyds Bank,Computer Licences - Computer Licence Renewal,2046253,202308
Rother District Council,09/02/2023,T32DIGCUSSER,Digital & Customer Services,20239,Computer Services,D2635,Computer Licences,16.99,Lloyds Bank,Computer Licences - Domain Name Renewal,2046259,202308
Rother District Council,09/02/2023,T32DIGCUSSER,Digital & Customer Services,20239,Computer Services,D2635,Computer Licences,36.97,Lloyds Bank,Computer Licences - Domain Name Renewal,2046259,202308
Rother District Council,09/03/2023,T32DIGCUSSER,Digital & Customer Services,20239,Computer Services,D2635,Computer Licences,33.39,Lloyds Bank,Computer Licences - Computer Licence Renewal,2046268,202308
Rother District Council,09/02/2023,T32DIGCUSSER,Digital & Customer Services,20236,Customer Services and Development,D1201,Equipment & Materials,6.24,Lloyds Bank,Equipment & materials - Miscellaneous,2046257,202309
Rother District Council,09/03/2023,T32DIGCUSSER,Digital & Customer Services,20236,Customer Services and Development,D1206,Furniture & Fittings,899.70,Lloyds Bank,Furniture & Fittings - Chair,2046278,202309
Rother District Council,09/01/2023,T32DIGCUSSER,Digital & Customer Services,20239,Computer Services,D2420,General office supplies (Stationery purchased from ext suppliers),67.09,Lloyds Bank,General office supplies - Stationery,2046247,202308
Rother District Council,09/01/2023,T32DIGCUSSER,Digital & Customer Services,20239,Computer Services,D2513,Hired and Contracted services,10.98,Lloyds Bank,Hired and contracted services - Delivery and/or Packaging of Equipm,2046247,202308
Rother District Council,09/03/2023,T32DIGCUSSER,Digital & Customer Services,20239,Computer Services,D2513,Hired and Contracted services,16.19,Lloyds Bank,Hired and contracted services - Delivery and/or Packaging of Equipm,2046268,202308
Rother District Council,09/03/2023,T32DIGCUSSER,Digital & Customer Services,20239,Computer Services,D2513,Hired and Contracted services,178.90,Lloyds Bank,,2046268,202308
Rother District Council,09/03/2023,T32DIGCUSSER,Digital & Customer Services,20236,Customer Services and Development,D2513,Hired and Contracted services,4.99,Lloyds Bank,Hired and contracted services - Delivery and/or Packaging of Equipm,2046278,202309
Rother District Council,09/03/2023,T32DIGCUSSER,Digital & Customer Services,20236,Customer Services and Development,D2513,Hired and Contracted services,4.16,Lloyds Bank,Hired and contracted services - Delivery and/or Packaging of Equipm,2046278,202309
Rother District Council,09/01/2023,T32DIGCUSSER,Digital & Customer Services,20239,Computer Services,C2335,Public transport,125.16,Lloyds Bank,Public Transport - Train tickets,2046247,202308
Rother District Council,09/02/2023,T32DIGCUSSER,Digital & Customer Services,20242,Communications-Phones,D2621,Telephones,70.00,Lloyds Bank,Telephones - Headset,2046257,202309
Rother District Council,09/01/2023,T32DIGCUSSER,Digital & Customer Services,20239,Computer Services,A2203,Training,216.00,Lloyds Bank,Training,2046247,202308
Rother District Council,09/02/2023,T32DIGCUSSER,Digital & Customer Services,20239,Computer Services,A2203,Training,312.00,Lloyds Bank,Training,2046253,202308
Rother District Council,09/03/2023,T32DIGCUSSER,Digital & Customer Services,20239,Computer Services,A2203,Training,312.00,Lloyds Bank,Training,2046268,202308
Rother District Council,20/12/2023,T32DIGCUSSER,Digital & Customer Services,20239,Computer Services,C2337,Car payment options,101.65,REDACTED PERSONAL DATA,,2047137,202309
Rother District Council,03/11/2023,T32DIGCUSSER,Digital & Customer Services,20239,Computer Services,D2631,Computer Equip Maintenance,2.82,Misco Technologies Ltd T/A  Misco,Computer Equip Maintenance - IT EQUIP MAINT,2046289,202308
Rother District Council,13/09/2023,T32DIGCUSSER,Digital & Customer Services,20239,Computer Services,D2633,Computer Equipment,187.47,Misco Technologies Ltd T/A  Misco,Computer Equipment - Computer peripherals,2044706,202307
Rother District Council,19/09/2023,T32DIGCUSSER,Digital & Customer Services,20239,Computer Services,D2633,Computer Equipment,67.60,Misco Technologies Ltd T/A  Misco,Computer Equipment - Computer peripherals,2045428,202308
Rother District Council,02/11/2023,T32DIGCUSSER,Digital & Customer Services,20239,Computer Services,D2633,Computer Equipment,177.12,Misco Technologies Ltd T/A  Misco,Computer Equipment - Computer peripherals,2046288,202308
Rother District Council,03/11/2023,T32DIGCUSSER,Digital & Customer Services,20239,Computer Services,D2633,Computer Equipment,26.50,Misco Technologies Ltd T/A  Misco,Computer Equipment - Computer peripherals,2046289,202308
Rother District Council,30/10/2023,T32DIGCUSSER,Digital & Customer Services,20239,Computer Services,D2635,Computer Licences,114.20,Misco Technologies Ltd T/A  Misco,Computer Licences - New Computer Software,2045558,202308
Rother District Council,07/11/2023,T32DIGCUSSER,Digital & Customer Services,20239,Computer Services,D2635,Computer Licences,959.02,Misco Technologies Ltd T/A  Misco,Computer Licences - New Computer Software,2046297,202308
Rother District Council,13/09/2023,T32DIGCUSSER,Digital & Customer Services,20239,Computer Services,D2420,General office supplies (Stationery purchased from ext suppliers),107.68,Misco Technologies Ltd T/A  Misco,General office supplies - Stationery,2044706,202307
Rother District Council,02/11/2023,T32DIGCUSSER,Digital & Customer Services,20239,Computer Services,D2513,Hired and Contracted services,11.99,Misco Technologies Ltd T/A  Misco,Hired and contracted services - Delivery and/or Packaging of Equipm,2046288,202308
Rother District Council,01/10/2023,T32DIGCUSSER,Digital & Customer Services,20239,Computer Services,D2631,Computer Equip Maintenance,62.49,MLL Telecom Ltd,Computer Equip Maintenance - Maintenance-File Servers,2045688,202308
Rother District Council,04/10/2023,T32DIGCUSSER,Digital & Customer Services,20240,Printing Services,E2302,Third party payment private contractors,300.00,Morgana Systems Limited,Third party payment private contractors - Maintenance Contracts-Printing,2045554,202308
Rother District Council,12/10/2023,T32DIGCUSSER,Digital & Customer Services,20239,Computer Services,D2635,Computer Licences,695.00,NCC Services Ltd (T/A NCC Group Escrow Ltd),Computer Licences - Advance Pay ESCROW Agreement,2045597,202308
Rother District Council,22/09/2023,T32DIGCUSSER,Digital & Customer Services,20239,Computer Services,D2635,Computer Licences,850.00,NEC Software Solutions UK Ltd,Computer Licences - New Computer Software,2045357,202308
Rother District Council,30/10/2023,T32DIGCUSSER,Digital & Customer Services,20239,Computer Services,D2635,Computer Licences,"2,200.00",NEC Software Solutions UK Ltd,Computer Licences - Maintenance/Upgrading of Software,2045982,202308
Rother District Council,13/07/2023,T32DIGCUSSER,Digital & Customer Services,20242,Communications-Phones,D2621,Telephones,110.00,O2 (UK) Ltd,,2044778,202307
Rother District Council,13/07/2023,T32DIGCUSSER,Digital & Customer Services,20242,Communications-Phones,D2621,Telephones,397.00,O2 (UK) Ltd,,2044791,202307
Rother District Council,13/07/2023,T32DIGCUSSER,Digital & Customer Services,20242,Communications-Phones,D2621,Telephones,548.57,O2 (UK) Ltd,,2044792,202307
Rother District Council,13/06/2023,T32DIGCUSSER,Digital & Customer Services,20242,Communications-Phones,D2621,Telephones,110.00,O2 (UK) Ltd,,2044794,202307
Rother District Council,13/06/2023,T32DIGCUSSER,Digital & Customer Services,20242,Communications-Phones,D2621,Telephones,548.21,O2 (UK) Ltd,,2044796,202307
Rother District Council,13/06/2023,T32DIGCUSSER,Digital & Customer Services,20242,Communications-Phones,D2621,Telephones,397.00,O2 (UK) Ltd,,2044797,202307
Rother District Council,13/06/2023,T32DIGCUSSER,Digital & Customer Services,20242,Communications-Phones,D2621,Telephones,55.00,O2 (UK) Ltd,,2044798,202307
Rother District Council,13/06/2023,T32DIGCUSSER,Digital & Customer Services,20242,Communications-Phones,D2621,Telephones,155.00,O2 (UK) Ltd,,2044799,202307
Rother District Council,13/07/2023,T32DIGCUSSER,Digital & Customer Services,20242,Communications-Phones,D2621,Telephones,55.00,O2 (UK) Ltd,,2044800,202307
Rother District Council,13/07/2023,T32DIGCUSSER,Digital & Customer Services,20242,Communications-Phones,D2621,Telephones,601.00,O2 (UK) Ltd,,2044801,202307
Rother District Council,13/06/2023,T32DIGCUSSER,Digital & Customer Services,20242,Communications-Phones,D2621,Telephones,601.00,O2 (UK) Ltd,,2044802,202307
Rother District Council,13/07/2023,T32DIGCUSSER,Digital & Customer Services,20242,Communications-Phones,D2621,Telephones,155.00,O2 (UK) Ltd,,2044803,202307
Rother District Council,13/05/2023,T32DIGCUSSER,Digital & Customer Services,20242,Communications-Phones,D2621,Telephones,110.00,O2 (UK) Ltd,,2045045,202307
Rother District Council,13/05/2023,T32DIGCUSSER,Digital & Customer Services,20242,Communications-Phones,D2621,Telephones,433.35,O2 (UK) Ltd,,2045046,202307
Rother District Council,13/05/2023,T32DIGCUSSER,Digital & Customer Services,20242,Communications-Phones,D2621,Telephones,548.20,O2 (UK) Ltd,,2045047,202307
Rother District Council,13/05/2023,T32DIGCUSSER,Digital & Customer Services,20242,Communications-Phones,D2621,Telephones,55.00,O2 (UK) Ltd,,2045048,202307
Rother District Council,13/05/2023,T32DIGCUSSER,Digital & Customer Services,20242,Communications-Phones,D2621,Telephones,601.00,O2 (UK) Ltd,,2045049,202307
Rother District Council,13/05/2023,T32DIGCUSSER,Digital & Customer Services,20242,Communications-Phones,D2621,Telephones,155.07,O2 (UK) Ltd,,2045050,202307
Rother District Council,13/09/2023,T32DIGCUSSER,Digital & Customer Services,20242,Communications-Phones,D2621,Telephones,548.46,O2 (UK) Ltd,,2046531,202309
Rother District Council,13/09/2023,T32DIGCUSSER,Digital & Customer Services,20242,Communications-Phones,D2621,Telephones,55.00,O2 (UK) Ltd,,2046532,202309
Rother District Council,13/09/2023,T32DIGCUSSER,Digital & Customer Services,20242,Communications-Phones,D2621,Telephones,155.00,O2 (UK) Ltd,,2046533,202309
Rother District Council,13/09/2023,T32DIGCUSSER,Digital & Customer Services,20242,Communications-Phones,D2621,Telephones,110.05,O2 (UK) Ltd,,2046534,202309
Rother District Council,13/08/2023,T32DIGCUSSER,Digital & Customer Services,20242,Communications-Phones,D2621,Telephones,549.00,O2 (UK) Ltd,,2046535,202309
Rother District Council,13/08/2023,T32DIGCUSSER,Digital & Customer Services,20242,Communications-Phones,D2621,Telephones,155.00,O2 (UK) Ltd,,2046536,202309
Rother District Council,13/08/2023,T32DIGCUSSER,Digital & Customer Services,20242,Communications-Phones,D2621,Telephones,601.50,O2 (UK) Ltd,,2046537,202309
Rother District Council,13/09/2023,T32DIGCUSSER,Digital & Customer Services,20242,Communications-Phones,D2621,Telephones,601.00,O2 (UK) Ltd,,2046538,202309
Rother District Council,13/08/2023,T32DIGCUSSER,Digital & Customer Services,20242,Communications-Phones,D2621,Telephones,55.00,O2 (UK) Ltd,,2046539,202309
Rother District Council,13/09/2023,T32DIGCUSSER,Digital & Customer Services,20242,Communications-Phones,D2621,Telephones,397.00,O2 (UK) Ltd,,2046540,202309
Rother District Council,13/10/2023,T32DIGCUSSER,Digital & Customer Services,20242,Communications-Phones,D2621,Telephones,548.33,O2 (UK) Ltd,,2046541,202309
Rother District Council,13/10/2023,T32DIGCUSSER,Digital & Customer Services,20242,Communications-Phones,D2621,Telephones,397.00,O2 (UK) Ltd,,2046542,202309
Rother District Council,13/10/2023,T32DIGCUSSER,Digital & Customer Services,20242,Communications-Phones,D2621,Telephones,601.00,O2 (UK) Ltd,,2046543,202309
Rother District Council,13/10/2023,T32DIGCUSSER,Digital & Customer Services,20242,Communications-Phones,D2621,Telephones,110.00,O2 (UK) Ltd,,2046544,202309
Rother District Council,13/10/2023,T32DIGCUSSER,Digital & Customer Services,20242,Communications-Phones,D2621,Telephones,55.00,O2 (UK) Ltd,,2046545,202309
Rother District Council,13/10/2023,T32DIGCUSSER,Digital & Customer Services,20242,Communications-Phones,D2621,Telephones,155.00,O2 (UK) Ltd,,2046546,202309
Rother District Council,13/08/2023,T32DIGCUSSER,Digital & Customer Services,20242,Communications-Phones,D2621,Telephones,110.00,O2 (UK) Ltd,,2046547,202309
Rother District Council,13/08/2023,T32DIGCUSSER,Digital & Customer Services,20242,Communications-Phones,D2621,Telephones,397.00,O2 (UK) Ltd,,2046548,202309
Rother District Council,25/10/2023,T32DIGCUSSER,Digital & Customer Services,20240,Printing Services,D2417,Photocopy Paper by external suppliers,138.75,PELEMAN INDUSTRIES LTD,Photocopy Paper by external suppliers - White,2046073,202308
Rother District Council,12/09/2023,T32DIGCUSSER,Digital & Customer Services,20240,Printing Services,D1201,Equipment & Materials,12.99,Premier Paper Group Ltd,Equipment & Materials - Carriage/Handling Charge,2044708,202307
Rother District Council,27/09/2023,T32DIGCUSSER,Digital & Customer Services,20241,Stationery,D2420,General office supplies (Stationery purchased from ext suppliers),72.99,Premier Paper Group Ltd,General office supplies - Stationery (Stationery Services to buy ONLY),2045359,202308
Rother District Council,12/09/2023,T32DIGCUSSER,Digital & Customer Services,20240,Printing Services,D2417,Photocopy Paper by external suppliers,232.00,Premier Paper Group Ltd,Photocopy Paper by external supplier - Wide Format Consumables,2044708,202307
Rother District Council,27/09/2023,T32DIGCUSSER,Digital & Customer Services,20240,Printing Services,D2417,Photocopy Paper by external suppliers,258.00,Premier Paper Group Ltd,Photocopy Paper by external suppliers - Colour Paper,2045359,202308
Rother District Council,27/09/2023,T32DIGCUSSER,Digital & Customer Services,20240,Printing Services,D2417,Photocopy Paper by external suppliers,28.92,Premier Paper Group Ltd,Photocopy Paper by external supplier - Wide Format Consumables,2045359,202308
Rother District Council,27/09/2023,T32DIGCUSSER,Digital & Customer Services,20240,Printing Services,D2417,Photocopy Paper by external suppliers,270.60,Premier Paper Group Ltd,Photocopy Paper by external suppliers - White,2045359,202308
Rother District Council,03/10/2023,T32DIGCUSSER,Digital & Customer Services,20240,Printing Services,D2417,Photocopy Paper by external suppliers,35.27,Premier Paper Group Ltd,Photocopy Paper by external suppliers - Colour Paper,2045889,202308
Rother District Council,03/10/2023,T32DIGCUSSER,Digital & Customer Services,20240,Printing Services,D2417,Photocopy Paper by external suppliers,243.66,Premier Paper Group Ltd,Photocopy Paper by external supplier - Wide Format Consumables,2045889,202308
Rother District Council,05/10/2023,T32DIGCUSSER,Digital & Customer Services,20240,Printing Services,D2417,Photocopy Paper by external suppliers,221.70,Premier Paper Group Ltd,Photocopy Paper by external suppliers - White,2045890,202308
Rother District Council,05/10/2023,T32DIGCUSSER,Digital & Customer Services,20240,Printing Services,D2417,Photocopy Paper by external suppliers,49.66,Premier Paper Group Ltd,Photocopy Paper by external suppliers - Colour Paper,2045890,202308
Rother District Council,17/10/2023,T32DIGCUSSER,Digital & Customer Services,20240,Printing Services,D2417,Photocopy Paper by external suppliers,427.00,Premier Paper Group Ltd,Photocopy Paper by external suppliers - Colour Paper,2045891,202308
Rother District Council,17/10/2023,T32DIGCUSSER,Digital & Customer Services,20240,Printing Services,D2417,Photocopy Paper by external suppliers,96.04,Premier Paper Group Ltd,Photocopy Paper by external suppliers - White,2045891,202308
Rother District Council,10/11/2023,T32DIGCUSSER,Digital & Customer Services,20240,Printing Services,D2417,Photocopy Paper by external suppliers,178.25,Premier Paper Group Ltd,Photocopy Paper by external suppliers - Colour Paper,2046345,202308
Rother District Council,10/11/2023,T32DIGCUSSER,Digital & Customer Services,20240,Printing Services,D2417,Photocopy Paper by external suppliers,118.19,Premier Paper Group Ltd,Photocopy Paper by external suppliers - White,2046346,202308
Rother District Council,10/11/2023,T32DIGCUSSER,Digital & Customer Services,20240,Printing Services,D2417,Photocopy Paper by external suppliers,74.00,Premier Paper Group Ltd,Photocopy Paper by external suppliers - Colour Paper,2046346,202308
Rother District Council,28/11/2023,T32DIGCUSSER,Digital & Customer Services,20240,Printing Services,D2417,Photocopy Paper by external suppliers,"1,110.46",Premier Paper Group Ltd,Photocopy Paper by external suppliers - White,2047023,202309
Rother District Council,28/11/2023,T32DIGCUSSER,Digital & Customer Services,20240,Printing Services,D2417,Photocopy Paper by external suppliers,209.38,Premier Paper Group Ltd,Photocopy Paper by external suppliers - Colour Paper,2047023,202309
Rother District Council,24/10/2023,T32DIGCUSSER,Digital & Customer Services,20239,Computer Services,D2626,Postages,330.00,Royal Mail Group Ltd,Postages - P O Box Licence Fees/Costs,2046497,202308
Rother District Council,21/09/2023,T32DIGCUSSER,Digital & Customer Services,20240,Printing Services,D2626,Postages,27.50,SBS Consumables,Postages - Courier Urgent Mail,2045215,202307
Rother District Council,26/10/2023,T32DIGCUSSER,Digital & Customer Services,20240,Printing Services,D2417,Photocopy Paper by external suppliers,94.00,Scantech Group Ltd,Photocopy Paper by external supplier - Wide Format Consumables,2045509,202308
Rother District Council,11/10/2023,T32DIGCUSSER,Digital & Customer Services,20240,Printing Services,D1201,Equipment & Materials,183.31,Sonar Technologies Ltd,Equipment & Materials - Print Room - Maintenance Parts and Equipment (Non Contract),2045757,202308
Rother District Council,27/11/2023,T32DIGCUSSER,Digital & Customer Services,20240,Printing Services,E2302,Third party payment private contractors,777.08,Sonar Technologies Ltd,Third party payment private contractors - Maintenance Contracts-Printing,2046775,202309
Rother District Council,22/08/2023,T32DIGCUSSER,Digital & Customer Services,20239,Computer Services,D2633,Computer Equipment,999.40,Specialist Computer Centres PLC (SCC),Computer Equipment - Advance Pay Maint Web Cont Man Sys,2044867,202307
Rother District Council,20/09/2023,T32DIGCUSSER,Digital & Customer Services,20239,Computer Services,D2633,Computer Equipment,965.81,Specialist Computer Centres PLC (SCC),Computer Equipment - Advance Pay Maint Web Cont Man Sys,2045723,202308
Rother District Council,31/10/2023,T32DIGCUSSER,Digital & Customer Services,20239,Computer Services,D2633,Computer Equipment,984.56,Specialist Computer Centres PLC (SCC),Computer Equipment - Advance Pay Maint Web Cont Man Sys,2046183,202308
Rother District Council,07/11/2023,T32DIGCUSSER,Digital & Customer Services,20239,Computer Services,D2635,Computer Licences,"102,066.78",Specialist Computer Centres PLC (SCC),Computer Licences - Computer Licence Renewal,2046334,202308
Rother District Council,45178,T32DIGCUSSER,Digital & Customer Services,20232,Nlpg-E-Government,D2621,Telephones, 77.08 ,TalkTalk Communications Ltd T/A TalkTalk Business,Telephones - Leased Line Rental,2045369,202308
Rother District Council,45200,T32DIGCUSSER,Digital & Customer Services,20242,Communications-Phones,D2622,Mobile Phones, 780.78 ,Telefonica UK Ltd,Mobile Phones - Purchase of mobile phones,2045985,202308
Rother District Council,45240,T32DIGCUSSER,Digital & Customer Services,20240,Printing Services,D1201,Equipment & Materials, 212.00 ,The Warehouse.com Ltd,Equipment & Materials - Platemaking Materials,2046378,202308
Rother District Council,45280,T32DIGCUSSER,Digital & Customer Services,20243,Business Improvement,C2337,Car payment options, 57.98 ,REDACTED PERSONAL DATA,,2047137,202309
Rother District Council,02/10/2023,T32ENVSERV,"Environmental Services, Licencing & Community Safety",20129,Community Safety - CCTV costs only,D2513,Hired and Contracted services,280.00,AirTight Security Systems Ltd,Car payment options,2046227,202308
Rother District Council,31/10/2023,T32ENVSERV,"Environmental Services, Licencing & Community Safety",32134,EH Pollution R + W Partnership,D2513,Hired and Contracted services,97.64,Alfa Electric Ltd,Accommodation Costs,2046478,202308
Rother District Council,31/05/2023,T32ENVSERV,"Environmental Services, Licencing & Community Safety",32136,EH Pest Control R + W Partnership,C1104,Derv,3.80,Allstar Business Solutions,Car payment options,2046919,202309
Rother District Council,31/05/2023,T32ENVSERV,"Environmental Services, Licencing & Community Safety",32136,EH Pest Control R + W Partnership,C1104,Derv,104.59,Allstar Business Solutions,Removals and Storage,2046919,202309
Rother District Council,15/06/2023,T32ENVSERV,"Environmental Services, Licencing & Community Safety",32136,EH Pest Control R + W Partnership,C1104,Derv,3.80,Allstar Business Solutions,Car payment options,2046920,202309
Rother District Council,15/06/2023,T32ENVSERV,"Environmental Services, Licencing & Community Safety",32136,EH Pest Control R + W Partnership,C1104,Derv,113.33,Allstar Business Solutions,Land & Property Purchase,2046920,202309
Rother District Council,30/06/2023,T32ENVSERV,"Environmental Services, Licencing & Community Safety",32136,EH Pest Control R + W Partnership,C1104,Derv,5.70,Allstar Business Solutions,Car payment options,2046921,202309
Rother District Council,30/06/2023,T32ENVSERV,"Environmental Services, Licencing & Community Safety",32136,EH Pest Control R + W Partnership,C1104,Derv,170.01,Allstar Business Solutions,Car payment options,2046921,202309
Rother District Council,15/07/2023,T32ENVSERV,"Environmental Services, Licencing & Community Safety",32136,EH Pest Control R + W Partnership,C1104,Derv,5.70,Allstar Business Solutions,Hired and Contracted services,2046922,202309
Rother District Council,15/07/2023,T32ENVSERV,"Environmental Services, Licencing & Community Safety",32136,EH Pest Control R + W Partnership,C1104,Derv,159.62,Allstar Business Solutions,Hired and Contracted services,2046922,202309
Rother District Council,31/07/2023,T32ENVSERV,"Environmental Services, Licencing & Community Safety",32136,EH Pest Control R + W Partnership,C1104,Derv,3.80,Allstar Business Solutions,Removals and Storage,2046923,202309
Rother District Council,31/07/2023,T32ENVSERV,"Environmental Services, Licencing & Community Safety",32136,EH Pest Control R + W Partnership,C1104,Derv,105.00,Allstar Business Solutions,Removals and Storage,2046923,202309
Rother District Council,15/08/2023,T32ENVSERV,"Environmental Services, Licencing & Community Safety",32136,EH Pest Control R + W Partnership,C1104,Derv,7.60,Allstar Business Solutions,Removals and Storage,2046924,202309
Rother District Council,15/08/2023,T32ENVSERV,"Environmental Services, Licencing & Community Safety",32136,EH Pest Control R + W Partnership,C1104,Derv,223.36,Allstar Business Solutions,Removals and Storage,2046924,202309
Rother District Council,31/08/2023,T32ENVSERV,"Environmental Services, Licencing & Community Safety",32136,EH Pest Control R + W Partnership,C1104,Derv,179.17,Allstar Business Solutions,CIS Deduction Control Account,2046925,202309
Rother District Council,31/08/2023,T32ENVSERV,"Environmental Services, Licencing & Community Safety",32136,EH Pest Control R + W Partnership,C1104,Derv,5.70,Allstar Business Solutions,CIS Deduction Control Account,2046925,202309
Rother District Council,15/09/2023,T32ENVSERV,"Environmental Services, Licencing & Community Safety",32136,EH Pest Control R + W Partnership,C1104,Derv,50.83,Allstar Business Solutions,Car payment options,2046926,202309
Rother District Council,15/09/2023,T32ENVSERV,"Environmental Services, Licencing & Community Safety",32136,EH Pest Control R + W Partnership,C1104,Derv,116.67,Allstar Business Solutions,Car payment options,2046926,202309
Rother District Council,15/09/2023,T32ENVSERV,"Environmental Services, Licencing & Community Safety",32136,EH Pest Control R + W Partnership,C1104,Derv,5.70,Allstar Business Solutions,Car payment options,2046926,202309
Rother District Council,30/09/2023,T32ENVSERV,"Environmental Services, Licencing & Community Safety",32136,EH Pest Control R + W Partnership,C1104,Derv,3.80,Allstar Business Solutions,Car payment options,2046927,202309
Rother District Council,30/09/2023,T32ENVSERV,"Environmental Services, Licencing & Community Safety",32136,EH Pest Control R + W Partnership,C1104,Derv,110.85,Allstar Business Solutions,Car payment options,2046927,202309
Rother District Council,15/10/2023,T32ENVSERV,"Environmental Services, Licencing & Community Safety",32136,EH Pest Control R + W Partnership,C1104,Derv,5.70,Allstar Business Solutions,Grants made,2046928,202309
Rother District Council,15/10/2023,T32ENVSERV,"Environmental Services, Licencing & Community Safety",32136,EH Pest Control R + W Partnership,C1104,Derv,176.17,Allstar Business Solutions,Grants made,2046928,202309
Rother District Council,06/10/2023,T32ENVSERV,"Environmental Services, Licencing & Community Safety",32135,EH Dog Control R + W Partnership,D2513,Hired and Contracted services,"3,127.00",Animal Wardens Ltd,Grants made,2045133,202307
Rother District Council,06/10/2023,T32ENVSERV,"Environmental Services, Licencing & Community Safety",32135,EH Dog Control R + W Partnership,D2513,Hired and Contracted services,"3,571.14",Animal Wardens Ltd,Grants made,2045134,202307
Rother District Council,06/11/2023,T32ENVSERV,"Environmental Services, Licencing & Community Safety",32135,EH Dog Control R + W Partnership,D2513,Hired and Contracted services,"3,127.00",Animal Wardens Ltd,Grants made,2046300,202308
Rother District Council,06/11/2023,T32ENVSERV,"Environmental Services, Licencing & Community Safety",32135,EH Dog Control R + W Partnership,D2513,Hired and Contracted services,"3,571.14",Animal Wardens Ltd,Grants made,2046301,202308
Rother District Council,20/12/2023,T32ENVSERV,"Environmental Services, Licencing & Community Safety",32151,EH Pollution Team,C2337,Car payment options,77.47,REDACTED PERSONAL DATA,Grants made,2047137,202309
Rother District Council,20/12/2023,T32ENVSERV,"Environmental Services, Licencing & Community Safety",32149,EH Licensing Team,C2337,Car payment options,124.74,REDACTED PERSONAL DATA,Grants made,2047137,202309
Rother District Council,20/12/2023,T32ENVSERV,"Environmental Services, Licencing & Community Safety",20292,Community Safety and PSH Team,C2337,Car payment options,77.47,REDACTED PERSONAL DATA,Grants made,2047137,202309
Rother District Council,20/12/2023,T32ENVSERV,"Environmental Services, Licencing & Community Safety",32149,EH Licensing Team,C2337,Car payment options,77.67,REDACTED PERSONAL DATA,Grants made,2047137,202309
Rother District Council,20/12/2023,T32ENVSERV,"Environmental Services, Licencing & Community Safety",32151,EH Pollution Team,C2337,Car payment options,98.47,REDACTED PERSONAL DATA,Grants made,2047137,202309
Rother District Council,25/10/2023,T32ENVSERV,"Environmental Services, Licencing & Community Safety",32134,EH Pollution R + W Partnership,D2352,Clothing and Uniforms,47.00,Brady Corporation Ltd (T/A Seton),Grants made,2046075,202308
Rother District Council,23/10/2023,T32ENVSERV,"Environmental Services, Licencing & Community Safety",32134,EH Pollution R + W Partnership,D2352,Clothing and Uniforms,184.25,Brady Corporation Ltd (T/A Seton),Grants made,2046137,202308
Rother District Council,23/10/2023,T32ENVSERV,"Environmental Services, Licencing & Community Safety",32133,EH Food Hyg / Idc / Water Purity R + W Partnership,D2352,Clothing and Uniforms,40.23,Brady Corporation Ltd (T/A Seton),Grants made,2046137,202308
Rother District Council,14/11/2023,T32ENVSERV,"Environmental Services, Licencing & Community Safety",32134,EH Pollution R + W Partnership,D2352,Clothing and Uniforms,35.82,Brady Corporation Ltd (T/A Seton),Grants made,2046777,202309
Rother District Council,17/11/2023,T32ENVSERV,"Environmental Services, Licencing & Community Safety",32133,EH Food Hyg / Idc / Water Purity R + W Partnership,D2352,Clothing and Uniforms,40.23,Brady Corporation Ltd (T/A Seton),Grants made,2046778,202309
Rother District Council,11/12/2023,T32ENVSERV,"Environmental Services, Licencing & Community Safety",32133,EH Food Hyg / Idc / Water Purity R + W Partnership,D2352,Clothing and Uniforms,-76.05,Brady Corporation Ltd (T/A Seton),Grants made,2046858,202309
Rother District Council,23/10/2023,T32ENVSERV,"Environmental Services, Licencing & Community Safety",32134,EH Pollution R + W Partnership,D1201,Equipment & Materials,4.95,Brady Corporation Ltd (T/A Seton),Grants made,2046137,202308
Rother District Council,01/12/2023,T32ENVSERV,"Environmental Services, Licencing & Community Safety",32134,EH Pollution R + W Partnership,D2513,Hired and Contracted services,"1,659.00",C P J Field & Co Ltd,Grants made,2046824,202309
Rother District Council,05/12/2023,T32ENVSERV,"Environmental Services, Licencing & Community Safety",32134,EH Pollution R + W Partnership,D2513,Hired and Contracted services,"2,169.00",C P J Field & Co Ltd,Grants made,2046825,202309
Rother District Council,09/11/2023,T32ENVSERV,"Environmental Services, Licencing & Community Safety",32144,EH Environmental Services Admin R + W Partnership,A2203,Training,231.00,Chichester District Council,Grants made,2045786,202308
Rother District Council,29/09/2023,T32ENVSERV,"Environmental Services, Licencing & Community Safety",32144,EH Environmental Services Admin R + W Partnership,A2203,Training,275.00,CIEH-Chartered Institute of Environmental Health,Grants made,2045454,202308
Rother District Council,09/10/2023,T32ENVSERV,"Environmental Services, Licencing & Community Safety",32144,EH Environmental Services Admin R + W Partnership,A2203,Training,275.00,CIEH-Chartered Institute of Environmental Health,Grants made,2045455,202308
Rother District Council,18/10/2023,T32ENVSERV,"Environmental Services, Licencing & Community Safety",32144,EH Environmental Services Admin R + W Partnership,A2203,Training,55.00,CIEH-Chartered Institute of Environmental Health,Grants made,2045456,202308
Rother District Council,18/10/2023,T32ENVSERV,"Environmental Services, Licencing & Community Safety",32144,EH Environmental Services Admin R + W Partnership,A2203,Training,55.00,CIEH-Chartered Institute of Environmental Health,Grants made,2045457,202308
Rother District Council,16/10/2023,T32ENVSERV,"Environmental Services, Licencing & Community Safety",32134,EH Pollution R + W Partnership,D1201,Equipment & Materials,664.00,Cirrus Research PLC,Grants made,2045521,202308
Rother District Council,16/10/2023,T32ENVSERV,"Environmental Services, Licencing & Community Safety",32134,EH Pollution R + W Partnership,D1201,Equipment & Materials,56.00,Cirrus Research PLC,Grants made,2045521,202308
Rother District Council,16/10/2023,T32ENVSERV,"Environmental Services, Licencing & Community Safety",32134,EH Pollution R + W Partnership,D1201,Equipment & Materials,464.00,Cirrus Research PLC,Grants made,2045523,202308
Rother District Council,16/10/2023,T32ENVSERV,"Environmental Services, Licencing & Community Safety",32134,EH Pollution R + W Partnership,D1201,Equipment & Materials,18.00,Cirrus Research PLC,Grants made,2045523,202308
Rother District Council,20/12/2023,T32ENVSERV,"Environmental Services, Licencing & Community Safety",20292,Community Safety and PSH Team,C2337,Car payment options,77.67,REDACTED PERSONAL DATA,Grants made,2047137,202309
Rother District Council,19/09/2023,T32ENVSERV,"Environmental Services, Licencing & Community Safety",32138,EH Health and Safety R + W Partnership,D2513,Hired and Contracted services,"1,800.00",REDACTED PERSONAL DATA,Grants made,2045274,202307
Rother District Council,03/10/2023,T32ENVSERV,"Environmental Services, Licencing & Community Safety",32134,EH Pollution R + W Partnership,D2513,Hired and Contracted services,231.12,Corserv Care Limited,Grants made,2046467,202308
Rother District Council,01/10/2023,T32ENVSERV,"Environmental Services, Licencing & Community Safety",32134,EH Pollution R + W Partnership,D2621,Telephones,22.19,Daisy Communications PLC,Grants made,2045696,202308
Rother District Council,01/11/2023,T32ENVSERV,"Environmental Services, Licencing & Community Safety",32134,EH Pollution R + W Partnership,D2621,Telephones,22.19,Daisy Communications PLC,Grants made,2046010,202308
Rother District Council,30/09/2023,T32ENVSERV,"Environmental Services, Licencing & Community Safety",32142,EH Taxi and Private Hire Licences R + W Partnership,D2513,Hired and Contracted services,456.00,DBS The Disclosure and Barring Service,Grants made,2045084,202307
Rother District Council,31/10/2023,T32ENVSERV,"Environmental Services, Licencing & Community Safety",32142,EH Taxi and Private Hire Licences R + W Partnership,D2513,Hired and Contracted services,494.00,DBS The Disclosure and Barring Service,Grants made,2046270,202308
Rother District Council,02/12/2023,T32ENVSERV,"Environmental Services, Licencing & Community Safety",32142,EH Taxi and Private Hire Licences R + W Partnership,D2635,Computer Licences,262.50,Diamond People Ltd,Grants made,2046649,202309
Rother District Council,12/10/2023,T32ENVSERV,"Environmental Services, Licencing & Community Safety",32144,EH Environmental Services Admin R + W Partnership,D2626,Postages,110.66,DSI Billing Services Ltd,Grants made,2045324,202309
Rother District Council,12/10/2023,T32ENVSERV,"Environmental Services, Licencing & Community Safety",32142,EH Taxi and Private Hire Licences R + W Partnership,D2626,Postages,1.19,DSI Billing Services Ltd,Grants made,2045324,202309
Rother District Council,28/11/2023,T32ENVSERV,"Environmental Services, Licencing & Community Safety",32144,EH Environmental Services Admin R + W Partnership,A2203,Training,453.00,East Sussex County Council,Grants made,2047114,202309
Rother District Council,04/10/2023,T32ENVSERV,"Environmental Services, Licencing & Community Safety",20129,Community Safety - CCTV costs only,B2201,Electricity,680.45,Ecotricity Ltd,Grants made,2045937,202308
Rother District Council,04/10/2023,T32ENVSERV,"Environmental Services, Licencing & Community Safety",20129,Community Safety - CCTV costs only,B2201,Electricity,78.30,Ecotricity Ltd,Grants made,2045946,202308
Rother District Council,20/12/2023,T32ENVSERV,"Environmental Services, Licencing & Community Safety",32150,EH Food and Safety Team,C2337,Car payment options,77.47,REDACTED PERSONAL DATA,Telephones,2047137,202309
Rother District Council,18/12/2023,T32ENVSERV,"Environmental Services, Licencing & Community Safety",32144,EH Environmental Services Admin R + W Partnership,A2203,Training,600.00,Environmental Health Solutions & Training Ltd,Telephones,2047052,202309
Rother District Council,19/10/2023,T32ENVSERV,"Environmental Services, Licencing & Community Safety",32143,EH Licences and Registration R + W Partnership,D2513,Hired and Contracted services,560.44,Fairfield House Veterinary Surgery,Telephones,2046207,202309
Rother District Council,25/10/2023,T32ENVSERV,"Environmental Services, Licencing & Community Safety",32143,EH Licences and Registration R + W Partnership,D2513,Hired and Contracted services,561.49,Fairfield House Veterinary Surgery,Telephones,2046208,202309
Rother District Council,31/10/2023,T32ENVSERV,"Environmental Services, Licencing & Community Safety",32143,EH Licences and Registration R + W Partnership,D2513,Hired and Contracted services,756.33,Fairfield House Veterinary Surgery,Telephones,2046209,202309
Rother District Council,13/09/2023,T32ENVSERV,"Environmental Services, Licencing & Community Safety",32143,EH Licences and Registration R + W Partnership,D2513,Hired and Contracted services,541.67,Fairfield House Veterinary Surgery,Telephones,2046468,202309
Rother District Council,11/10/2023,T32ENVSERV,"Environmental Services, Licencing & Community Safety",32143,EH Licences and Registration R + W Partnership,D2513,Hired and Contracted services,698.03,Fairfield House Veterinary Surgery,Telephones,2046469,202308
Rother District Council,30/11/2023,T32ENVSERV,"Environmental Services, Licencing & Community Safety",32143,EH Licences and Registration R + W Partnership,D2513,Hired and Contracted services,756.29,Fairfield House Veterinary Surgery,Telephones,2046930,202309
Rother District Council,28/11/2023,T32ENVSERV,"Environmental Services, Licencing & Community Safety",32143,EH Licences and Registration R + W Partnership,D2513,Hired and Contracted services,556.28,Fairfield House Veterinary Surgery,Telephones,2046931,202309
Rother District Council,23/11/2023,T32ENVSERV,"Environmental Services, Licencing & Community Safety",32143,EH Licences and Registration R + W Partnership,D2513,Hired and Contracted services,570.88,Fairfield House Veterinary Surgery,Telephones,2046932,202309
Rother District Council,21/11/2023,T32ENVSERV,"Environmental Services, Licencing & Community Safety",32143,EH Licences and Registration R + W Partnership,D2513,Hired and Contracted services,562.53,Fairfield House Veterinary Surgery,Telephones,2046933,202309
Rother District Council,08/11/2023,T32ENVSERV,"Environmental Services, Licencing & Community Safety",32143,EH Licences and Registration R + W Partnership,D2513,Hired and Contracted services,604.26,Fairfield House Veterinary Surgery,Telephones,2046934,202309
Rother District Council,02/11/2023,T32ENVSERV,"Environmental Services, Licencing & Community Safety",32143,EH Licences and Registration R + W Partnership,D2513,Hired and Contracted services,602.18,Fairfield House Veterinary Surgery,Telephones,2046935,202309
Rother District Council,13/09/2023,T32ENVSERV,"Environmental Services, Licencing & Community Safety",32134,EH Pollution R + W Partnership,D1201,Equipment & Materials,144.40,Gradko International Ltd,Accommodation Costs,2044861,202307
Rother District Council,13/09/2023,T32ENVSERV,"Environmental Services, Licencing & Community Safety",32134,EH Pollution R + W Partnership,D1201,Equipment & Materials,5.70,Gradko International Ltd,Accommodation Costs,2044861,202307
Rother District Council,11/10/2023,T32ENVSERV,"Environmental Services, Licencing & Community Safety",32134,EH Pollution R + W Partnership,D1201,Equipment & Materials,144.40,Gradko International Ltd,Accommodation Costs,2045517,202308
Rother District Council,11/10/2023,T32ENVSERV,"Environmental Services, Licencing & Community Safety",32134,EH Pollution R + W Partnership,D1201,Equipment & Materials,5.70,Gradko International Ltd,Accommodation Costs,2045517,202308
Rother District Council,14/11/2023,T32ENVSERV,"Environmental Services, Licencing & Community Safety",32134,EH Pollution R + W Partnership,D1201,Equipment & Materials,144.40,Gradko International Ltd,Accommodation Costs,2046501,202308
Rother District Council,14/11/2023,T32ENVSERV,"Environmental Services, Licencing & Community Safety",32134,EH Pollution R + W Partnership,D1201,Equipment & Materials,5.70,Gradko International Ltd,Accommodation Costs,2046501,202308
Rother District Council,03/08/2023,T32ENVSERV,"Environmental Services, Licencing & Community Safety",32134,EH Pollution R + W Partnership,D2513,Hired and Contracted services,3.00,H M Land Registry,Accommodation Costs,2045000,202307
Rother District Council,05/07/2023,T32ENVSERV,"Environmental Services, Licencing & Community Safety",32144,EH Environmental Services Admin R + W Partnership,D2513,Hired and Contracted services,42.00,H M Land Registry,Car payment options,2045003,202307
Rother District Council,05/07/2023,T32ENVSERV,"Environmental Services, Licencing & Community Safety",32134,EH Pollution R + W Partnership,D2513,Hired and Contracted services,9.00,H M Land Registry,Car payment options,2045003,202307
Rother District Council,06/09/2023,T32ENVSERV,"Environmental Services, Licencing & Community Safety",32134,EH Pollution R + W Partnership,D2513,Hired and Contracted services,3.00,H M Land Registry,Car payment options,2045004,202307
Rother District Council,06/09/2023,T32ENVSERV,"Environmental Services, Licencing & Community Safety",32144,EH Environmental Services Admin R + W Partnership,D2513,Hired and Contracted services,21.00,H M Land Registry,Car payment options,2045004,202307
Rother District Council,07/06/2023,T32ENVSERV,"Environmental Services, Licencing & Community Safety",32150,EH Food and Safety Team,D2513,Hired and Contracted services,3.00,H M Land Registry,Accommodation Costs,2045005,202307
Rother District Council,07/06/2023,T32ENVSERV,"Environmental Services, Licencing & Community Safety",32144,EH Environmental Services Admin R + W Partnership,D2513,Hired and Contracted services,6.00,H M Land Registry,Accommodation Costs,2045005,202307
Rother District Council,07/06/2023,T32ENVSERV,"Environmental Services, Licencing & Community Safety",20129,Community Safety - CCTV costs only,D2513,Hired and Contracted services,3.00,H M Land Registry,Accommodation Costs,2045005,202307
Rother District Council,08/09/2023,T32ENVSERV,"Environmental Services, Licencing & Community Safety",32144,EH Environmental Services Admin R + W Partnership,D2513,Hired and Contracted services,6.00,H M Land Registry,Accommodation Costs,2045007,202307
Rother District Council,09/06/2023,T32ENVSERV,"Environmental Services, Licencing & Community Safety",32144,EH Environmental Services Admin R + W Partnership,D2513,Hired and Contracted services,15.00,H M Land Registry,Accommodation Costs,2045008,202307
Rother District Council,10/08/2023,T32ENVSERV,"Environmental Services, Licencing & Community Safety",32134,EH Pollution R + W Partnership,D2513,Hired and Contracted services,3.00,H M Land Registry,Accommodation Costs,2045009,202307
Rother District Council,10/08/2023,T32ENVSERV,"Environmental Services, Licencing & Community Safety",32144,EH Environmental Services Admin R + W Partnership,D2513,Hired and Contracted services,3.00,H M Land Registry,Accommodation Costs,2045009,202307
Rother District Council,15/09/2023,T32ENVSERV,"Environmental Services, Licencing & Community Safety",32144,EH Environmental Services Admin R + W Partnership,D2513,Hired and Contracted services,3.00,H M Land Registry,Accommodation Costs,2045012,202307
Rother District Council,15/09/2023,T32ENVSERV,"Environmental Services, Licencing & Community Safety",32134,EH Pollution R + W Partnership,D2513,Hired and Contracted services,3.00,H M Land Registry,Accommodation Costs,2045012,202307
Rother District Council,16/06/2023,T32ENVSERV,"Environmental Services, Licencing & Community Safety",32144,EH Environmental Services Admin R + W Partnership,D2513,Hired and Contracted services,3.00,H M Land Registry,Accommodation Costs,2045013,202307
Rother District Council,16/06/2023,T32ENVSERV,"Environmental Services, Licencing & Community Safety",32134,EH Pollution R + W Partnership,D2513,Hired and Contracted services,3.00,H M Land Registry,Sewerage,2045013,202307
Rother District Council,16/08/2023,T32ENVSERV,"Environmental Services, Licencing & Community Safety",20129,Community Safety - CCTV costs only,D2513,Hired and Contracted services,6.00,H M Land Registry,Water,2045014,202307
Rother District Council,16/08/2023,T32ENVSERV,"Environmental Services, Licencing & Community Safety",32134,EH Pollution R + W Partnership,D2513,Hired and Contracted services,3.00,H M Land Registry,Accommodation Costs,2045014,202307
Rother District Council,17/08/2023,T32ENVSERV,"Environmental Services, Licencing & Community Safety",32144,EH Environmental Services Admin R + W Partnership,D2513,Hired and Contracted services,6.00,H M Land Registry,Accommodation Costs,2045015,202307
Rother District Council,19/09/2023,T32ENVSERV,"Environmental Services, Licencing & Community Safety",20129,Community Safety - CCTV costs only,D2513,Hired and Contracted services,18.00,H M Land Registry,Accommodation Costs,2045016,202307
Rother District Council,21/07/2023,T32ENVSERV,"Environmental Services, Licencing & Community Safety",32144,EH Environmental Services Admin R + W Partnership,D2513,Hired and Contracted services,3.00,H M Land Registry,Accommodation Costs,2045017,202307
Rother District Council,22/06/2023,T32ENVSERV,"Environmental Services, Licencing & Community Safety",32144,EH Environmental Services Admin R + W Partnership,D2513,Hired and Contracted services,15.00,H M Land Registry,Accommodation Costs,2045018,202307
Rother District Council,22/06/2023,T32ENVSERV,"Environmental Services, Licencing & Community Safety",32150,EH Food and Safety Team,D2513,Hired and Contracted services,3.00,H M Land Registry,Accommodation Costs,2045018,202307
Rother District Council,22/06/2023,T32ENVSERV,"Environmental Services, Licencing & Community Safety",32134,EH Pollution R + W Partnership,D2513,Hired and Contracted services,3.00,H M Land Registry,Accommodation Costs,2045018,202307
Rother District Council,22/09/2023,T32ENVSERV,"Environmental Services, Licencing & Community Safety",32150,EH Food and Safety Team,D2513,Hired and Contracted services,3.00,H M Land Registry,Accommodation Costs,2045019,202307
Rother District Council,22/09/2023,T32ENVSERV,"Environmental Services, Licencing & Community Safety",20129,Community Safety - CCTV costs only,D2513,Hired and Contracted services,3.00,H M Land Registry,Accommodation Costs,2045019,202307
Rother District Council,23/06/2023,T32ENVSERV,"Environmental Services, Licencing & Community Safety",32144,EH Environmental Services Admin R + W Partnership,D2513,Hired and Contracted services,6.00,H M Land Registry,Accommodation Costs,2045020,202307
Rother District Council,24/08/2023,T32ENVSERV,"Environmental Services, Licencing & Community Safety",32144,EH Environmental Services Admin R + W Partnership,D2513,Hired and Contracted services,6.00,H M Land Registry,Accommodation Costs,2045021,202307
Rother District Council,26/07/2023,T32ENVSERV,"Environmental Services, Licencing & Community Safety",32144,EH Environmental Services Admin R + W Partnership,D2513,Hired and Contracted services,6.00,H M Land Registry,Accommodation Costs,2045023,202307
Rother District Council,26/07/2023,T32ENVSERV,"Environmental Services, Licencing & Community Safety",20129,Community Safety - CCTV costs only,D2513,Hired and Contracted services,6.00,H M Land Registry,Accommodation Costs,2045023,202307
Rother District Council,27/07/2023,T32ENVSERV,"Environmental Services, Licencing & Community Safety",20129,Community Safety - CCTV costs only,D2513,Hired and Contracted services,12.00,H M Land Registry,Accommodation Costs,2045024,202307
Rother District Council,29/09/2023,T32ENVSERV,"Environmental Services, Licencing & Community Safety",32144,EH Environmental Services Admin R + W Partnership,D2513,Hired and Contracted services,6.00,H M Land Registry,Accommodation Costs,2045026,202307
Rother District Council,30/06/2023,T32ENVSERV,"Environmental Services, Licencing & Community Safety",32134,EH Pollution R + W Partnership,D2513,Hired and Contracted services,6.00,H M Land Registry,Accommodation Costs,2045027,202307
Rother District Council,30/06/2023,T32ENVSERV,"Environmental Services, Licencing & Community Safety",32150,EH Food and Safety Team,D2513,Hired and Contracted services,3.00,H M Land Registry,Accommodation Costs,2045027,202307
Rother District Council,01/06/2023,T32ENVSERV,"Environmental Services, Licencing & Community Safety",32144,EH Environmental Services Admin R + W Partnership,D2513,Hired and Contracted services,12.00,H M Land Registry,Accommodation Costs,2045028,202307
Rother District Council,01/06/2023,T32ENVSERV,"Environmental Services, Licencing & Community Safety",20129,Community Safety - CCTV costs only,D2513,Hired and Contracted services,6.00,H M Land Registry,Accommodation Costs,2045028,202307
Rother District Council,01/09/2023,T32ENVSERV,"Environmental Services, Licencing & Community Safety",32144,EH Environmental Services Admin R + W Partnership,D2513,Hired and Contracted services,6.00,H M Land Registry,Accommodation Costs,2045029,202307
Rother District Council,20/12/2023,T32ENVSERV,"Environmental Services, Licencing & Community Safety",32151,EH Pollution Team,C2337,Car payment options,99.47,REDACTED PERSONAL DATA,Car payment options,2047137,202309
Rother District Council,26/09/2023,T32ENVSERV,"Environmental Services, Licencing & Community Safety",20130,Crime and Disorder Initiatives,D1201,Equipment & Materials,714.72,Hastings Borough Council,Accommodation Costs,2045472,202308
Rother District Council,20/12/2023,T32ENVSERV,"Environmental Services, Licencing & Community Safety",32151,EH Pollution Team,C2337,Car payment options,77.47,REDACTED PERSONAL DATA,,2047137,202309
Rother District Council,14/11/2023,T32ENVSERV,"Environmental Services, Licencing & Community Safety",20130,Crime and Disorder Initiatives,D1201,Equipment & Materials,100.00,Hourglass (Safer Ageing),Equipment & Materials - Safer Rother Partnership,2046436,202308
Rother District Council,20/12/2023,T32ENVSERV,"Environmental Services, Licencing & Community Safety",32150,EH Food and Safety Team,C2337,Car payment options,73.43,REDACTED PERSONAL DATA,,2047137,202309
Rother District Council,20/12/2023,T32ENVSERV,"Environmental Services, Licencing & Community Safety",32150,EH Food and Safety Team,C2337,Car payment options,99.47,REDACTED PERSONAL DATA,,2047137,202309
Rother District Council,20/12/2023,T32ENVSERV,"Environmental Services, Licencing & Community Safety",32150,EH Food and Safety Team,C2337,Car payment options,63.86,REDACTED PERSONAL DATA,,2047137,202309
Rother District Council,12/10/2023,T32ENVSERV,"Environmental Services, Licencing & Community Safety",32134,EH Pollution R + W Partnership,D1201,Equipment & Materials,700.00,Matts Monitors Ltd,Equipment & Materials - EnvH- Air Quality Maintenance Contr,2046049,202308
Rother District Council,05/10/2023,T32ENVSERV,"Environmental Services, Licencing & Community Safety",32134,EH Pollution R + W Partnership,D2513,Hired and Contracted services,"2,100.00",Mediation Plus,Hired and contracted services - Service fee paid,2045154,202307
Rother District Council,05/10/2023,T32ENVSERV,"Environmental Services, Licencing & Community Safety",32134,EH Pollution R + W Partnership,D2513,Hired and Contracted services,500.00,Mediation Plus,Hired and contracted services - Service fee paid,2045155,202307
Rother District Council,16/11/2023,T32ENVSERV,"Environmental Services, Licencing & Community Safety",32144,EH Environmental Services Admin R + W Partnership,A2203,Training,490.00,Mid Sussex District Council,Training,2046488,202308
Rother District Council,20/12/2023,T32ENVSERV,"Environmental Services, Licencing & Community Safety",32151,EH Pollution Team,C2337,Car payment options,77.47,REDACTED PERSONAL DATA,,2047137,202309
Rother District Council,19/10/2023,T32ENVSERV,"Environmental Services, Licencing & Community Safety",20130,Crime and Disorder Initiatives,D2923,Grants made,510.00,Mobile Variable Message Signs Ltd,Grants made - Crime Prevention Initiative (JAG),2046117,202308
Rother District Council,24/10/2023,T32ENVSERV,"Environmental Services, Licencing & Community Safety",20130,Crime and Disorder Initiatives,D2923,Grants made,"1,640.00",Mobile Variable Message Signs Ltd,Grants made - Crime Prevention Initiative (JAG),2046118,202308
Rother District Council,31/10/2023,T32ENVSERV,"Environmental Services, Licencing & Community Safety",20130,Crime and Disorder Initiatives,D2923,Grants made,410.00,Mobile Variable Message Signs Ltd,Grants made - Crime Prevention Initiative (JAG),2046119,202308
Rother District Council,14/11/2023,T32ENVSERV,"Environmental Services, Licencing & Community Safety",20130,Crime and Disorder Initiatives,D2923,Grants made,720.00,Mobile Variable Message Signs Ltd,Grants made - Crime Prevention Initiative (JAG),2046493,202309
Rother District Council,20/12/2023,T32ENVSERV,"Environmental Services, Licencing & Community Safety",32151,EH Pollution Team,C2337,Car payment options,77.47,REDACTED PERSONAL DATA,,2047137,202309
Rother District Council,20/12/2023,T32ENVSERV,"Environmental Services, Licencing & Community Safety",32150,EH Food and Safety Team,C2337,Car payment options,77.67,REDACTED PERSONAL DATA,,2047137,202309
Rother District Council,20/12/2023,T32ENVSERV,"Environmental Services, Licencing & Community Safety",32150,EH Food and Safety Team,C2337,Car payment options,77.47,REDACTED PERSONAL DATA,,2047137,202309
Rother District Council,20/12/2023,T32ENVSERV,"Environmental Services, Licencing & Community Safety",32148,"EH Head of Service - Environmental Services, Licensing & Community Safety",C2337,Car payment options,107.54,REDACTED PERSONAL DATA,,2047137,202309
Rother District Council,20/12/2023,T32ENVSERV,"Environmental Services, Licencing & Community Safety",32149,EH Licensing Team,C2337,Car payment options,45.60,REDACTED PERSONAL DATA,,2047137,202309
Rother District Council,20/12/2023,T32ENVSERV,"Environmental Services, Licencing & Community Safety",32150,EH Food and Safety Team,C2337,Car payment options,73.26,REDACTED PERSONAL DATA,,2047137,202309
Rother District Council,20/12/2023,T32ENVSERV,"Environmental Services, Licencing & Community Safety",32150,EH Food and Safety Team,C2337,Car payment options,73.26,REDACTED PERSONAL DATA,,2047137,202309
Rother District Council,16/10/2023,T32ENVSERV,"Environmental Services, Licencing & Community Safety",20130,Crime and Disorder Initiatives,D1201,Equipment & Materials,519.00,PS Wholesale Ltd,Equipment & Materials - Safer Rother Partnership,2045729,202308
Rother District Council,20/12/2023,T32ENVSERV,"Environmental Services, Licencing & Community Safety",32149,EH Licensing Team,C2337,Car payment options,77.47,REDACTED PERSONAL DATA,,2047137,202309
Rother District Council,20/12/2023,T32ENVSERV,"Environmental Services, Licencing & Community Safety",32151,EH Pollution Team,C2337,Car payment options,73.26,REDACTED PERSONAL DATA,,2047137,202309
Rother District Council,22/11/2023,T32ENVSERV,"Environmental Services, Licencing & Community Safety",32134,EH Pollution R + W Partnership,D2513,Hired and Contracted services,650.00,Crouch�s Clearance,Hired and contracted services - Service fee paid,2046697,202309
Rother District Council,20/12/2023,T32ENVSERV,"Environmental Services, Licencing & Community Safety",32150,EH Food and Safety Team,C2337,Car payment options,73.26,REDACTED PERSONAL DATA,,2047137,202309
Rother District Council,20/12/2023,T32ENVSERV,"Environmental Services, Licencing & Community Safety",32151,EH Pollution Team,C2337,Car payment options,77.47,REDACTED PERSONAL DATA,,2047137,202309
Rother District Council,19/09/2023,T32ENVSERV,"Environmental Services, Licencing & Community Safety",32133,EH Food Hyg / Idc / Water Purity R + W Partnership,D2513,Hired and Contracted services,592.23,South East Water Ltd Scientific Services,Hired and contracted services - EnvH-Water Sampling,2045284,202307
Rother District Council,45280,T32ENVSERV,"Environmental Services, Licencing & Community Safety",32151,EH Pollution Team,C2337,Car payment options, 73.26 ,REDACTED PERSONAL DATA,,2047137,202309
Rother District Council,45261,T32ENVSERV,"Environmental Services, Licencing & Community Safety",32133,EH Food Hyg / Idc / Water Purity R + W Partnership,D1203,Books And Publications," 1,896.24 ",Thomson Reuters Ltd,Books And Publications - EnvH Books+Public.(Health+Food Saf),2046784,202309
Rother District Council,45211,T32ENVSERV,"Environmental Services, Licencing & Community Safety",32142,EH Taxi and Private Hire Licences R + W Partnership,D2513,Hired and Contracted services, 933.32 ,VIP-System Ltd,Hired and contracted services - WDC Taxi Licence Plates,2045885,202308
Rother District Council,45211,T32ENVSERV,"Environmental Services, Licencing & Community Safety",32142,EH Taxi and Private Hire Licences R + W Partnership,D2513,Hired and Contracted services, 933.32 ,VIP-System Ltd,Hired and contracted services - RDC Taxi Licence Plates,2045887,202308
Rother District Council,45195,T32ENVSERV,"Environmental Services, Licencing & Community Safety",20187,Pollution,D2513,Hired and Contracted services," 2,800.00 ",Wave Arts Bexhill CIC,Hired and contracted services - Service fee paid,2045529,202308
Rother District Council,45280,T32ENVSERV,"Environmental Services, Licencing & Community Safety",32150,EH Food and Safety Team,C2337,Car payment options, 73.26 ,REDACTED PERSONAL DATA,,2047137,202309
Rother District Council,45280,T32ENVSERV,"Environmental Services, Licencing & Community Safety",32150,EH Food and Safety Team,C2337,Car payment options, 77.47 ,REDACTED PERSONAL DATA,,2047137,202309
Rother District Council,45280,T32ENVSERV,"Environmental Services, Licencing & Community Safety",32151,EH Pollution Team,C2337,Car payment options, 45.80 ,REDACTED PERSONAL DATA,,2047137,202309
Rother District Council,20/12/2023,T32INTAUDIT,Internal Audit,20181,Internal Audit,C2337,Car payment options,101.65,REDACTED PERSONAL DATA,Grants made,2047137,202309
Rother District Council,14/07/2023,T32INTAUDIT,Internal Audit,20181,Internal Audit,D2513,Hired and Contracted services,6.00,H M Land Registry,Accommodation Costs,2045011,202307
Rother District Council,08/11/2023,T32REVBEN,Revenues & Benefits,20201,Household Support Fund (HFS) from 202108,D2923,Grants made,200.00,REDACTED PERSONAL DATA,Grants made,2045722,202308
Rother District Council,28/11/2023,T32REVBEN,Revenues & Benefits,20201,Household Support Fund (HFS) from 202108,D2923,Grants made,200.00,REDACTED PERSONAL DATA,Grants made,2046415,202308
Rother District Council,06/09/2023,T32REVBEN,Revenues & Benefits,20216,Cost Of Collection,D2509,Consultants and Other Services,"6,507.50",Airey Consultancy Services Ltd (ACS),Car payment options,2045903,202308
Rother District Council,05/09/2023,T32REVBEN,Revenues & Benefits,20215,Revenue and Benefits,A2203,Training,"2,780.00",Airey Consultancy Services Ltd (ACS),Car payment options,2045406,202308
Rother District Council,20/10/2023,T32REVBEN,Revenues & Benefits,20215,Revenue and Benefits,A2203,Training,102.00,Arun District Council,Grants made,2045426,202308
Rother District Council,19/09/2023,T32REVBEN,Revenues & Benefits,20207,Reliefs & Benefits-Housing Benefit,D2513,Hired and Contracted services,"2,400.00",Branch and Lee,Grants made,2044908,202307
Rother District Council,27/11/2023,T32REVBEN,Revenues & Benefits,20216,Cost Of Collection,D2509,Consultants and Other Services,"17,090.00",Capita Business Services Ltd,Grants made,2046748,202309
Rother District Council,25/10/2023,T32REVBEN,Revenues & Benefits,20216,Cost Of Collection,D2639,Departmental Systems,"2,573.06",Capita Business Services Ltd,Grants made,2046056,202308
Rother District Council,07/11/2023,T32REVBEN,Revenues & Benefits,20216,Cost Of Collection,D2639,Departmental Systems,"2,223.00",Document Output Solutions UK Ltd,Grants made,2046299,202308
Rother District Council,10/10/2023,T32REVBEN,Revenues & Benefits,20315,Payments to Ukrainian Hosts,D2923,Grants made,500.00,REDACTED PERSONAL DATA,Grants made,2044944,202307
Rother District Council,08/11/2023,T32REVBEN,Revenues & Benefits,20315,Payments to Ukrainian Hosts,D2923,Grants made,500.00,REDACTED PERSONAL DATA,Grants made,2045716,202308
Rother District Council,05/12/2023,T32REVBEN,Revenues & Benefits,20315,Payments to Ukrainian Hosts,D2923,Grants made,500.00,REDACTED PERSONAL DATA,Grants made,2046711,202309
Rother District Council,01/10/2023,T32REVBEN,Revenues & Benefits,20216,Cost Of Collection,D2513,Hired and Contracted services,"2,230.70",DSI Billing Services Ltd,Grants made,2045548,202308
Rother District Council,06/11/2023,T32REVBEN,Revenues & Benefits,20216,Cost Of Collection,D2513,Hired and Contracted services,"1,200.50",DSI Billing Services Ltd,Grants made,2046450,202308
Rother District Council,14/09/2023,T32REVBEN,Revenues & Benefits,20216,Cost Of Collection,D2626,Postages,575.16,DSI Billing Services Ltd,Grants made,2044864,202307
Rother District Council,12/10/2023,T32REVBEN,Revenues & Benefits,20216,Cost Of Collection,D2626,Postages,"3,481.11",DSI Billing Services Ltd,Grants made,2045324,202309
Rother District Council,22/09/2023,T32REVBEN,Revenues & Benefits,20216,Cost Of Collection,D2626,Postages,838.04,DSI Billing Services Ltd,Grants made,2045502,202308
Rother District Council,20/09/2023,T32REVBEN,Revenues & Benefits,20216,Cost Of Collection,D2626,Postages,771.92,DSI Billing Services Ltd,Grants made,2045539,202308
Rother District Council,09/10/2023,T32REVBEN,Revenues & Benefits,20216,Cost Of Collection,D2626,Postages,826.39,DSI Billing Services Ltd,Grants made,2045542,202308
Rother District Council,10/10/2023,T32REVBEN,Revenues & Benefits,20216,Cost Of Collection,D2626,Postages,"1,754.78",DSI Billing Services Ltd,Grants made,2045543,202308
Rother District Council,19/10/2023,T32REVBEN,Revenues & Benefits,20216,Cost Of Collection,D2626,Postages,868.68,DSI Billing Services Ltd,Grants made,2045545,202308
Rother District Council,23/10/2023,T32REVBEN,Revenues & Benefits,20216,Cost Of Collection,D2626,Postages,847.60,DSI Billing Services Ltd,Grants made,2045546,202308
Rother District Council,02/11/2023,T32REVBEN,Revenues & Benefits,20216,Cost Of Collection,D2626,Postages,"1,172.33",DSI Billing Services Ltd,Grants made,2046292,202308
Rother District Council,08/11/2023,T32REVBEN,Revenues & Benefits,20216,Cost Of Collection,D2626,Postages,803.68,DSI Billing Services Ltd,Grants made,2046333,202308
Rother District Council,14/11/2023,T32REVBEN,Revenues & Benefits,20216,Cost Of Collection,D2626,Postages,"1,212.63",DSI Billing Services Ltd,Grants made,2046448,202308
Rother District Council,22/11/2023,T32REVBEN,Revenues & Benefits,20216,Cost Of Collection,D2626,Postages,830.12,DSI Billing Services Ltd,Grants made,2046473,202308
Rother District Council,28/11/2023,T32REVBEN,Revenues & Benefits,20216,Cost Of Collection,D2626,Postages,814.85,DSI Billing Services Ltd,Grants made,2047113,202309
Rother District Council,10/08/2023,T32REVBEN,Revenues & Benefits,20216,Cost Of Collection,D2518,Advertising,450.00,East Sussex County Council,Grants made,2044912,202307
Rother District Council,03/08/2023,T32REVBEN,Revenues & Benefits,20216,Cost Of Collection,D2513,Hired and Contracted services,33.00,H M Land Registry,Accommodation Costs,2045000,202307
Rother District Council,18/08/2023,T32REVBEN,Revenues & Benefits,20216,Cost Of Collection,D2513,Hired and Contracted services,3.00,H M Land Registry,Accommodation Costs,2045001,202307
Rother District Council,04/08/2023,T32REVBEN,Revenues & Benefits,20216,Cost Of Collection,D2513,Hired and Contracted services,6.00,H M Land Registry,Car payment options,2045002,202307
Rother District Council,05/07/2023,T32REVBEN,Revenues & Benefits,20216,Cost Of Collection,D2513,Hired and Contracted services,6.00,H M Land Registry,Car payment options,2045003,202307
Rother District Council,06/09/2023,T32REVBEN,Revenues & Benefits,20216,Cost Of Collection,D2513,Hired and Contracted services,3.00,H M Land Registry,Car payment options,2045004,202307
Rother District Council,07/06/2023,T32REVBEN,Revenues & Benefits,20216,Cost Of Collection,D2513,Hired and Contracted services,12.00,H M Land Registry,Car payment options,2045005,202307
Rother District Council,07/07/2023,T32REVBEN,Revenues & Benefits,20216,Cost Of Collection,D2513,Hired and Contracted services,6.00,H M Land Registry,Accommodation Costs,2045006,202307
Rother District Council,09/06/2023,T32REVBEN,Revenues & Benefits,20216,Cost Of Collection,D2513,Hired and Contracted services,21.00,H M Land Registry,Accommodation Costs,2045008,202307
Rother District Council,10/08/2023,T32REVBEN,Revenues & Benefits,20216,Cost Of Collection,D2513,Hired and Contracted services,39.00,H M Land Registry,Accommodation Costs,2045009,202307
Rother District Council,11/08/2023,T32REVBEN,Revenues & Benefits,20216,Cost Of Collection,D2513,Hired and Contracted services,3.00,H M Land Registry,Accommodation Costs,2045010,202307
Rother District Council,14/07/2023,T32REVBEN,Revenues & Benefits,20216,Cost Of Collection,D2513,Hired and Contracted services,36.00,H M Land Registry,Accommodation Costs,2045011,202307
Rother District Council,15/09/2023,T32REVBEN,Revenues & Benefits,20216,Cost Of Collection,D2513,Hired and Contracted services,9.00,H M Land Registry,Accommodation Costs,2045012,202307
Rother District Council,16/06/2023,T32REVBEN,Revenues & Benefits,20216,Cost Of Collection,D2513,Hired and Contracted services,21.00,H M Land Registry,Sewerage,2045013,202307
Rother District Council,16/08/2023,T32REVBEN,Revenues & Benefits,20216,Cost Of Collection,D2513,Hired and Contracted services,21.00,H M Land Registry,Accommodation Costs,2045014,202307
Rother District Council,17/08/2023,T32REVBEN,Revenues & Benefits,20216,Cost Of Collection,D2513,Hired and Contracted services,9.00,H M Land Registry,Accommodation Costs,2045015,202307
Rother District Council,19/09/2023,T32REVBEN,Revenues & Benefits,20216,Cost Of Collection,D2513,Hired and Contracted services,15.00,H M Land Registry,Accommodation Costs,2045016,202307
Rother District Council,21/07/2023,T32REVBEN,Revenues & Benefits,20216,Cost Of Collection,D2513,Hired and Contracted services,6.00,H M Land Registry,Accommodation Costs,2045017,202307
Rother District Council,22/06/2023,T32REVBEN,Revenues & Benefits,20216,Cost Of Collection,D2513,Hired and Contracted services,15.00,H M Land Registry,Accommodation Costs,2045018,202307
Rother District Council,22/09/2023,T32REVBEN,Revenues & Benefits,20216,Cost Of Collection,D2513,Hired and Contracted services,18.00,H M Land Registry,Accommodation Costs,2045019,202307
Rother District Council,23/06/2023,T32REVBEN,Revenues & Benefits,20216,Cost Of Collection,D2513,Hired and Contracted services,3.00,H M Land Registry,Accommodation Costs,2045020,202307
Rother District Council,24/08/2023,T32REVBEN,Revenues & Benefits,20216,Cost Of Collection,D2513,Hired and Contracted services,33.00,H M Land Registry,Accommodation Costs,2045021,202307
Rother District Council,25/08/2023,T32REVBEN,Revenues & Benefits,20216,Cost Of Collection,D2513,Hired and Contracted services,15.00,H M Land Registry,Accommodation Costs,2045022,202307
Rother District Council,26/07/2023,T32REVBEN,Revenues & Benefits,20216,Cost Of Collection,D2513,Hired and Contracted services,36.00,H M Land Registry,Accommodation Costs,2045023,202307
Rother District Council,27/07/2023,T32REVBEN,Revenues & Benefits,20216,Cost Of Collection,D2513,Hired and Contracted services,3.00,H M Land Registry,Accommodation Costs,2045024,202307
Rother District Council,28/07/2023,T32REVBEN,Revenues & Benefits,20216,Cost Of Collection,D2513,Hired and Contracted services,6.00,H M Land Registry,Accommodation Costs,2045025,202307
Rother District Council,29/09/2023,T32REVBEN,Revenues & Benefits,20216,Cost Of Collection,D2513,Hired and Contracted services,21.00,H M Land Registry,Accommodation Costs,2045026,202307
Rother District Council,30/06/2023,T32REVBEN,Revenues & Benefits,20216,Cost Of Collection,D2513,Hired and Contracted services,12.00,H M Land Registry,Accommodation Costs,2045027,202307
Rother District Council,01/06/2023,T32REVBEN,Revenues & Benefits,20216,Cost Of Collection,D2513,Hired and Contracted services,18.00,H M Land Registry,Accommodation Costs,2045028,202307
Rother District Council,01/09/2023,T32REVBEN,Revenues & Benefits,20216,Cost Of Collection,D2513,Hired and Contracted services,12.00,H M Land Registry,Accommodation Costs,2045029,202307
Rother District Council,16/10/2023,T32REVBEN,Revenues & Benefits,20217,Reliefs & Benefits-Council Tax Benefit,D2513,Hired and Contracted services,"4,750.00",Hastings Advice and  Representation Centre (HARC),Hired and Contracted services,2045827,202308
Rother District Council,05/10/2023,T32REVBEN,Revenues & Benefits,20216,Cost Of Collection,D2513,Hired and Contracted services,300.00,Inform CPI Ltd,Hired and contracted services - RV Finder,2045997,202308
Rother District Council,08/11/2023,T32REVBEN,Revenues & Benefits,20216,Cost Of Collection,D2513,Hired and Contracted services,360.00,Inform CPI Ltd,Hired and contracted services - RV Finder,2045999,202308
Rother District Council,03/11/2023,T32REVBEN,Revenues & Benefits,20216,Cost Of Collection,D2513,Hired and Contracted services,"4,500.00",Inform CPI Ltd,Hired and contracted services - RV Finder,2046001,202308
Rother District Council,03/10/2023,T32REVBEN,Revenues & Benefits,20321,Alternative Fuel Payment Alternative Funding  (AFP AF),D2923,Grants made,200.00,REDACTED PERSONAL DATA,,2044850,202307
Rother District Council,03/10/2023,T32REVBEN,Revenues & Benefits,20315,Payments to Ukrainian Hosts,D2923,Grants made,500.00,REDACTED PERSONAL DATA,,2044849,202307
Rother District Council,10/10/2023,T32REVBEN,Revenues & Benefits,20315,Payments to Ukrainian Hosts,D2923,Grants made,500.00,REDACTED PERSONAL DATA,,2044944,202307
Rother District Council,29/11/2023,T32REVBEN,Revenues & Benefits,20201,Household Support Fund (HFS) from 202108,D2923,Grants made,200.00,REDACTED PERSONAL DATA,,2046462,202308
Rother District Council,08/11/2023,T32REVBEN,Revenues & Benefits,20201,Household Support Fund (HFS) from 202108,D2923,Grants made,200.00,REDACTED PERSONAL DATA,,2045722,202308
Rother District Council,08/11/2023,T32REVBEN,Revenues & Benefits,20201,Household Support Fund (HFS) from 202108,D2923,Grants made,200.00,REDACTED PERSONAL DATA,,2045722,202308
Rother District Council,22/11/2023,T32REVBEN,Revenues & Benefits,20201,Household Support Fund (HFS) from 202108,D2923,Grants made,200.00,REDACTED PERSONAL DATA,,2046179,202308
Rother District Council,08/11/2023,T32REVBEN,Revenues & Benefits,20201,Household Support Fund (HFS) from 202108,D2923,Grants made,200.00,REDACTED PERSONAL DATA,,2045722,202308
Rother District Council,08/11/2023,T32REVBEN,Revenues & Benefits,20201,Household Support Fund (HFS) from 202108,D2923,Grants made,200.00,REDACTED PERSONAL DATA,,2045722,202308
Rother District Council,15/11/2023,T32REVBEN,Revenues & Benefits,20201,Household Support Fund (HFS) from 202108,D2923,Grants made,200.00,REDACTED PERSONAL DATA,,2045906,202308
Rother District Council,08/11/2023,T32REVBEN,Revenues & Benefits,20201,Household Support Fund (HFS) from 202108,D2923,Grants made,200.00,REDACTED PERSONAL DATA,,2045722,202308
Rother District Council,08/11/2023,T32REVBEN,Revenues & Benefits,20201,Household Support Fund (HFS) from 202108,D2923,Grants made,200.00,REDACTED PERSONAL DATA,,2045722,202308
Rother District Council,08/11/2023,T32REVBEN,Revenues & Benefits,20201,Household Support Fund (HFS) from 202108,D2923,Grants made,200.00,REDACTED PERSONAL DATA,,2045722,202308
Rother District Council,08/11/2023,T32REVBEN,Revenues & Benefits,20201,Household Support Fund (HFS) from 202108,D2923,Grants made,200.00,REDACTED PERSONAL DATA,,2045722,202308
Rother District Council,08/11/2023,T32REVBEN,Revenues & Benefits,20201,Household Support Fund (HFS) from 202108,D2923,Grants made,200.00,REDACTED PERSONAL DATA,,2045722,202308
Rother District Council,15/11/2023,T32REVBEN,Revenues & Benefits,20201,Household Support Fund (HFS) from 202108,D2923,Grants made,200.00,REDACTED PERSONAL DATA,,2045906,202308
Rother District Council,08/11/2023,T32REVBEN,Revenues & Benefits,20201,Household Support Fund (HFS) from 202108,D2923,Grants made,200.00,REDACTED PERSONAL DATA,,2045722,202308
Rother District Council,08/11/2023,T32REVBEN,Revenues & Benefits,20201,Household Support Fund (HFS) from 202108,D2923,Grants made,200.00,REDACTED PERSONAL DATA,,2045722,202308
Rother District Council,15/11/2023,T32REVBEN,Revenues & Benefits,20201,Household Support Fund (HFS) from 202108,D2923,Grants made,200.00,REDACTED PERSONAL DATA,,2045906,202308
Rother District Council,22/11/2023,T32REVBEN,Revenues & Benefits,20201,Household Support Fund (HFS) from 202108,D2923,Grants made,200.00,REDACTED PERSONAL DATA,,2046179,202308
Rother District Council,13/12/2023,T32REVBEN,Revenues & Benefits,20201,Household Support Fund (HFS) from 202108,D2923,Grants made,200.00,REDACTED PERSONAL DATA,,2046845,202309
Rother District Council,15/11/2023,T32REVBEN,Revenues & Benefits,20201,Household Support Fund (HFS) from 202108,D2923,Grants made,200.00,REDACTED PERSONAL DATA,,2045906,202308
Rother District Council,08/11/2023,T32REVBEN,Revenues & Benefits,20201,Household Support Fund (HFS) from 202108,D2923,Grants made,200.00,REDACTED PERSONAL DATA,,2045722,202308
Rother District Council,10/10/2023,T32REVBEN,Revenues & Benefits,20315,Payments to Ukrainian Hosts,D2923,Grants made,500.00,REDACTED PERSONAL DATA,,2044944,202307
Rother District Council,08/11/2023,T32REVBEN,Revenues & Benefits,20315,Payments to Ukrainian Hosts,D2923,Grants made,500.00,REDACTED PERSONAL DATA,,2045716,202308
Rother District Council,05/12/2023,T32REVBEN,Revenues & Benefits,20315,Payments to Ukrainian Hosts,D2923,Grants made,500.00,REDACTED PERSONAL DATA,,2046711,202309
Rother District Council,15/11/2023,T32REVBEN,Revenues & Benefits,20201,Household Support Fund (HFS) from 202108,D2923,Grants made,200.00,REDACTED PERSONAL DATA,,2045906,202308
Rother District Council,08/11/2023,T32REVBEN,Revenues & Benefits,20201,Household Support Fund (HFS) from 202108,D2923,Grants made,200.00,REDACTED PERSONAL DATA,,2045722,202308
Rother District Council,15/11/2023,T32REVBEN,Revenues & Benefits,20201,Household Support Fund (HFS) from 202108,D2923,Grants made,200.00,REDACTED PERSONAL DATA,,2045906,202308
Rother District Council,08/11/2023,T32REVBEN,Revenues & Benefits,20201,Household Support Fund (HFS) from 202108,D2923,Grants made,200.00,REDACTED PERSONAL DATA,,2045722,202308
Rother District Council,15/11/2023,T32REVBEN,Revenues & Benefits,20201,Household Support Fund (HFS) from 202108,D2923,Grants made,200.00,REDACTED PERSONAL DATA,,2045906,202308
Rother District Council,15/11/2023,T32REVBEN,Revenues & Benefits,20201,Household Support Fund (HFS) from 202108,D2923,Grants made,200.00,REDACTED PERSONAL DATA,,2045906,202308
Rother District Council,22/11/2023,T32REVBEN,Revenues & Benefits,20201,Household Support Fund (HFS) from 202108,D2923,Grants made,200.00,REDACTED PERSONAL DATA,,2046179,202308
Rother District Council,08/11/2023,T32REVBEN,Revenues & Benefits,20201,Household Support Fund (HFS) from 202108,D2923,Grants made,200.00,REDACTED PERSONAL DATA,,2045722,202308
Rother District Council,20/12/2023,T32REVBEN,Revenues & Benefits,20201,Household Support Fund (HFS) from 202108,D2923,Grants made,200.00,REDACTED PERSONAL DATA,,2047117,202309
Rother District Council,08/11/2023,T32REVBEN,Revenues & Benefits,20201,Household Support Fund (HFS) from 202108,D2923,Grants made,200.00,REDACTED PERSONAL DATA,,2045722,202308
Rother District Council,13/12/2023,T32REVBEN,Revenues & Benefits,20201,Household Support Fund (HFS) from 202108,D2923,Grants made,200.00,REDACTED PERSONAL DATA,,2046845,202309
Rother District Council,05/12/2023,T32REVBEN,Revenues & Benefits,20201,Household Support Fund (HFS) from 202108,D2923,Grants made,200.00,REDACTED PERSONAL DATA,,2046676,202309
Rother District Council,08/11/2023,T32REVBEN,Revenues & Benefits,20201,Household Support Fund (HFS) from 202108,D2923,Grants made,200.00,REDACTED PERSONAL DATA,,2045722,202308
Rother District Council,08/11/2023,T32REVBEN,Revenues & Benefits,20201,Household Support Fund (HFS) from 202108,D2923,Grants made,200.00,REDACTED PERSONAL DATA,,2045722,202308
Rother District Council,08/11/2023,T32REVBEN,Revenues & Benefits,20201,Household Support Fund (HFS) from 202108,D2923,Grants made,200.00,REDACTED PERSONAL DATA,,2045722,202308
Rother District Council,08/11/2023,T32REVBEN,Revenues & Benefits,20201,Household Support Fund (HFS) from 202108,D2923,Grants made,200.00,REDACTED PERSONAL DATA,,2045722,202308
Rother District Council,13/12/2023,T32REVBEN,Revenues & Benefits,20201,Household Support Fund (HFS) from 202108,D2923,Grants made,200.00,REDACTED PERSONAL DATA,,2046845,202309
Rother District Council,08/11/2023,T32REVBEN,Revenues & Benefits,20201,Household Support Fund (HFS) from 202108,D2923,Grants made,200.00,REDACTED PERSONAL DATA,,2045722,202308
Rother District Council,08/11/2023,T32REVBEN,Revenues & Benefits,20201,Household Support Fund (HFS) from 202108,D2923,Grants made,200.00,REDACTED PERSONAL DATA,,2045722,202308
Rother District Council,22/11/2023,T32REVBEN,Revenues & Benefits,20201,Household Support Fund (HFS) from 202108,D2923,Grants made,200.00,REDACTED PERSONAL DATA,,2046179,202308
Rother District Council,08/11/2023,T32REVBEN,Revenues & Benefits,20201,Household Support Fund (HFS) from 202108,D2923,Grants made,200.00,REDACTED PERSONAL DATA,,2045722,202308
Rother District Council,08/11/2023,T32REVBEN,Revenues & Benefits,20201,Household Support Fund (HFS) from 202108,D2923,Grants made,200.00,REDACTED PERSONAL DATA,,2045722,202308
Rother District Council,08/11/2023,T32REVBEN,Revenues & Benefits,20201,Household Support Fund (HFS) from 202108,D2923,Grants made,200.00,REDACTED PERSONAL DATA,,2045722,202308
Rother District Council,08/11/2023,T32REVBEN,Revenues & Benefits,20201,Household Support Fund (HFS) from 202108,D2923,Grants made,200.00,REDACTED PERSONAL DATA,,2045722,202308
Rother District Council,08/11/2023,T32REVBEN,Revenues & Benefits,20201,Household Support Fund (HFS) from 202108,D2923,Grants made,200.00,REDACTED PERSONAL DATA,,2045722,202308
Rother District Council,15/11/2023,T32REVBEN,Revenues & Benefits,20201,Household Support Fund (HFS) from 202108,D2923,Grants made,200.00,REDACTED PERSONAL DATA,,2045906,202308
Rother District Council,08/11/2023,T32REVBEN,Revenues & Benefits,20201,Household Support Fund (HFS) from 202108,D2923,Grants made,200.00,REDACTED PERSONAL DATA,,2045722,202308
Rother District Council,08/11/2023,T32REVBEN,Revenues & Benefits,20201,Household Support Fund (HFS) from 202108,D2923,Grants made,200.00,REDACTED PERSONAL DATA,,2045722,202308
Rother District Council,08/11/2023,T32REVBEN,Revenues & Benefits,20201,Household Support Fund (HFS) from 202108,D2923,Grants made,200.00,REDACTED PERSONAL DATA,,2045722,202308
Rother District Council,15/11/2023,T32REVBEN,Revenues & Benefits,20201,Household Support Fund (HFS) from 202108,D2923,Grants made,200.00,REDACTED PERSONAL DATA,,2045906,202308
Rother District Council,15/11/2023,T32REVBEN,Revenues & Benefits,20201,Household Support Fund (HFS) from 202108,D2923,Grants made,200.00,REDACTED PERSONAL DATA,,2045906,202308
Rother District Council,08/11/2023,T32REVBEN,Revenues & Benefits,20201,Household Support Fund (HFS) from 202108,D2923,Grants made,200.00,REDACTED PERSONAL DATA,,2045722,202308
Rother District Council,15/11/2023,T32REVBEN,Revenues & Benefits,20201,Household Support Fund (HFS) from 202108,D2923,Grants made,200.00,REDACTED PERSONAL DATA,,2045906,202308
Rother District Council,08/11/2023,T32REVBEN,Revenues & Benefits,20201,Household Support Fund (HFS) from 202108,D2923,Grants made,200.00,REDACTED PERSONAL DATA,,2045722,202308
Rother District Council,08/11/2023,T32REVBEN,Revenues & Benefits,20201,Household Support Fund (HFS) from 202108,D2923,Grants made,200.00,REDACTED PERSONAL DATA,,2045722,202308
Rother District Council,08/11/2023,T32REVBEN,Revenues & Benefits,20201,Household Support Fund (HFS) from 202108,D2923,Grants made,200.00,REDACTED PERSONAL DATA,,2045722,202308
Rother District Council,08/11/2023,T32REVBEN,Revenues & Benefits,20201,Household Support Fund (HFS) from 202108,D2923,Grants made,200.00,REDACTED PERSONAL DATA,,2045722,202308
Rother District Council,08/11/2023,T32REVBEN,Revenues & Benefits,20201,Household Support Fund (HFS) from 202108,D2923,Grants made,200.00,REDACTED PERSONAL DATA,,2045722,202308
Rother District Council,13/12/2023,T32REVBEN,Revenues & Benefits,20201,Household Support Fund (HFS) from 202108,D2923,Grants made,200.00,REDACTED PERSONAL DATA,,2046845,202309
Rother District Council,15/11/2023,T32REVBEN,Revenues & Benefits,20201,Household Support Fund (HFS) from 202108,D2923,Grants made,200.00,REDACTED PERSONAL DATA,,2045906,202308
Rother District Council,08/11/2023,T32REVBEN,Revenues & Benefits,20201,Household Support Fund (HFS) from 202108,D2923,Grants made,200.00,REDACTED PERSONAL DATA,,2045722,202308
Rother District Council,08/11/2023,T32REVBEN,Revenues & Benefits,20201,Household Support Fund (HFS) from 202108,D2923,Grants made,200.00,REDACTED PERSONAL DATA,,2045722,202308
Rother District Council,08/11/2023,T32REVBEN,Revenues & Benefits,20201,Household Support Fund (HFS) from 202108,D2923,Grants made,200.00,REDACTED PERSONAL DATA,,2045722,202308
Rother District Council,08/11/2023,T32REVBEN,Revenues & Benefits,20201,Household Support Fund (HFS) from 202108,D2923,Grants made,200.00,REDACTED PERSONAL DATA,,2045722,202308
Rother District Council,08/11/2023,T32REVBEN,Revenues & Benefits,20201,Household Support Fund (HFS) from 202108,D2923,Grants made,200.00,REDACTED PERSONAL DATA,,2045722,202308
Rother District Council,08/11/2023,T32REVBEN,Revenues & Benefits,20201,Household Support Fund (HFS) from 202108,D2923,Grants made,200.00,REDACTED PERSONAL DATA,,2045722,202308
Rother District Council,08/11/2023,T32REVBEN,Revenues & Benefits,20201,Household Support Fund (HFS) from 202108,D2923,Grants made,200.00,REDACTED PERSONAL DATA,,2045722,202308
Rother District Council,08/11/2023,T32REVBEN,Revenues & Benefits,20201,Household Support Fund (HFS) from 202108,D2923,Grants made,200.00,REDACTED PERSONAL DATA,,2045722,202308
Rother District Council,22/11/2023,T32REVBEN,Revenues & Benefits,20201,Household Support Fund (HFS) from 202108,D2923,Grants made,200.00,REDACTED PERSONAL DATA,,2046179,202308
Rother District Council,08/11/2023,T32REVBEN,Revenues & Benefits,20201,Household Support Fund (HFS) from 202108,D2923,Grants made,200.00,REDACTED PERSONAL DATA,,2045722,202308
Rother District Council,08/11/2023,T32REVBEN,Revenues & Benefits,20201,Household Support Fund (HFS) from 202108,D2923,Grants made,200.00,REDACTED PERSONAL DATA,,2045722,202308
Rother District Council,15/11/2023,T32REVBEN,Revenues & Benefits,20201,Household Support Fund (HFS) from 202108,D2923,Grants made,200.00,REDACTED PERSONAL DATA,,2045906,202308
Rother District Council,08/11/2023,T32REVBEN,Revenues & Benefits,20201,Household Support Fund (HFS) from 202108,D2923,Grants made,200.00,REDACTED PERSONAL DATA,,2045722,202308
Rother District Council,08/11/2023,T32REVBEN,Revenues & Benefits,20201,Household Support Fund (HFS) from 202108,D2923,Grants made,200.00,REDACTED PERSONAL DATA,,2045722,202308
Rother District Council,08/11/2023,T32REVBEN,Revenues & Benefits,20201,Household Support Fund (HFS) from 202108,D2923,Grants made,200.00,REDACTED PERSONAL DATA,,2045722,202308
Rother District Council,22/11/2023,T32REVBEN,Revenues & Benefits,20201,Household Support Fund (HFS) from 202108,D2923,Grants made,200.00,REDACTED PERSONAL DATA,,2046179,202308
Rother District Council,08/11/2023,T32REVBEN,Revenues & Benefits,20201,Household Support Fund (HFS) from 202108,D2923,Grants made,200.00,REDACTED PERSONAL DATA,,2045722,202308
Rother District Council,08/11/2023,T32REVBEN,Revenues & Benefits,20201,Household Support Fund (HFS) from 202108,D2923,Grants made,200.00,REDACTED PERSONAL DATA,,2045722,202308
Rother District Council,08/11/2023,T32REVBEN,Revenues & Benefits,20201,Household Support Fund (HFS) from 202108,D2923,Grants made,200.00,REDACTED PERSONAL DATA,,2045722,202308
Rother District Council,05/12/2023,T32REVBEN,Revenues & Benefits,20201,Household Support Fund (HFS) from 202108,D2923,Grants made,200.00,REDACTED PERSONAL DATA,,2046676,202309
Rother District Council,05/12/2023,T32REVBEN,Revenues & Benefits,20201,Household Support Fund (HFS) from 202108,D2923,Grants made,200.00,REDACTED PERSONAL DATA,,2046676,202309
Rother District Council,05/12/2023,T32REVBEN,Revenues & Benefits,20201,Household Support Fund (HFS) from 202108,D2923,Grants made,200.00,REDACTED PERSONAL DATA,,2046676,202309
Rother District Council,08/11/2023,T32REVBEN,Revenues & Benefits,20201,Household Support Fund (HFS) from 202108,D2923,Grants made,200.00,REDACTED PERSONAL DATA,,2045722,202308
Rother District Council,08/11/2023,T32REVBEN,Revenues & Benefits,20201,Household Support Fund (HFS) from 202108,D2923,Grants made,200.00,REDACTED PERSONAL DATA,,2045722,202308
Rother District Council,08/11/2023,T32REVBEN,Revenues & Benefits,20201,Household Support Fund (HFS) from 202108,D2923,Grants made,200.00,REDACTED PERSONAL DATA,,2045722,202308
Rother District Council,08/11/2023,T32REVBEN,Revenues & Benefits,20201,Household Support Fund (HFS) from 202108,D2923,Grants made,200.00,REDACTED PERSONAL DATA,,2045722,202308
Rother District Council,08/11/2023,T32REVBEN,Revenues & Benefits,20201,Household Support Fund (HFS) from 202108,D2923,Grants made,200.00,REDACTED PERSONAL DATA,,2045722,202308
Rother District Council,29/11/2023,T32REVBEN,Revenues & Benefits,20201,Household Support Fund (HFS) from 202108,D2923,Grants made,200.00,REDACTED PERSONAL DATA,,2046462,202308
Rother District Council,15/11/2023,T32REVBEN,Revenues & Benefits,20201,Household Support Fund (HFS) from 202108,D2923,Grants made,200.00,REDACTED PERSONAL DATA,,2045906,202308
Rother District Council,08/11/2023,T32REVBEN,Revenues & Benefits,20201,Household Support Fund (HFS) from 202108,D2923,Grants made,200.00,REDACTED PERSONAL DATA,,2045722,202308
Rother District Council,13/12/2023,T32REVBEN,Revenues & Benefits,20201,Household Support Fund (HFS) from 202108,D2923,Grants made,200.00,REDACTED PERSONAL DATA,,2046845,202309
Rother District Council,08/11/2023,T32REVBEN,Revenues & Benefits,20201,Household Support Fund (HFS) from 202108,D2923,Grants made,200.00,REDACTED PERSONAL DATA,,2045722,202308
Rother District Council,20/12/2023,T32REVBEN,Revenues & Benefits,20201,Household Support Fund (HFS) from 202108,D2923,Grants made,200.00,REDACTED PERSONAL DATA,,2047117,202309
Rother District Council,15/11/2023,T32REVBEN,Revenues & Benefits,20201,Household Support Fund (HFS) from 202108,D2923,Grants made,200.00,REDACTED PERSONAL DATA,,2045906,202308
Rother District Council,15/11/2023,T32REVBEN,Revenues & Benefits,20201,Household Support Fund (HFS) from 202108,D2923,Grants made,200.00,REDACTED PERSONAL DATA,,2045906,202308
Rother District Council,08/11/2023,T32REVBEN,Revenues & Benefits,20201,Household Support Fund (HFS) from 202108,D2923,Grants made,200.00,REDACTED PERSONAL DATA,,2045722,202308
Rother District Council,08/11/2023,T32REVBEN,Revenues & Benefits,20201,Household Support Fund (HFS) from 202108,D2923,Grants made,200.00,REDACTED PERSONAL DATA,,2045722,202308
Rother District Council,08/11/2023,T32REVBEN,Revenues & Benefits,20201,Household Support Fund (HFS) from 202108,D2923,Grants made,200.00,REDACTED PERSONAL DATA,,2045722,202308
Rother District Council,22/11/2023,T32REVBEN,Revenues & Benefits,20201,Household Support Fund (HFS) from 202108,D2923,Grants made,200.00,REDACTED PERSONAL DATA,,2046179,202308
Rother District Council,08/11/2023,T32REVBEN,Revenues & Benefits,20201,Household Support Fund (HFS) from 202108,D2923,Grants made,200.00,REDACTED PERSONAL DATA,,2045722,202308
Rother District Council,15/11/2023,T32REVBEN,Revenues & Benefits,20201,Household Support Fund (HFS) from 202108,D2923,Grants made,200.00,REDACTED PERSONAL DATA,,2045906,202308
Rother District Council,08/11/2023,T32REVBEN,Revenues & Benefits,20201,Household Support Fund (HFS) from 202108,D2923,Grants made,200.00,REDACTED PERSONAL DATA,,2045722,202308
Rother District Council,08/11/2023,T32REVBEN,Revenues & Benefits,20201,Household Support Fund (HFS) from 202108,D2923,Grants made,200.00,REDACTED PERSONAL DATA,,2045722,202308
Rother District Council,08/11/2023,T32REVBEN,Revenues & Benefits,20201,Household Support Fund (HFS) from 202108,D2923,Grants made,200.00,REDACTED PERSONAL DATA,,2045722,202308
Rother District Council,08/11/2023,T32REVBEN,Revenues & Benefits,20201,Household Support Fund (HFS) from 202108,D2923,Grants made,200.00,REDACTED PERSONAL DATA,,2045722,202308
Rother District Council,15/11/2023,T32REVBEN,Revenues & Benefits,20201,Household Support Fund (HFS) from 202108,D2923,Grants made,200.00,REDACTED PERSONAL DATA,,2045906,202308
Rother District Council,15/11/2023,T32REVBEN,Revenues & Benefits,20201,Household Support Fund (HFS) from 202108,D2923,Grants made,200.00,REDACTED PERSONAL DATA,,2045906,202308
Rother District Council,08/11/2023,T32REVBEN,Revenues & Benefits,20201,Household Support Fund (HFS) from 202108,D2923,Grants made,200.00,REDACTED PERSONAL DATA,,2045722,202308
Rother District Council,08/11/2023,T32REVBEN,Revenues & Benefits,20201,Household Support Fund (HFS) from 202108,D2923,Grants made,200.00,REDACTED PERSONAL DATA,,2045722,202308
Rother District Council,08/11/2023,T32REVBEN,Revenues & Benefits,20201,Household Support Fund (HFS) from 202108,D2923,Grants made,200.00,REDACTED PERSONAL DATA,,2045722,202308
Rother District Council,15/11/2023,T32REVBEN,Revenues & Benefits,20201,Household Support Fund (HFS) from 202108,D2923,Grants made,200.00,REDACTED PERSONAL DATA,,2045906,202308
Rother District Council,08/11/2023,T32REVBEN,Revenues & Benefits,20201,Household Support Fund (HFS) from 202108,D2923,Grants made,200.00,REDACTED PERSONAL DATA,,2045722,202308
Rother District Council,08/11/2023,T32REVBEN,Revenues & Benefits,20201,Household Support Fund (HFS) from 202108,D2923,Grants made,200.00,REDACTED PERSONAL DATA,,2045722,202308
Rother District Council,08/11/2023,T32REVBEN,Revenues & Benefits,20201,Household Support Fund (HFS) from 202108,D2923,Grants made,200.00,REDACTED PERSONAL DATA,,2045722,202308
Rother District Council,15/11/2023,T32REVBEN,Revenues & Benefits,20201,Household Support Fund (HFS) from 202108,D2923,Grants made,200.00,REDACTED PERSONAL DATA,,2045906,202308
Rother District Council,08/11/2023,T32REVBEN,Revenues & Benefits,20201,Household Support Fund (HFS) from 202108,D2923,Grants made,200.00,REDACTED PERSONAL DATA,,2045722,202308
Rother District Council,08/11/2023,T32REVBEN,Revenues & Benefits,20201,Household Support Fund (HFS) from 202108,D2923,Grants made,200.00,REDACTED PERSONAL DATA,,2045722,202308
Rother District Council,15/11/2023,T32REVBEN,Revenues & Benefits,20201,Household Support Fund (HFS) from 202108,D2923,Grants made,200.00,REDACTED PERSONAL DATA,,2045906,202308
Rother District Council,08/11/2023,T32REVBEN,Revenues & Benefits,20201,Household Support Fund (HFS) from 202108,D2923,Grants made,200.00,REDACTED PERSONAL DATA,,2045722,202308
Rother District Council,22/11/2023,T32REVBEN,Revenues & Benefits,20201,Household Support Fund (HFS) from 202108,D2923,Grants made,200.00,REDACTED PERSONAL DATA,,2046179,202308
Rother District Council,15/11/2023,T32REVBEN,Revenues & Benefits,20201,Household Support Fund (HFS) from 202108,D2923,Grants made,200.00,REDACTED PERSONAL DATA,,2045906,202308
Rother District Council,08/11/2023,T32REVBEN,Revenues & Benefits,20201,Household Support Fund (HFS) from 202108,D2923,Grants made,200.00,REDACTED PERSONAL DATA,,2045722,202308
Rother District Council,08/11/2023,T32REVBEN,Revenues & Benefits,20201,Household Support Fund (HFS) from 202108,D2923,Grants made,200.00,REDACTED PERSONAL DATA,,2045722,202308
Rother District Council,08/11/2023,T32REVBEN,Revenues & Benefits,20201,Household Support Fund (HFS) from 202108,D2923,Grants made,200.00,REDACTED PERSONAL DATA,,2045722,202308
Rother District Council,08/11/2023,T32REVBEN,Revenues & Benefits,20201,Household Support Fund (HFS) from 202108,D2923,Grants made,200.00,REDACTED PERSONAL DATA,,2045722,202308
Rother District Council,08/11/2023,T32REVBEN,Revenues & Benefits,20201,Household Support Fund (HFS) from 202108,D2923,Grants made,200.00,REDACTED PERSONAL DATA,,2045722,202308
Rother District Council,08/11/2023,T32REVBEN,Revenues & Benefits,20201,Household Support Fund (HFS) from 202108,D2923,Grants made,200.00,REDACTED PERSONAL DATA,,2045722,202308
Rother District Council,08/11/2023,T32REVBEN,Revenues & Benefits,20201,Household Support Fund (HFS) from 202108,D2923,Grants made,200.00,REDACTED PERSONAL DATA,,2045722,202308
Rother District Council,08/11/2023,T32REVBEN,Revenues & Benefits,20201,Household Support Fund (HFS) from 202108,D2923,Grants made,200.00,REDACTED PERSONAL DATA,,2045722,202308
Rother District Council,08/11/2023,T32REVBEN,Revenues & Benefits,20201,Household Support Fund (HFS) from 202108,D2923,Grants made,200.00,REDACTED PERSONAL DATA,,2045722,202308
Rother District Council,08/11/2023,T32REVBEN,Revenues & Benefits,20201,Household Support Fund (HFS) from 202108,D2923,Grants made,200.00,REDACTED PERSONAL DATA,,2045722,202308
Rother District Council,15/11/2023,T32REVBEN,Revenues & Benefits,20201,Household Support Fund (HFS) from 202108,D2923,Grants made,200.00,REDACTED PERSONAL DATA,,2045906,202308
Rother District Council,08/11/2023,T32REVBEN,Revenues & Benefits,20201,Household Support Fund (HFS) from 202108,D2923,Grants made,200.00,REDACTED PERSONAL DATA,,2045722,202308
Rother District Council,08/11/2023,T32REVBEN,Revenues & Benefits,20201,Household Support Fund (HFS) from 202108,D2923,Grants made,200.00,REDACTED PERSONAL DATA,,2045722,202308
Rother District Council,08/11/2023,T32REVBEN,Revenues & Benefits,20201,Household Support Fund (HFS) from 202108,D2923,Grants made,200.00,REDACTED PERSONAL DATA,,2045722,202308
Rother District Council,08/11/2023,T32REVBEN,Revenues & Benefits,20201,Household Support Fund (HFS) from 202108,D2923,Grants made,200.00,REDACTED PERSONAL DATA,,2045722,202308
Rother District Council,08/11/2023,T32REVBEN,Revenues & Benefits,20201,Household Support Fund (HFS) from 202108,D2923,Grants made,200.00,REDACTED PERSONAL DATA,,2045722,202308
Rother District Council,08/11/2023,T32REVBEN,Revenues & Benefits,20201,Household Support Fund (HFS) from 202108,D2923,Grants made,200.00,REDACTED PERSONAL DATA,,2045722,202308
Rother District Council,15/11/2023,T32REVBEN,Revenues & Benefits,20201,Household Support Fund (HFS) from 202108,D2923,Grants made,200.00,REDACTED PERSONAL DATA,,2045906,202308
Rother District Council,15/11/2023,T32REVBEN,Revenues & Benefits,20201,Household Support Fund (HFS) from 202108,D2923,Grants made,200.00,REDACTED PERSONAL DATA,,2045906,202308
Rother District Council,08/11/2023,T32REVBEN,Revenues & Benefits,20201,Household Support Fund (HFS) from 202108,D2923,Grants made,200.00,REDACTED PERSONAL DATA,,2045722,202308
Rother District Council,22/11/2023,T32REVBEN,Revenues & Benefits,20201,Household Support Fund (HFS) from 202108,D2923,Grants made,200.00,REDACTED PERSONAL DATA,,2046179,202308
Rother District Council,08/11/2023,T32REVBEN,Revenues & Benefits,20201,Household Support Fund (HFS) from 202108,D2923,Grants made,200.00,REDACTED PERSONAL DATA,,2045722,202308
Rother District Council,08/11/2023,T32REVBEN,Revenues & Benefits,20201,Household Support Fund (HFS) from 202108,D2923,Grants made,200.00,REDACTED PERSONAL DATA,,2045722,202308
Rother District Council,08/11/2023,T32REVBEN,Revenues & Benefits,20201,Household Support Fund (HFS) from 202108,D2923,Grants made,200.00,REDACTED PERSONAL DATA,,2045722,202308
Rother District Council,22/11/2023,T32REVBEN,Revenues & Benefits,20201,Household Support Fund (HFS) from 202108,D2923,Grants made,200.00,REDACTED PERSONAL DATA,,2046179,202308
Rother District Council,08/11/2023,T32REVBEN,Revenues & Benefits,20201,Household Support Fund (HFS) from 202108,D2923,Grants made,200.00,REDACTED PERSONAL DATA,,2045722,202308
Rother District Council,08/11/2023,T32REVBEN,Revenues & Benefits,20201,Household Support Fund (HFS) from 202108,D2923,Grants made,200.00,REDACTED PERSONAL DATA,,2045722,202308
Rother District Council,08/11/2023,T32REVBEN,Revenues & Benefits,20201,Household Support Fund (HFS) from 202108,D2923,Grants made,200.00,REDACTED PERSONAL DATA,,2045722,202308
Rother District Council,08/11/2023,T32REVBEN,Revenues & Benefits,20201,Household Support Fund (HFS) from 202108,D2923,Grants made,200.00,REDACTED PERSONAL DATA,,2045722,202308
Rother District Council,08/11/2023,T32REVBEN,Revenues & Benefits,20201,Household Support Fund (HFS) from 202108,D2923,Grants made,200.00,REDACTED PERSONAL DATA,,2045722,202308
Rother District Council,08/11/2023,T32REVBEN,Revenues & Benefits,20201,Household Support Fund (HFS) from 202108,D2923,Grants made,200.00,REDACTED PERSONAL DATA,,2045722,202308
Rother District Council,05/12/2023,T32REVBEN,Revenues & Benefits,20201,Household Support Fund (HFS) from 202108,D2923,Grants made,200.00,REDACTED PERSONAL DATA,,2046676,202309
Rother District Council,08/11/2023,T32REVBEN,Revenues & Benefits,20201,Household Support Fund (HFS) from 202108,D2923,Grants made,200.00,REDACTED PERSONAL DATA,,2045722,202308
Rother District Council,15/11/2023,T32REVBEN,Revenues & Benefits,20201,Household Support Fund (HFS) from 202108,D2923,Grants made,200.00,REDACTED PERSONAL DATA,,2045906,202308
Rother District Council,08/11/2023,T32REVBEN,Revenues & Benefits,20201,Household Support Fund (HFS) from 202108,D2923,Grants made,200.00,REDACTED PERSONAL DATA,,2045722,202308
Rother District Council,08/11/2023,T32REVBEN,Revenues & Benefits,20201,Household Support Fund (HFS) from 202108,D2923,Grants made,200.00,REDACTED PERSONAL DATA,,2045722,202308
Rother District Council,08/11/2023,T32REVBEN,Revenues & Benefits,20201,Household Support Fund (HFS) from 202108,D2923,Grants made,200.00,REDACTED PERSONAL DATA,,2045722,202308
Rother District Council,08/11/2023,T32REVBEN,Revenues & Benefits,20201,Household Support Fund (HFS) from 202108,D2923,Grants made,200.00,REDACTED PERSONAL DATA,,2045722,202308
Rother District Council,15/11/2023,T32REVBEN,Revenues & Benefits,20201,Household Support Fund (HFS) from 202108,D2923,Grants made,200.00,REDACTED PERSONAL DATA,,2045906,202308
Rother District Council,08/11/2023,T32REVBEN,Revenues & Benefits,20201,Household Support Fund (HFS) from 202108,D2923,Grants made,200.00,REDACTED PERSONAL DATA,,2045722,202308
Rother District Council,08/11/2023,T32REVBEN,Revenues & Benefits,20201,Household Support Fund (HFS) from 202108,D2923,Grants made,200.00,REDACTED PERSONAL DATA,,2045722,202308
Rother District Council,08/11/2023,T32REVBEN,Revenues & Benefits,20201,Household Support Fund (HFS) from 202108,D2923,Grants made,200.00,REDACTED PERSONAL DATA,,2045722,202308
Rother District Council,08/11/2023,T32REVBEN,Revenues & Benefits,20201,Household Support Fund (HFS) from 202108,D2923,Grants made,200.00,REDACTED PERSONAL DATA,,2045722,202308
Rother District Council,22/11/2023,T32REVBEN,Revenues & Benefits,20201,Household Support Fund (HFS) from 202108,D2923,Grants made,200.00,REDACTED PERSONAL DATA,,2046179,202308
